Body_Code,Body_Name,Service,Posting Date,GL Code,GL Code Desc,Doc Number,Doc Net Amount,Supplier Name
http://statistics.data.gov.uk/id/local-authority/38,Oxfordshire County Council,COMM DRAWDOWN FUNDNG,25/05/2023,8004,Design Consultant,2201115250,"-426,607.76",Balfour Beatty
http://statistics.data.gov.uk/id/local-authority/38,Oxfordshire County Council,,25/05/2023,1466,SAP Payroll Interface Control Account,3111434016,"-362,257.75",HAMPSHIRE PENSION FUND
http://statistics.data.gov.uk/id/local-authority/38,Oxfordshire County Council,Support at Home 65+ Physical Support,31/05/2023,5689,,3111436303,"-78,676.81",Direct Link Care Ltd
http://statistics.data.gov.uk/id/local-authority/38,Oxfordshire County Council,Support at Home U65 Learning Disability,10/05/2023,5688,,3111423198,"-65,815.64",ADVANCE HOUSING & SUPPORT LTD
http://statistics.data.gov.uk/id/local-authority/38,Oxfordshire County Council,ELECTRICAL ENERGY,11/05/2023,3951,Non System - Electricity,2201110338,"-57,898.41",EDF Energy Customers Ltd
http://statistics.data.gov.uk/id/local-authority/38,Oxfordshire County Council,COMM DRAWDOWN FUNDNG,16/05/2023,8102,Payments to main contractor,2201111603,"-56,716.30",Milestone Infrastructure Limited
http://statistics.data.gov.uk/id/local-authority/38,Oxfordshire County Council,CHC Fast Track - Care Homes - Over 65,10/05/2023,5687,,3111425912,"-55,680.00",SANCTUARY CARE PROPERTY (2) LTD
http://statistics.data.gov.uk/id/local-authority/38,Oxfordshire County Council,CHC Fast Track - Care Homes - Over 65,10/05/2023,5687,,3111422340,"-52,478.58",Abbey Crest Nursing Home
http://statistics.data.gov.uk/id/local-authority/38,Oxfordshire County Council,Commercial Team Growth,25/05/2023,2040,Agency Staff,2201115452,"-43,539.90",Faithful & Gould
http://statistics.data.gov.uk/id/local-authority/38,Oxfordshire County Council,Funded Nursing Care  - Over 65,10/05/2023,5692,,3111425043,"-42,953.75",Godswell Park
http://statistics.data.gov.uk/id/local-authority/38,Oxfordshire County Council,CHC Fast Track - Care Homes - Over 65,10/05/2023,5687,,3111423281,"-40,034.33",METHODIST HOMES
http://statistics.data.gov.uk/id/local-authority/38,Oxfordshire County Council,Continuing Care - Care Homes - 65+,10/05/2023,5687,,3111423280,"-37,252.86",Orders of St John
http://statistics.data.gov.uk/id/local-authority/38,Oxfordshire County Council,Care Homes - Under 65 Leaning Disability,10/05/2023,5686,,3111426613,"-34,034.74",White Leaf Support Ltd
http://statistics.data.gov.uk/id/local-authority/38,Oxfordshire County Council,Continuing Care - Care Homes - 65+,10/05/2023,5687,,3111422631,"-33,497.19",Elysium Neurological Services (Badb
http://statistics.data.gov.uk/id/local-authority/38,Oxfordshire County Council,Continuing Care - Care Homes - 65+,10/05/2023,5687,,3111424970,"-32,357.15",Freeland House
http://statistics.data.gov.uk/id/local-authority/38,Oxfordshire County Council,CHC Fast Track - Care Homes - Over 65,10/05/2023,5687,,3111425278,"-30,657.15",Cedar Court Care Home
http://statistics.data.gov.uk/id/local-authority/38,Oxfordshire County Council,COMM DRAWDOWN FUNDNG,16/05/2023,8102,Payments to main contractor,2201111562,"-25,021.24",Milestone Infrastructure(Major Proj
http://statistics.data.gov.uk/id/local-authority/38,Oxfordshire County Council,CHC Fast Track - Care Homes - Over 65,10/05/2023,5687,,3111425651,"-24,232.14",Middletown Grange Care Home
http://statistics.data.gov.uk/id/local-authority/38,Oxfordshire County Council,Support at Home U65 Learning Disability,10/05/2023,5688,,3111424895,"-24,102.00",Autism at Kingwood Limited
http://statistics.data.gov.uk/id/local-authority/38,Oxfordshire County Council,CHC Fast Track - Care Homes - Over 65,10/05/2023,5687,,3111425256,"-23,335.71",Cedar Court Care Home
http://statistics.data.gov.uk/id/local-authority/38,Oxfordshire County Council,Support at Home U65 Learning Disability,10/05/2023,5688,,3111424900,"-23,241.33",Autism at Kingwood Limited
http://statistics.data.gov.uk/id/local-authority/38,Oxfordshire County Council,Continuing Care - Care Homes - 65+,10/05/2023,5687,,3111426632,"-22,142.85",MARIA MALLABAND CARE GROUP
http://statistics.data.gov.uk/id/local-authority/38,Oxfordshire County Council,CHC Fast Track - Care Homes - Over 65,10/05/2023,5687,,3111423436,"-21,514.49",METHODIST HOMES
http://statistics.data.gov.uk/id/local-authority/38,Oxfordshire County Council,CHC Fast Track - Care Homes - Over 65,10/05/2023,5687,,3111426589,"-21,243.86",SANCTUARY CARE LTD
http://statistics.data.gov.uk/id/local-authority/38,Oxfordshire County Council,CHC Fast Track - Care Homes - Over 65,10/05/2023,5687,,3111426059,"-20,921.43",Stowford House
http://statistics.data.gov.uk/id/local-authority/38,Oxfordshire County Council,,17/05/2023,1267,Other Short Term Liabilities,3111429035,"-19,035.80",OCC One Time Vendor
http://statistics.data.gov.uk/id/local-authority/38,Oxfordshire County Council,VOIDS/VACANCY COSTS,10/05/2023,5688,,3111424661,"-17,277.56",The Brandon Trust
http://statistics.data.gov.uk/id/local-authority/38,Oxfordshire County Council,Continuing Care - Care Homes - 65+,10/05/2023,5687,,3111426338,"-17,262.41",Four Seasons (Headington) Ltd
http://statistics.data.gov.uk/id/local-authority/38,Oxfordshire County Council,Care Homes - Over 65 Physical Sypport,10/05/2023,5686,,3111423375,"-17,097.86",OSJ  - Old Station House
http://statistics.data.gov.uk/id/local-authority/38,Oxfordshire County Council,Continuing Care - Care Homes - 65+,10/05/2023,5687,,3111426680,"-16,685.71",Caring Homes Healthcare Group Ltd
http://statistics.data.gov.uk/id/local-authority/38,Oxfordshire County Council,YP PATHWAY,30/05/2023,5604,,3111435136,"-16,029.26",Response Organisation
http://statistics.data.gov.uk/id/local-authority/38,Oxfordshire County Council,Support at Home 65+ Memory & Cognition,10/05/2023,5686,,3111422896,"-14,632.30",Orders of St John
http://statistics.data.gov.uk/id/local-authority/38,Oxfordshire County Council,Funded Nursing Care  - Over 65,10/05/2023,5692,,3111423069,"-14,582.96",Bridge House
http://statistics.data.gov.uk/id/local-authority/38,Oxfordshire County Council,Care Homes - Over 65 Memory & Cognition,10/05/2023,5686,,3111424306,"-13,885.71",Cleeve Lodge Residential Home
http://statistics.data.gov.uk/id/local-authority/38,Oxfordshire County Council,VOIDS/VACANCY COSTS,10/05/2023,5688,,3111424493,"-13,430.81",The Brandon Trust
http://statistics.data.gov.uk/id/local-authority/38,Oxfordshire County Council,High Cost INMSS Placements,18/05/2023,5500,Payments to Other Local Authorities,3111429409,"-13,398.70",The Castle School
http://statistics.data.gov.uk/id/local-authority/38,Oxfordshire County Council,Care Homes - Over 65 Physical Sypport,10/05/2023,5686,,3111423377,"-11,728.43",OSJ  - Old Station House
http://statistics.data.gov.uk/id/local-authority/38,Oxfordshire County Council,Care Homes - Under 65 Memory & Cognition,10/05/2023,5687,,3111426301,"-11,671.36",Four Seasons (Headington) Ltd
http://statistics.data.gov.uk/id/local-authority/38,Oxfordshire County Council,Funded Nursing Care  - Over 65,10/05/2023,5692,,3111423126,"-11,610.28",Bridge House
http://statistics.data.gov.uk/id/local-authority/38,Oxfordshire County Council,Support at Home 65+ Physical Support,23/05/2023,5699,,3111431505,"-11,472.48",All Care GB Ltd
http://statistics.data.gov.uk/id/local-authority/38,Oxfordshire County Council,Funded Nursing Care  - Over 65,10/05/2023,5692,,3111423087,"-11,341.33",Bridge House
http://statistics.data.gov.uk/id/local-authority/38,Oxfordshire County Council,Care Homes - Over 65 Memory & Cognition,10/05/2023,5685,B*Cycle tracks,3111425100,"-10,632.85",GCH (St Katherines) Ltd
http://statistics.data.gov.uk/id/local-authority/38,Oxfordshire County Council,Funded Nursing Care  - Over 65,10/05/2023,5692,,3111423075,"-10,056.30",Bridge House
http://statistics.data.gov.uk/id/local-authority/38,Oxfordshire County Council,Funded Nursing Care  - Over 65,10/05/2023,5692,,3111423020,"-9,996.53",Bondcare (Henley) Ltd
http://statistics.data.gov.uk/id/local-authority/38,Oxfordshire County Council,Care Homes - Under 65 Leaning Disability,10/05/2023,5686,,3111426067,"-9,821.43",St Johns Residential Home
http://statistics.data.gov.uk/id/local-authority/38,Oxfordshire County Council,Continuing Care - Support at Home - U65,12/05/2023,5691,,3111427423,"-9,281.26",KIT Mobility Taxis Oxford Ltd
http://statistics.data.gov.uk/id/local-authority/38,Oxfordshire County Council,DRAINAGE REPAIRS,16/05/2023,5526,Payments to Private Contractors,2201111564,"-9,075.13",Milestone Infrastructure Limited
http://statistics.data.gov.uk/id/local-authority/38,Oxfordshire County Council,Support at Home 65+ Physical Support,23/05/2023,5699,,3111432615,"-8,914.50",Direct Link Care Ltd
http://statistics.data.gov.uk/id/local-authority/38,Oxfordshire County Council,Funded Nursing Care  - Over 65,10/05/2023,5692,,3111423175,"-8,323.02",Bridge House
http://statistics.data.gov.uk/id/local-authority/38,Oxfordshire County Council,Care Homes - Over 65 Physical Sypport,10/05/2023,5686,,3111426712,"-8,000.00",Caring Homes Healthcare Group Ltd
http://statistics.data.gov.uk/id/local-authority/38,Oxfordshire County Council,CHC Fast Track - Care Homes - Over 65,10/05/2023,5687,,3111424888,"-7,714.28",Freeland House
http://statistics.data.gov.uk/id/local-authority/38,Oxfordshire County Council,Continuing Care - Care Homes - 65+,10/05/2023,5687,,3111424249,"-7,542.86",CHURCHFIELDS CARE HOME
http://statistics.data.gov.uk/id/local-authority/38,Oxfordshire County Council,Interim Funding  - Care Homes - Over 65,10/05/2023,5687,,3111426698,"-7,085.71",Caring Homes Healthcare Group Ltd
http://statistics.data.gov.uk/id/local-authority/38,Oxfordshire County Council,Care Homes - Over 65 Leaning Disability,10/05/2023,5686,,3111424199,"-6,933.96",Choice Pathways Ltd
http://statistics.data.gov.uk/id/local-authority/38,Oxfordshire County Council,MOTOR FLEET,22/05/2023,3051,,3111430342,"-6,875.00",Blake Morgan LLP
http://statistics.data.gov.uk/id/local-authority/38,Oxfordshire County Council,Delegated Health Tasks  - Under 65,24/05/2023,5691,,3111433559,"-6,825.00",Enable Health Ltd
http://statistics.data.gov.uk/id/local-authority/38,Oxfordshire County Council,ContrO ASC Payments Control Account,10/05/2023,5554,Childrens' Social Care - Direct Payments,3111421863,"-6,724.87",The Disability Resource Centre
http://statistics.data.gov.uk/id/local-authority/38,Oxfordshire County Council,Funded Nursing Care  - Over 65,10/05/2023,5692,,3111424500,"-6,709.27",Vale House
http://statistics.data.gov.uk/id/local-authority/38,Oxfordshire County Council,Funded Nursing Care  - Over 65,10/05/2023,5692,,3111426595,"-6,529.96",SANCTUARY CARE LTD
http://statistics.data.gov.uk/id/local-authority/38,Oxfordshire County Council,LD Continuing Care - Sup at Home - U65,12/05/2023,5691,,3111427445,"-6,335.78",Radis Community Care
http://statistics.data.gov.uk/id/local-authority/38,Oxfordshire County Council,FOSTERING MAIN,02/05/2023,5549,B*Fostering Allowance - Regulation 38,3111418448,"-6,088.78",Redacted Personal Data 
http://statistics.data.gov.uk/id/local-authority/38,Oxfordshire County Council,Support at Home 65+ Subsantance Abuse,10/05/2023,5686,,3111425468,"-6,000.00",Kirlena House
http://statistics.data.gov.uk/id/local-authority/38,Oxfordshire County Council,Funded Nursing Care  - Over 65,10/05/2023,5692,,3111425659,"-5,902.39",Middletown Grange Care Home
http://statistics.data.gov.uk/id/local-authority/38,Oxfordshire County Council,CHC Fast Track - Care Homes - Over 65,10/05/2023,5687,,3111423667,"-5,892.86",Orders of St John
http://statistics.data.gov.uk/id/local-authority/38,Oxfordshire County Council,Care Homes - Under 65 Leaning Disability,10/05/2023,5686,,3111424175,"-5,696.80",Choice Ltd
http://statistics.data.gov.uk/id/local-authority/38,Oxfordshire County Council,CHC Fast Track - Care Homes - Over 65,10/05/2023,5687,,3111424390,"-5,571.43",Coxwell Hall & Mews Nursing Home
http://statistics.data.gov.uk/id/local-authority/38,Oxfordshire County Council,Support at Home 65+ Memory & Cognition,10/05/2023,5686,,3111425467,"-5,500.00",Kirlena House
http://statistics.data.gov.uk/id/local-authority/38,Oxfordshire County Council,CHC Fast Track - Care Homes - Over 65,10/05/2023,5687,,3111424052,"-5,085.44",Cherwood House Care Centre
http://statistics.data.gov.uk/id/local-authority/38,Oxfordshire County Council,Reactive Maintenance,24/05/2023,4122,Other premises related costs,2201114814,"-4,940.00",Oxford Decorating
http://statistics.data.gov.uk/id/local-authority/38,Oxfordshire County Council,Support at Home 65+ Physical Support,23/05/2023,5699,,3111432933,"-4,901.22",PLL Care Services
http://statistics.data.gov.uk/id/local-authority/38,Oxfordshire County Council,Care Homes - Under 65 MH - OBC Contract,10/05/2023,5686,,3111425858,"-4,754.74",2 Care
http://statistics.data.gov.uk/id/local-authority/38,Oxfordshire County Council,Support at Home 65+ Physical Support,10/05/2023,5686,,3111425699,"-4,642.86",Mon Choisy
http://statistics.data.gov.uk/id/local-authority/38,Oxfordshire County Council,Care Homes - Over 65 Memory & Cognition,10/05/2023,5686,,3111425950,"-4,466.39",Sotwell Hill House
http://statistics.data.gov.uk/id/local-authority/38,Oxfordshire County Council,Care Homes - Over 65 Leaning Disability,10/05/2023,5687,,3111422884,"-4,458.84",Beech Haven Care Home
http://statistics.data.gov.uk/id/local-authority/38,Oxfordshire County Council,Support at Home U65 Learning Disability,10/05/2023,5690,,3111424370,"-4,407.99",Style Acre
http://statistics.data.gov.uk/id/local-authority/38,Oxfordshire County Council,Care Homes - Over 65 Physical Sypport,10/05/2023,5687,,3111423712,"-4,407.87",WT UK Opco 4 Ltd C/O Care UK
http://statistics.data.gov.uk/id/local-authority/38,Oxfordshire County Council,Funded Nursing Care  - Over 65,10/05/2023,5692,,3111425314,"-4,318.53",Heathfield House Nursing Home
http://statistics.data.gov.uk/id/local-authority/38,Oxfordshire County Council,Continuing Care - Care Homes - 65+,10/05/2023,5687,,3111423737,"-4,240.67",WT UK Opco 4 Ltd C/O Care UK
http://statistics.data.gov.uk/id/local-authority/38,Oxfordshire County Council,COMM DRAWDOWN FUNDNG,16/05/2023,8102,Payments to main contractor,2201111560,"-4,226.76",Milestone Infrastructure Limited
http://statistics.data.gov.uk/id/local-authority/38,Oxfordshire County Council,COMM DRAWDOWN FUNDNG,16/05/2023,8102,Payments to main contractor,2201111569,"-4,169.22",Milestone Infrastructure Limited
http://statistics.data.gov.uk/id/local-authority/38,Oxfordshire County Council,COMM DRAWDOWN FUNDNG,16/05/2023,8102,Payments to main contractor,2201111565,"-4,042.42",Milestone Infrastructure Limited
http://statistics.data.gov.uk/id/local-authority/38,Oxfordshire County Council,CHC Fast Track - Care Homes - Over 65,10/05/2023,5687,,3111425797,"-4,007.14",Oxford Beaumont
http://statistics.data.gov.uk/id/local-authority/38,Oxfordshire County Council,MOTOR FLEET,18/05/2023,3053,,3111429735,"-3,991.76",OCC One Time Vendor
http://statistics.data.gov.uk/id/local-authority/38,Oxfordshire County Council,Care Homes - Over 65 Physical Sypport,10/05/2023,5687,,3111426678,"-3,985.32",Caring Homes Healthcare Group Ltd
http://statistics.data.gov.uk/id/local-authority/38,Oxfordshire County Council,Continuing Care - Support at Home - 65+,10/05/2023,5691,,3111422015,"-3,980.00",FiNN Homecare Ltd
http://statistics.data.gov.uk/id/local-authority/38,Oxfordshire County Council,Care Homes - Under 65 Physical Sypport,10/05/2023,5687,,3111423471,"-3,962.07",Grace Care Service Ltd T/A Burford
http://statistics.data.gov.uk/id/local-authority/38,Oxfordshire County Council,Support at Home 65+ Physical Support,23/05/2023,5689,,3111431737,"-3,958.47",Care Outlook Ltd
http://statistics.data.gov.uk/id/local-authority/38,Oxfordshire County Council,Vegetation Mgmt,17/05/2023,5526,Payments to Private Contractors,2201112600,"-3,946.11",Milestone Infrastructure Limited
http://statistics.data.gov.uk/id/local-authority/38,Oxfordshire County Council,Funded Nursing Care  - Over 65,10/05/2023,5692,,3111425061,"-3,930.03",Godswell Park
http://statistics.data.gov.uk/id/local-authority/38,Oxfordshire County Council,COMM DRAWDOWN FUNDNG,16/05/2023,8102,Payments to main contractor,2201111566,"-3,823.46",Milestone Infrastructure Limited
http://statistics.data.gov.uk/id/local-authority/38,Oxfordshire County Council,Care Homes - Over 65 Mental Health,10/05/2023,5687,,3111425636,"-3,745.57",Middletown Grange Care Home
http://statistics.data.gov.uk/id/local-authority/38,Oxfordshire County Council,Care Homes - Over 65 Physical Sypport,10/05/2023,5687,,3111423296,"-3,713.40",METHODIST HOMES
http://statistics.data.gov.uk/id/local-authority/38,Oxfordshire County Council,Support at Home 65+ Physical Support,10/05/2023,5686,,3111423908,"-3,697.72",Orders of St John
http://statistics.data.gov.uk/id/local-authority/38,Oxfordshire County Council,Funded Nursing Care  - Over 65,10/05/2023,5692,,3111425371,"-3,661.07",Huntercombe Hall Ltd
http://statistics.data.gov.uk/id/local-authority/38,Oxfordshire County Council,Funded Nursing Care  - Over 65,10/05/2023,5692,,3111425655,"-3,601.31",Middletown Grange Care Home
http://statistics.data.gov.uk/id/local-authority/38,Oxfordshire County Council,Funded Nursing Care  - Over 65,10/05/2023,5692,,3111425924,"-3,601.31",SANCTUARY CARE PROPERTY (2) LTD
http://statistics.data.gov.uk/id/local-authority/38,Oxfordshire County Council,Care Homes - Over 65 Physical Sypport,10/05/2023,5687,,3111425093,"-3,594.01",GCH (St Katherines) Ltd
http://statistics.data.gov.uk/id/local-authority/38,Oxfordshire County Council,LD Continuing Care - Sup at Home - U65,16/05/2023,5691,,3111428547,"-3,527.84",Paterson Recruitment
http://statistics.data.gov.uk/id/local-authority/38,Oxfordshire County Council,Care Homes - Over 65 Mental Health,10/05/2023,5687,,3111426259,"-3,494.72",The Grange Care Centre
http://statistics.data.gov.uk/id/local-authority/38,Oxfordshire County Council,Funded Nursing Care  - Over 65,10/05/2023,5692,,3111424811,"-3,481.77",Fewcott Healthcare Ltd
http://statistics.data.gov.uk/id/local-authority/38,Oxfordshire County Council,CHC Fast Track - Care Homes - Over 65,10/05/2023,5687,,3111426061,"-3,428.57",Stowford House
http://statistics.data.gov.uk/id/local-authority/38,Oxfordshire County Council,CHC Fast Track - Care Homes - Over 65,10/05/2023,5687,,3111424578,"-3,428.57",Vale House
http://statistics.data.gov.uk/id/local-authority/38,Oxfordshire County Council,COMM DRAWDOWN FUNDNG,17/05/2023,8102,Payments to main contractor,2201112599,"-3,317.42",Milestone Infrastructure Limited
http://statistics.data.gov.uk/id/local-authority/38,Oxfordshire County Council,Interim Funding  - Care Homes - Over 65,10/05/2023,5687,,3111426652,"-3,200.00",MARIA MALLABAND CARE GROUP
http://statistics.data.gov.uk/id/local-authority/38,Oxfordshire County Council,HSF Welfare Support Grant & FSM support,24/05/2023,4939,,3111434331,"-3,150.00",Pegasus Primary School
http://statistics.data.gov.uk/id/local-authority/38,Oxfordshire County Council,SHARED LIVES,10/05/2023,5555,Payments to Carers,3111426760,"-3,131.37",Redacted Personal Data 
http://statistics.data.gov.uk/id/local-authority/38,Oxfordshire County Council,Support at Home U65 Learning Disability,10/05/2023,7064,B* Registration Of Old Pers Homes,3111424841,"-3,077.49",Autism at Kingwood Limited
http://statistics.data.gov.uk/id/local-authority/38,Oxfordshire County Council,UTILITIES,02/05/2023,3950,Non System - Gas,3111418471,"-2,985.22",EDF Energy Customers Ltd
http://statistics.data.gov.uk/id/local-authority/38,Oxfordshire County Council,Support at Home 65+ Physical Support,23/05/2023,5699,,3111432876,"-2,957.86",PLL Care Services
http://statistics.data.gov.uk/id/local-authority/38,Oxfordshire County Council,Support at Home U65 Learning Disability,22/05/2023,5688,,3111430281,"-2,893.89",CAMPHILL DEVON COMMUNITY LIMITED
http://statistics.data.gov.uk/id/local-authority/38,Oxfordshire County Council,Support at Home U65 Physical Support,23/05/2023,5699,,3111432955,"-2,884.35",Prime Social Care Services Ltd
http://statistics.data.gov.uk/id/local-authority/38,Oxfordshire County Council,Care Homes - Over 65 Memory & Cognition,10/05/2023,5687,,3111424387,"-2,879.42",Coxwell Hall & Mews Nursing Home
http://statistics.data.gov.uk/id/local-authority/38,Oxfordshire County Council,CSDP TEAM,25/05/2023,4940,Other Services,2201115472,"-2,870.47",NRS Healthcare
http://statistics.data.gov.uk/id/local-authority/38,Oxfordshire County Council,Support at Home 65+ Memory & Cognition,10/05/2023,5686,,3111422501,"-2,835.71",Orders of St John
http://statistics.data.gov.uk/id/local-authority/38,Oxfordshire County Council,Care Homes - Over 65 Physical Sypport,10/05/2023,5686,,3111425800,"-2,800.05",Fairholme House
http://statistics.data.gov.uk/id/local-authority/38,Oxfordshire County Council,Funded Nursing Care  - Over 65,10/05/2023,5692,,3111422326,"-2,704.78",Abbey Crest Nursing Home
http://statistics.data.gov.uk/id/local-authority/38,Oxfordshire County Council,Support at Home 65+ Physical Support,23/05/2023,5699,,3111431491,"-2,633.22",All Care GB Ltd
http://statistics.data.gov.uk/id/local-authority/38,Oxfordshire County Council,Support at Home 65+ Physical Support,23/05/2023,5699,,3111432907,"-2,544.84",PLL Care Services
http://statistics.data.gov.uk/id/local-authority/38,Oxfordshire County Council,MEMBERS SERVICES,18/05/2023,3103,Other Training Courses and Qualification,2201112929,"-2,529.50",Local Government Association
http://statistics.data.gov.uk/id/local-authority/38,Oxfordshire County Council,HSF Welfare Support Grant & FSM support,24/05/2023,4939,,3111434426,"-2,520.00",The Town Nursery School
http://statistics.data.gov.uk/id/local-authority/38,Oxfordshire County Council,Care Homes - Over 65 Physical Sypport,10/05/2023,5687,,3111426311,"-2,418.03",Four Seasons (Headington) Ltd
http://statistics.data.gov.uk/id/local-authority/38,Oxfordshire County Council,HSF Welfare Support Grant & FSM support,24/05/2023,4939,,3111434447,"-2,415.00",Willowcroft Community School
http://statistics.data.gov.uk/id/local-authority/38,Oxfordshire County Council,Care Homes - Over 65 Memory & Cognition,10/05/2023,5685,B*Cycle tracks,3111422746,"-2,398.92",Orders of St John
http://statistics.data.gov.uk/id/local-authority/38,Oxfordshire County Council,MAINSTREAM-SECONDARY,19/05/2023,4322,"Season Tickets - Bus, Rail & Ferry",3111430073,"-2,355.00",Oxford Bus Company Ltd
http://statistics.data.gov.uk/id/local-authority/38,Oxfordshire County Council,Support at Home 65+ Memory & Cognition,23/05/2023,5699,,3111432880,"-2,329.52",PLL Care Services
http://statistics.data.gov.uk/id/local-authority/38,Oxfordshire County Council,Support at Home 65+ Memory & Cognition,23/05/2023,5699,,3111432935,"-2,322.48",PLL Care Services
http://statistics.data.gov.uk/id/local-authority/38,Oxfordshire County Council,HSF Welfare Support Grant & FSM support,24/05/2023,4939,,3111434350,"-2,310.00",Rose Hill Primary School
http://statistics.data.gov.uk/id/local-authority/38,Oxfordshire County Council,Care Homes - Over 65 Physical Sypport,10/05/2023,5687,,3111426312,"-2,247.96",Four Seasons (Headington) Ltd
http://statistics.data.gov.uk/id/local-authority/38,Oxfordshire County Council,HSF Welfare Support Grant & FSM support,24/05/2023,4939,,3111434288,"-2,205.00",Little Oak Pre-School
http://statistics.data.gov.uk/id/local-authority/38,Oxfordshire County Council,Care Homes - Over 65 Physical Sypport,10/05/2023,5687,,3111422752,"-2,203.99",Banbury Heights Nursing Home
http://statistics.data.gov.uk/id/local-authority/38,Oxfordshire County Council,Care Homes - Over 65 Mental Health,10/05/2023,5657,,3111423120,"-2,144.19",Bridge House
http://statistics.data.gov.uk/id/local-authority/38,Oxfordshire County Council,Care Homes - Over 65 Physical Sypport,10/05/2023,5686,,3111424723,"-2,075.86",Enstone House
http://statistics.data.gov.uk/id/local-authority/38,Oxfordshire County Council,Care Homes - Over 65 Physical Sypport,10/05/2023,5687,,3111423354,"-2,042.37",METHODIST HOMES
http://statistics.data.gov.uk/id/local-authority/38,Oxfordshire County Council,Continuing Care - Care Homes - 65+,10/05/2023,5687,,3111426382,"-1,991.19",The Langston
http://statistics.data.gov.uk/id/local-authority/38,Oxfordshire County Council,Care Homes - Over 65 Physical Sypport,10/05/2023,5685,B*Cycle tracks,3111424356,"-1,980.29",Coxwell Hall & Mews Nursing Home
http://statistics.data.gov.uk/id/local-authority/38,Oxfordshire County Council,Care Homes - Over 65 Physical Sypport,10/05/2023,5687,,3111425421,"-1,935.71",The Julie Richardson Nursing Home
http://statistics.data.gov.uk/id/local-authority/38,Oxfordshire County Council,HSF Welfare Support Grant & FSM support,24/05/2023,4939,,3111434225,"-1,890.00",Faringdon Infant School - Adademy
http://statistics.data.gov.uk/id/local-authority/38,Oxfordshire County Council,HSF Welfare Support Grant & FSM support,24/05/2023,4939,,3111434292,"-1,890.00",LITTLE TREASURES ACADEMY
http://statistics.data.gov.uk/id/local-authority/38,Oxfordshire County Council,HSF Welfare Support Grant & FSM support,24/05/2023,4939,,3111434341,"-1,890.00",Rainbow Village Nursery
http://statistics.data.gov.uk/id/local-authority/38,Oxfordshire County Council,Funded Nursing Care  - Over 65,10/05/2023,5692,,3111422360,"-1,868.02",Abbey Crest Nursing Home
http://statistics.data.gov.uk/id/local-authority/38,Oxfordshire County Council,CHC Fast Track - Care Homes - Over 65,10/05/2023,5687,,3111426212,"-1,857.60",The Close Nursing Home
http://statistics.data.gov.uk/id/local-authority/38,Oxfordshire County Council,Care Homes - Over 65 Physical Sypport,10/05/2023,5687,,3111426636,"-1,857.24",MARIA MALLABAND CARE GROUP
http://statistics.data.gov.uk/id/local-authority/38,Oxfordshire County Council,HSF Welfare Support Grant & FSM support,24/05/2023,4939,,3111434143,"-1,785.00",Bayards Hill Primary School
http://statistics.data.gov.uk/id/local-authority/38,Oxfordshire County Council,Funded Nursing Care  - Over 65,10/05/2023,5692,,3111425878,"-1,778.37",RICHMOND VILLAGE WITNEY
http://statistics.data.gov.uk/id/local-authority/38,Oxfordshire County Council,Children in Care Non-staffing - North,03/05/2023,5227,Other Transport Arrangements,3111418793,"-1,744.00",Her Ride Limited
http://statistics.data.gov.uk/id/local-authority/38,Oxfordshire County Council,Funded Nursing Care  - Over 65,10/05/2023,5692,,3111422347,"-1,718.60",Abbey Crest Nursing Home
http://statistics.data.gov.uk/id/local-authority/38,Oxfordshire County Council,HSF Welfare Support Grant & FSM support,24/05/2023,4939,,3111434425,"-1,680.00",The Sunshine Centre
http://statistics.data.gov.uk/id/local-authority/38,Oxfordshire County Council,MAINSTREAM-SECONDARY,22/05/2023,4322,"Season Tickets - Bus, Rail & Ferry",3111430210,"-1,672.75",Oxford Bus Company Ltd
http://statistics.data.gov.uk/id/local-authority/38,Oxfordshire County Council,Support at Home 65+ Physical Support,23/05/2023,5699,,3111433079,"-1,556.48",Xperience Recruitment Ltd
http://statistics.data.gov.uk/id/local-authority/38,Oxfordshire County Council,OCC Discharge Funding Allocation,10/05/2023,5687,,3111425028,"-1,500.00",LAWTON GROUP LTD
http://statistics.data.gov.uk/id/local-authority/38,Oxfordshire County Council,HSF Welfare Support Grant & FSM support,24/05/2023,4939,,3111434428,"-1,470.00",The Village Nursery
http://statistics.data.gov.uk/id/local-authority/38,Oxfordshire County Council,Funded Nursing Care  - Over 65,10/05/2023,5692,,3111422343,"-1,419.76",Abbey Crest Nursing Home
http://statistics.data.gov.uk/id/local-authority/38,Oxfordshire County Council,Funded Nursing Care  - Over 65,10/05/2023,5692,,3111423101,"-1,419.76",Bridge House
http://statistics.data.gov.uk/id/local-authority/38,Oxfordshire County Council,Funded Nursing Care  - Over 65,10/05/2023,5692,,3111423179,"-1,419.76",Bridge House
http://statistics.data.gov.uk/id/local-authority/38,Oxfordshire County Council,Support at Home 65+ Learning Disability,10/05/2023,5690,,3111422224,"-1,408.55",HF TRUST Ltd
http://statistics.data.gov.uk/id/local-authority/38,Oxfordshire County Council,Continuing Care - Care Homes - 65+,10/05/2023,5687,,3111426642,"-1,400.00",MARIA MALLABAND CARE GROUP
http://statistics.data.gov.uk/id/local-authority/38,Oxfordshire County Council,Funded Nursing Care  - Over 65,10/05/2023,5692,,3111422332,"-1,389.87",Abbey Crest Nursing Home
http://statistics.data.gov.uk/id/local-authority/38,Oxfordshire County Council,CHC Fast Track - Care Homes - Over 65,10/05/2023,5687,,3111426668,"-1,371.43",MARIA MALLABAND CARE GROUP
http://statistics.data.gov.uk/id/local-authority/38,Oxfordshire County Council,HSF Welfare Support Grant & FSM support,24/05/2023,4939,,3111434205,"-1,365.00",Redacted Personal Data 
http://statistics.data.gov.uk/id/local-authority/38,Oxfordshire County Council,HSF Welfare Support Grant & FSM support,24/05/2023,4939,,3111434325,"-1,365.00",Orchard Meadow Primary School
http://statistics.data.gov.uk/id/local-authority/38,Oxfordshire County Council,POST 16 SEN,02/05/2023,4330,Transport to School Activities,3111418494,"-1,359.00",The Oxfordshire Taxi Company Ltd T/
http://statistics.data.gov.uk/id/local-authority/38,Oxfordshire County Council,Support at Home 65+ Physical Support,23/05/2023,5689,,3111432641,"-1,307.93",Same Ways Care Ltd
http://statistics.data.gov.uk/id/local-authority/38,Oxfordshire County Council,HSF Welfare Support Grant & FSM support,24/05/2023,4939,,3111434323,"-1,260.00",Northbourne CE(A) Primary School
http://statistics.data.gov.uk/id/local-authority/38,Oxfordshire County Council,HSF Welfare Support Grant & FSM support,24/05/2023,4939,,3111434365,"-1,260.00",Small Steps Day Nursery Ltd
http://statistics.data.gov.uk/id/local-authority/38,Oxfordshire County Council,HSF Welfare Support Grant & FSM support,24/05/2023,4939,,3111434376,"-1,260.00",St Christophers Primary School -
http://statistics.data.gov.uk/id/local-authority/38,Oxfordshire County Council,POST 16 SEN,02/05/2023,4330,Transport to School Activities,3111418493,"-1,254.00",The Oxfordshire Taxi Company Ltd T/
http://statistics.data.gov.uk/id/local-authority/38,Oxfordshire County Council,Support at Home 65+ Memory & Cognition,10/05/2023,5686,,3111423082,"-1,247.71",Orders of St John
http://statistics.data.gov.uk/id/local-authority/38,Oxfordshire County Council,Care Homes - Over 65 Memory & Cognition,10/05/2023,5685,B*Cycle tracks,3111426256,"-1,239.95",The Grange Care Centre
http://statistics.data.gov.uk/id/local-authority/38,Oxfordshire County Council,Support at Home 65+ Physical Support,23/05/2023,5699,,3111432705,"-1,184.96",HEALTHCARE ACCESS LTD
http://statistics.data.gov.uk/id/local-authority/38,Oxfordshire County Council,ALTERNATIVES TO CARE,10/05/2023,2040,Agency Staff,2201109626,"-1,167.04",THORNBURY NURSING SERVICES
http://statistics.data.gov.uk/id/local-authority/38,Oxfordshire County Council,HSF Welfare Support Grant & FSM support,24/05/2023,4939,,3111434233,"-1,155.00",Hadden Hill Nursery and Pre-School
http://statistics.data.gov.uk/id/local-authority/38,Oxfordshire County Council,HSF Welfare Support Grant & FSM support,24/05/2023,4939,,3111434236,"-1,155.00",Hanborough Pre-School
http://statistics.data.gov.uk/id/local-authority/38,Oxfordshire County Council,HSF Welfare Support Grant & FSM support,24/05/2023,4939,,3111434431,"-1,155.00",Redacted Personal Data 
http://statistics.data.gov.uk/id/local-authority/38,Oxfordshire County Council,HSF Welfare Support Grant & FSM support,24/05/2023,4939,,3111434438,"-1,155.00",Wantage CE Primary School # Academy
http://statistics.data.gov.uk/id/local-authority/38,Oxfordshire County Council,Care Homes - Over 65 Physical Sypport,10/05/2023,5687,,3111424826,"-1,137.43",Fewcott Healthcare Ltd
http://statistics.data.gov.uk/id/local-authority/38,Oxfordshire County Council,Support at Home 65+ Physical Support,23/05/2023,5699,,3111432587,"-1,071.00",Direct Link Care Ltd
http://statistics.data.gov.uk/id/local-authority/38,Oxfordshire County Council,Support at Home 65+ Physical Support,23/05/2023,5689,,3111432530,"-1,058.40",PLL Care Services
http://statistics.data.gov.uk/id/local-authority/38,Oxfordshire County Council,CHC Fast Track - Sup at Homes - Over 65,10/05/2023,5691,,3111422189,"-1,058.00",Sue Ryder
http://statistics.data.gov.uk/id/local-authority/38,Oxfordshire County Council,LD Continuing Care - Sup at Home - U65,16/05/2023,5691,,3111428545,"-1,052.98",Paterson Recruitment
http://statistics.data.gov.uk/id/local-authority/38,Oxfordshire County Council,HSF Welfare Support Grant & FSM support,24/05/2023,4939,,3111434265,"-1,050.00",Culham After School Club
http://statistics.data.gov.uk/id/local-authority/38,Oxfordshire County Council,HSF Welfare Support Grant & FSM support,24/05/2023,4939,,3111434226,"-1,050.00",Forest Farm (Oxford Montessori Nurs
http://statistics.data.gov.uk/id/local-authority/38,Oxfordshire County Council,HSF Welfare Support Grant & FSM support,24/05/2023,4939,,3111434264,"-1,050.00",Kiddies Korner
http://statistics.data.gov.uk/id/local-authority/38,Oxfordshire County Council,HSF Welfare Support Grant & FSM support,24/05/2023,4939,,3111434272,"-1,050.00",Ladybird Pre-School Limited
http://statistics.data.gov.uk/id/local-authority/38,Oxfordshire County Council,HSF Welfare Support Grant & FSM support,24/05/2023,4939,,3111434290,"-1,050.00",Little Pippins Pre-Schoo
http://statistics.data.gov.uk/id/local-authority/38,Oxfordshire County Council,HSF Welfare Support Grant & FSM support,24/05/2023,4939,,3111434342,"-1,050.00",Rainbow (Bicester)
http://statistics.data.gov.uk/id/local-authority/38,Oxfordshire County Council,HSF Welfare Support Grant & FSM support,24/05/2023,4939,,3111434372,"-1,050.00",Southwold Primary School Academy
http://statistics.data.gov.uk/id/local-authority/38,Oxfordshire County Council,HSF Welfare Support Grant & FSM support,24/05/2023,4939,,3111434378,"-1,050.00",St. James CofE Primary School
http://statistics.data.gov.uk/id/local-authority/38,Oxfordshire County Council,HSF Welfare Support Grant & FSM support,24/05/2023,4939,,3111434414,"-1,050.00",The Elms Primary School
http://statistics.data.gov.uk/id/local-authority/38,Oxfordshire County Council,HSF Welfare Support Grant & FSM support,24/05/2023,4939,,3111434446,"-1,050.00",The Willow On The Farm Nursery Ltd
http://statistics.data.gov.uk/id/local-authority/38,Oxfordshire County Council,HSF Welfare Support Grant & FSM support,24/05/2023,4939,,3111434434,"-1,050.00",Tower Hill School
http://statistics.data.gov.uk/id/local-authority/38,Oxfordshire County Council,COMM DRAWDOWN FUNDNG,03/05/2023,8103,Payments to sub contractor,2201107364,"-1,044.02",AECOM Infrastructure & Environment
http://statistics.data.gov.uk/id/local-authority/38,Oxfordshire County Council,VRS Maint & Mgmt,16/05/2023,5526,Payments to Private Contractors,2201111559,"-1,043.96",Milestone Infrastructure Limited
http://statistics.data.gov.uk/id/local-authority/38,Oxfordshire County Council,Funded Nursing Care  - Over 65,10/05/2023,5692,,3111425319,"-1,019.84",Heathfield House Nursing Home
http://statistics.data.gov.uk/id/local-authority/38,Oxfordshire County Council,Funded Nursing Care  - Over 65,10/05/2023,5692,,3111423809,"-1,001.38",Chacombe Park Care Home
http://statistics.data.gov.uk/id/local-authority/38,Oxfordshire County Council,Funded Nursing Care  - Over 65,10/05/2023,5692,,3111423734,"-1,001.38",WT UK Opco 4 Ltd C/O Care UK
http://statistics.data.gov.uk/id/local-authority/38,Oxfordshire County Council,COMM DRAWDOWN FUNDNG,16/05/2023,8102,Payments to main contractor,2201111563,"-1,001.16",Milestone Infrastructure Limited
http://statistics.data.gov.uk/id/local-authority/38,Oxfordshire County Council,CHC Fast Track - Care Homes - Over 65,10/05/2023,5687,,3111424565,"-1,000.00",CUMNOR HILL HOUSE
http://statistics.data.gov.uk/id/local-authority/38,Oxfordshire County Council,Care Homes - Over 65 Memory & Cognition,10/05/2023,5687,,3111425281,-993.23,Cedar Court Care Home
http://statistics.data.gov.uk/id/local-authority/38,Oxfordshire County Council,Continuing Care - Care Homes - 65+,10/05/2023,5687,,3111425324,-974.57,Heathfield House Nursing Home
http://statistics.data.gov.uk/id/local-authority/38,Oxfordshire County Council,CHC Fast Track - Care Homes - Over 65,10/05/2023,5687,,3111424570,-971.43,CUMNOR HILL HOUSE
http://statistics.data.gov.uk/id/local-authority/38,Oxfordshire County Council,Children in Care Non-staffing - Centrl 2,22/05/2023,5227,Other Transport Arrangements,9300060016,-958.58,OCC SS Oxford City Div 1 Bank
http://statistics.data.gov.uk/id/local-authority/38,Oxfordshire County Council,HSF Welfare Support Grant & FSM support,24/05/2023,4939,,3111434170,-945.00,Camel Pre-School (PFSU)
http://statistics.data.gov.uk/id/local-authority/38,Oxfordshire County Council,HSF Welfare Support Grant & FSM support,24/05/2023,4939,,3111434186,-945.00,Chipping Norton Pre-school
http://statistics.data.gov.uk/id/local-authority/38,Oxfordshire County Council,HSF Welfare Support Grant & FSM support,24/05/2023,4939,,3111434232,-945.00,Grow Learn Play Project CIC
http://statistics.data.gov.uk/id/local-authority/38,Oxfordshire County Council,HSF Welfare Support Grant & FSM support,24/05/2023,4939,,3111434154,-945.00,Kids Unlimited (Clearwater Place)
http://statistics.data.gov.uk/id/local-authority/38,Oxfordshire County Council,HSF Welfare Support Grant & FSM support,24/05/2023,4939,,3111434274,-945.00,Ladybirds @ Riverside
http://statistics.data.gov.uk/id/local-authority/38,Oxfordshire County Council,HSF Welfare Support Grant & FSM support,24/05/2023,4939,,3111434322,-945.00,North Leigh Pre-School CIO
http://statistics.data.gov.uk/id/local-authority/38,Oxfordshire County Council,HSF Welfare Support Grant & FSM support,24/05/2023,4939,,3111434348,-945.00,Rockwell House Day Nursery & Sch
http://statistics.data.gov.uk/id/local-authority/38,Oxfordshire County Council,HSF Welfare Support Grant & FSM support,24/05/2023,4939,,3111434387,-945.00,St Nicolas Pre-School and Playgroup
http://statistics.data.gov.uk/id/local-authority/38,Oxfordshire County Council,HSF Welfare Support Grant & FSM support,24/05/2023,4939,,3111434435,-945.00,Redacted Personal Data 
http://statistics.data.gov.uk/id/local-authority/38,Oxfordshire County Council,Funded Nursing Care  - Over 65,10/05/2023,5692,,3111425590,-941.61,Meadow View Nursing Home
http://statistics.data.gov.uk/id/local-authority/38,Oxfordshire County Council,Funded Nursing Care  - Over 65,10/05/2023,5692,,3111425821,-941.61,Penhurst Gardens
http://statistics.data.gov.uk/id/local-authority/38,Oxfordshire County Council,CHC Fast Track - Sup at Homes - Over 65,16/05/2023,5691,,3111428602,-939.00,JMC Care Solutions Limited
http://statistics.data.gov.uk/id/local-authority/38,Oxfordshire County Council,CHC Fast Track - Sup at Homes - Over 65,18/05/2023,5691,,3111429628,-936.00,JMC Care Solutions Limited
http://statistics.data.gov.uk/id/local-authority/38,Oxfordshire County Council,CHC Fast Track - Sup at Homes - Over 65,18/05/2023,5691,,3111429629,-936.00,JMC Care Solutions Limited
http://statistics.data.gov.uk/id/local-authority/38,Oxfordshire County Council,CHC Fast Track - Sup at Homes - Over 65,18/05/2023,5691,,3111429630,-936.00,JMC Care Solutions Limited
http://statistics.data.gov.uk/id/local-authority/38,Oxfordshire County Council,CHC Fast Track - Sup at Homes - Over 65,18/05/2023,5691,,3111429631,-936.00,JMC Care Solutions Limited
http://statistics.data.gov.uk/id/local-authority/38,Oxfordshire County Council,Care Homes - Over 65 Physical Sypport,10/05/2023,5687,,3111425674,-928.22,Mill House Nursing Home
http://statistics.data.gov.uk/id/local-authority/38,Oxfordshire County Council,NURSERY ED FUND,05/05/2023,5537,Payments to Other Establishments,3111419320,-913.50,People Place & Participation LTD
http://statistics.data.gov.uk/id/local-authority/38,Oxfordshire County Council,Funded Nursing Care  - Over 65,10/05/2023,5692,,3111424243,-910.23,CHURCHFIELDS CARE HOME
http://statistics.data.gov.uk/id/local-authority/38,Oxfordshire County Council,Support at Home 65+ Physical Support,10/05/2023,5686,,3111423161,-907.43,Orders of St John
http://statistics.data.gov.uk/id/local-authority/38,Oxfordshire County Council,MAINSTREAM-SECONDARY,11/05/2023,4322,"Season Tickets - Bus, Rail & Ferry",3111427209,-842.25,Oxford Bus Company Ltd
http://statistics.data.gov.uk/id/local-authority/38,Oxfordshire County Council,HSF Welfare Support Grant & FSM support,24/05/2023,4939,,3111434149,-840.00,Botley Primary School
http://statistics.data.gov.uk/id/local-authority/38,Oxfordshire County Council,HSF Welfare Support Grant & FSM support,24/05/2023,4939,,3111434156,-840.00,Bright Start Pre-school
http://statistics.data.gov.uk/id/local-authority/38,Oxfordshire County Council,HSF Welfare Support Grant & FSM support,24/05/2023,4939,,3111434182,-840.00,Cherubs Nursery and After Class Lim
http://statistics.data.gov.uk/id/local-authority/38,Oxfordshire County Council,HSF Welfare Support Grant & FSM support,24/05/2023,4939,,3111434187,-840.00,Cholsey Pre-School (PFSU)
http://statistics.data.gov.uk/id/local-authority/38,Oxfordshire County Council,HSF Welfare Support Grant & FSM support,24/05/2023,4939,,3111434204,-840.00,Dashwood Banbury Academy
http://statistics.data.gov.uk/id/local-authority/38,Oxfordshire County Council,HSF Welfare Support Grant & FSM support,24/05/2023,4939,,3111434215,-840.00,Dunmore Pre-School Association
http://statistics.data.gov.uk/id/local-authority/38,Oxfordshire County Council,HSF Welfare Support Grant & FSM support,24/05/2023,4939,,3111434218,-840.00,Eynsham Community
http://statistics.data.gov.uk/id/local-authority/38,Oxfordshire County Council,HSF Welfare Support Grant & FSM support,24/05/2023,4939,,3111434255,-840.00,Redacted Personal Data 
http://statistics.data.gov.uk/id/local-authority/38,Oxfordshire County Council,HSF Welfare Support Grant & FSM support,24/05/2023,4939,,3111434289,-840.00,Little Peeple Nursery
http://statistics.data.gov.uk/id/local-authority/38,Oxfordshire County Council,HSF Welfare Support Grant & FSM support,24/05/2023,4939,,3111434309,-840.00,Millbrook Primary School
http://statistics.data.gov.uk/id/local-authority/38,Oxfordshire County Council,HSF Welfare Support Grant & FSM support,24/05/2023,4939,,3111434384,-840.00,St Marys School (Henley)
http://statistics.data.gov.uk/id/local-authority/38,Oxfordshire County Council,HSF Welfare Support Grant & FSM support,24/05/2023,4939,,3111434448,-840.00,Windale Community Primary School
http://statistics.data.gov.uk/id/local-authority/38,Oxfordshire County Council,COMM DRAWDOWN FUNDNG,17/05/2023,8102,Payments to main contractor,2201112601,-820.83,Milestone Infrastructure Limited
http://statistics.data.gov.uk/id/local-authority/38,Oxfordshire County Council,STI TESTING+TREATMEN,23/05/2023,4940,Other Services,3111433328,-820.68,Great Western Hospital NHS FT
http://statistics.data.gov.uk/id/local-authority/38,Oxfordshire County Council,Oxfordshire Adoption Support Fund,24/05/2023,4861,Hired and Contracted Services,2201114634,-814.00,Gateway Psychology Ltd.
http://statistics.data.gov.uk/id/local-authority/38,Oxfordshire County Council,Support at Home U65 Physical Support,23/05/2023,5699,,3111431931,-793.80,Calvary Care Ltd
http://statistics.data.gov.uk/id/local-authority/38,Oxfordshire County Council,NURSERY ED FUND,02/05/2023,5537,Payments to Other Establishments,3111417703,-783.00,Expansive Education Ltd
http://statistics.data.gov.uk/id/local-authority/38,Oxfordshire County Council,NURSERY ED FUND,02/05/2023,5537,Payments to Other Establishments,3111417704,-783.00,Expansive Education Ltd
http://statistics.data.gov.uk/id/local-authority/38,Oxfordshire County Council,NURSERY ED FUND,02/05/2023,5537,Payments to Other Establishments,3111417705,-783.00,Expansive Education Ltd
http://statistics.data.gov.uk/id/local-authority/38,Oxfordshire County Council,NURSERY ED FUND,02/05/2023,5537,Payments to Other Establishments,3111417707,-783.00,Expansive Education Ltd
http://statistics.data.gov.uk/id/local-authority/38,Oxfordshire County Council,NURSERY ED FUND,02/05/2023,5537,Payments to Other Establishments,3111417708,-783.00,Expansive Education Ltd
http://statistics.data.gov.uk/id/local-authority/38,Oxfordshire County Council,NURSERY ED FUND,02/05/2023,5537,Payments to Other Establishments,3111417710,-783.00,Expansive Education Ltd
http://statistics.data.gov.uk/id/local-authority/38,Oxfordshire County Council,NURSERY ED FUND,02/05/2023,5537,Payments to Other Establishments,3111417712,-783.00,Expansive Education Ltd
http://statistics.data.gov.uk/id/local-authority/38,Oxfordshire County Council,NURSERY ED FUND,02/05/2023,5537,Payments to Other Establishments,3111417715,-783.00,Expansive Education Ltd
http://statistics.data.gov.uk/id/local-authority/38,Oxfordshire County Council,NURSERY ED FUND,02/05/2023,5537,Payments to Other Establishments,3111417720,-783.00,Expansive Education Ltd
http://statistics.data.gov.uk/id/local-authority/38,Oxfordshire County Council,NURSERY ED FUND,02/05/2023,5537,Payments to Other Establishments,3111417722,-783.00,Expansive Education Ltd
http://statistics.data.gov.uk/id/local-authority/38,Oxfordshire County Council,Care Homes - Over 65 Physical Sypport,10/05/2023,5687,,3111425005,-774.29,Freeland House
http://statistics.data.gov.uk/id/local-authority/38,Oxfordshire County Council,Funded Nursing Care  - Over 65,10/05/2023,5692,,3111422390,-753.29,ACER HEALTHCARE LTD
http://statistics.data.gov.uk/id/local-authority/38,Oxfordshire County Council,Funded Nursing Care  - Over 65,10/05/2023,5692,,3111425652,-753.29,Middletown Grange Care Home
http://statistics.data.gov.uk/id/local-authority/38,Oxfordshire County Council,HSF Welfare Support Grant & FSM support,24/05/2023,4939,,3111434168,-735.00,Butterflies Pre-School Didcot CIO
http://statistics.data.gov.uk/id/local-authority/38,Oxfordshire County Council,HSF Welfare Support Grant & FSM support,24/05/2023,4939,,3111434184,-735.00,Child First (Bicester)
http://statistics.data.gov.uk/id/local-authority/38,Oxfordshire County Council,HSF Welfare Support Grant & FSM support,24/05/2023,4939,,3111434410,-735.00,Co-Op JR Nursery
http://statistics.data.gov.uk/id/local-authority/38,Oxfordshire County Council,HSF Welfare Support Grant & FSM support,24/05/2023,4939,,3111434197,-735.00,Cranford House School
http://statistics.data.gov.uk/id/local-authority/38,Oxfordshire County Council,HSF Welfare Support Grant & FSM support,24/05/2023,4939,,3111434231,-735.00,Grovelands Park Pre-School
http://statistics.data.gov.uk/id/local-authority/38,Oxfordshire County Council,HSF Welfare Support Grant & FSM support,24/05/2023,4939,,3111434247,-735.00,Hill View Primary School
http://statistics.data.gov.uk/id/local-authority/38,Oxfordshire County Council,HSF Welfare Support Grant & FSM support,24/05/2023,4939,,3111434314,-735.00,Redacted Personal Data 
http://statistics.data.gov.uk/id/local-authority/38,Oxfordshire County Council,HSF Welfare Support Grant & FSM support,24/05/2023,4939,,3111434327,-735.00,Paddocks Pre-School
http://statistics.data.gov.uk/id/local-authority/38,Oxfordshire County Council,HSF Welfare Support Grant & FSM support,24/05/2023,4939,,3111434370,-735.00,South Moreton Pre-School
http://statistics.data.gov.uk/id/local-authority/38,Oxfordshire County Council,HSF Welfare Support Grant & FSM support,24/05/2023,4939,,3111434373,-735.00,Sparkling Minds Pre-School& Day Nur
http://statistics.data.gov.uk/id/local-authority/38,Oxfordshire County Council,HSF Welfare Support Grant & FSM support,24/05/2023,4939,,3111434383,-735.00,St Marys Playgroup
http://statistics.data.gov.uk/id/local-authority/38,Oxfordshire County Council,HSF Welfare Support Grant & FSM support,24/05/2023,4939,,3111434404,-735.00,The Aunties' Old School Nursery
http://statistics.data.gov.uk/id/local-authority/38,Oxfordshire County Council,HSF Welfare Support Grant & FSM support,24/05/2023,4939,,3111434449,-735.00,Windrush Church of England Primary
http://statistics.data.gov.uk/id/local-authority/38,Oxfordshire County Council,NURSERY ED FUND,02/05/2023,5537,Payments to Other Establishments,3111417709,-704.76,Expansive Education Ltd
http://statistics.data.gov.uk/id/local-authority/38,Oxfordshire County Council,Funded Nursing Care  - Over 65,10/05/2023,5692,,3111422339,-690.52,Abbey Crest Nursing Home
http://statistics.data.gov.uk/id/local-authority/38,Oxfordshire County Council,Funded Nursing Care  - Over 65,10/05/2023,5692,,3111423631,-690.52,CARE UK COMMUNITY PARTNERSHIPS LIMI
http://statistics.data.gov.uk/id/local-authority/38,Oxfordshire County Council,CHC Fast Track - Care Homes - Over 65,10/05/2023,5687,,3111425639,-664.29,Middletown Grange Care Home
http://statistics.data.gov.uk/id/local-authority/38,Oxfordshire County Council,Support at Home U65 Physical Support,23/05/2023,5699,,3111432728,-659.28,Home Helpers Care Ltd
http://statistics.data.gov.uk/id/local-authority/38,Oxfordshire County Council,Funded Nursing Care  - Over 65,10/05/2023,5692,,3111422357,-659.13,Abbey Crest Nursing Home
http://statistics.data.gov.uk/id/local-authority/38,Oxfordshire County Council,Support at Home 65+ Physical Support,23/05/2023,5689,,3111432043,-652.55,Golden Services Care Ltd
http://statistics.data.gov.uk/id/local-authority/38,Oxfordshire County Council,NURSERY ED FUND,02/05/2023,5537,Payments to Other Establishments,3111417718,-652.50,Steeple Aston Pre-School
http://statistics.data.gov.uk/id/local-authority/38,Oxfordshire County Council,HSF Welfare Support Grant & FSM support,24/05/2023,4939,,3111434133,-630.00,Abbey Woods Academy
http://statistics.data.gov.uk/id/local-authority/38,Oxfordshire County Council,HSF Welfare Support Grant & FSM support,24/05/2023,4939,,3111434142,-630.00,Barton Park Primary School
http://statistics.data.gov.uk/id/local-authority/38,Oxfordshire County Council,HSF Welfare Support Grant & FSM support,24/05/2023,4939,,3111434145,-630.00,Benson C of E Primary School
http://statistics.data.gov.uk/id/local-authority/38,Oxfordshire County Council,HSF Welfare Support Grant & FSM support,24/05/2023,4939,,3111434273,-630.00,Bridges Childcare
http://statistics.data.gov.uk/id/local-authority/38,Oxfordshire County Council,HSF Welfare Support Grant & FSM support,24/05/2023,4939,,3111434169,-630.00,Redacted Personal Data 
http://statistics.data.gov.uk/id/local-authority/38,Oxfordshire County Council,HSF Welfare Support Grant & FSM support,24/05/2023,4939,,3111434178,-630.00,Chasewell Playgroup
http://statistics.data.gov.uk/id/local-authority/38,Oxfordshire County Council,HSF Welfare Support Grant & FSM support,24/05/2023,4939,,3111434411,-630.00,Co-Op Oxford Nursery
http://statistics.data.gov.uk/id/local-authority/38,Oxfordshire County Council,HSF Welfare Support Grant & FSM support,24/05/2023,4939,,3111434412,-630.00,Co-Op Rose Hill Nursery
http://statistics.data.gov.uk/id/local-authority/38,Oxfordshire County Council,HSF Welfare Support Grant & FSM support,24/05/2023,4939,,3111434219,-630.00,Eynsham Community
http://statistics.data.gov.uk/id/local-authority/38,Oxfordshire County Council,HSF Welfare Support Grant & FSM support,24/05/2023,4939,,3111434237,-630.00,Hanwell Field School - Academy
http://statistics.data.gov.uk/id/local-authority/38,Oxfordshire County Council,HSF Welfare Support Grant & FSM support,24/05/2023,4939,,3111434259,-630.00,John Henry Newman Academy
http://statistics.data.gov.uk/id/local-authority/38,Oxfordshire County Council,HSF Welfare Support Grant & FSM support,24/05/2023,4939,,3111434263,-630.00,Redacted Personal Data 
http://statistics.data.gov.uk/id/local-authority/38,Oxfordshire County Council,HSF Welfare Support Grant & FSM support,24/05/2023,4939,,3111434269,-630.00,Kingfisher Kindergarten
http://statistics.data.gov.uk/id/local-authority/38,Oxfordshire County Council,HSF Welfare Support Grant & FSM support,24/05/2023,4939,,3111434275,-630.00,Ladygrove Day Nursery and Nursery S
http://statistics.data.gov.uk/id/local-authority/38,Oxfordshire County Council,HSF Welfare Support Grant & FSM support,24/05/2023,4939,,3111434282,-630.00,Little Bears Pre-School (PFSU)
http://statistics.data.gov.uk/id/local-authority/38,Oxfordshire County Council,HSF Welfare Support Grant & FSM support,24/05/2023,4939,,3111434295,-630.00,Longford Park Primary School
http://statistics.data.gov.uk/id/local-authority/38,Oxfordshire County Council,HSF Welfare Support Grant & FSM support,24/05/2023,4939,,3111434304,-630.00,Redacted Personal Data 
http://statistics.data.gov.uk/id/local-authority/38,Oxfordshire County Council,HSF Welfare Support Grant & FSM support,24/05/2023,4939,,3111434317,-630.00,New Trinity Pre-School
http://statistics.data.gov.uk/id/local-authority/38,Oxfordshire County Council,HSF Welfare Support Grant & FSM support,24/05/2023,4939,,3111434344,-630.00,Redacted Personal Data 
http://statistics.data.gov.uk/id/local-authority/38,Oxfordshire County Council,HSF Welfare Support Grant & FSM support,24/05/2023,4939,,3111434351,-630.00,Rush Common Pre-School
http://statistics.data.gov.uk/id/local-authority/38,Oxfordshire County Council,HSF Welfare Support Grant & FSM support,24/05/2023,4939,,3111434367,-630.00,Sonning Common Pre-School
http://statistics.data.gov.uk/id/local-authority/38,Oxfordshire County Council,HSF Welfare Support Grant & FSM support,24/05/2023,4939,,3111434380,-630.00,St Josephs Catholic Primary School
http://statistics.data.gov.uk/id/local-authority/38,Oxfordshire County Council,HSF Welfare Support Grant & FSM support,24/05/2023,4939,,3111434402,-630.00,Thameside Primary School
http://statistics.data.gov.uk/id/local-authority/38,Oxfordshire County Council,HSF Welfare Support Grant & FSM support,24/05/2023,4939,,3111434413,-630.00,The Cottage Nursery
http://statistics.data.gov.uk/id/local-authority/38,Oxfordshire County Council,HSF Welfare Support Grant & FSM support,24/05/2023,4939,,3111434417,-630.00,The Old Station Nursery
http://statistics.data.gov.uk/id/local-authority/38,Oxfordshire County Council,HSF Welfare Support Grant & FSM support,24/05/2023,4939,,3111434421,-630.00,The Oratory Prep School
http://statistics.data.gov.uk/id/local-authority/38,Oxfordshire County Council,HSF Welfare Support Grant & FSM support,24/05/2023,4939,,3111434443,-630.00,Whitchurch Pre-School Group
http://statistics.data.gov.uk/id/local-authority/38,Oxfordshire County Council,Funded Nursing Care  - Over 65,10/05/2023,5692,,3111426683,-627.74,Caring Homes Healthcare Group Ltd
http://statistics.data.gov.uk/id/local-authority/38,Oxfordshire County Council,COMM DRAWDOWN FUNDNG,16/05/2023,8102,Payments to main contractor,2201111561,-598.49,Milestone Infrastructure Limited
http://statistics.data.gov.uk/id/local-authority/38,Oxfordshire County Council,Funded Nursing Care  - Over 65,10/05/2023,5692,,3111422386,-596.36,ACER HEALTHCARE LTD
http://statistics.data.gov.uk/id/local-authority/38,Oxfordshire County Council,Funded Nursing Care  - Over 65,10/05/2023,5692,,3111426115,-596.36,St. Lukes Oxford - Free Nursing
http://statistics.data.gov.uk/id/local-authority/38,Oxfordshire County Council,Care Homes - Over 65 Physical Sypport,10/05/2023,5686,,3111425940,-594.21,The Shrublands Centre
http://statistics.data.gov.uk/id/local-authority/38,Oxfordshire County Council,Care Homes - Over 65 Memory & Cognition,10/05/2023,5686,,3111426440,-577.70,The Ridings (Anchor Trust)
http://statistics.data.gov.uk/id/local-authority/38,Oxfordshire County Council,Care Homes - Over 65 Physical Sypport,10/05/2023,5687,,3111424060,-568.71,Cherwood House Care Centre
http://statistics.data.gov.uk/id/local-authority/38,Oxfordshire County Council,LEAVING CARE SOUTH,12/05/2023,5415,Residential Activities,9300059914,-562.23,OCC SS Oxford City Div 1 Bank
http://statistics.data.gov.uk/id/local-authority/38,Oxfordshire County Council,NURSERY ED FUND,02/05/2023,5537,Payments to Other Establishments,3111417721,-548.16,Expansive Education Ltd
http://statistics.data.gov.uk/id/local-authority/38,Oxfordshire County Council,Care Homes - Over 65 Physical Sypport,10/05/2023,5686,,3111425232,-542.86,ROSEBERRY CARE CENTRES ENGLAND
http://statistics.data.gov.uk/id/local-authority/38,Oxfordshire County Council,YP PATHWAY,30/05/2023,5785,Client Lodgings and Accommodation,3111435135,-542.80,Response Organisation
http://statistics.data.gov.uk/id/local-authority/38,Oxfordshire County Council,HSF Welfare Support Grant & FSM support,24/05/2023,4939,,3111434159,-525.00,Broadhill Pre-School
http://statistics.data.gov.uk/id/local-authority/38,Oxfordshire County Council,HSF Welfare Support Grant & FSM support,24/05/2023,4939,,3111434167,-525.00,Busy Bees Playgroup (Thame)
http://statistics.data.gov.uk/id/local-authority/38,Oxfordshire County Council,HSF Welfare Support Grant & FSM support,24/05/2023,4939,,3111434185,-525.00,Childrey Little Ducks Pre-School
http://statistics.data.gov.uk/id/local-authority/38,Oxfordshire County Council,HSF Welfare Support Grant & FSM support,24/05/2023,4939,,3111434194,-525.00,Complete Childcare Ltd
http://statistics.data.gov.uk/id/local-authority/38,Oxfordshire County Council,HSF Welfare Support Grant & FSM support,24/05/2023,4939,,3111434408,-525.00,Co-Op Carterton Nursery
http://statistics.data.gov.uk/id/local-authority/38,Oxfordshire County Council,HSF Welfare Support Grant & FSM support,24/05/2023,4939,,3111434239,-525.00,Hardwick Primary School Academy
http://statistics.data.gov.uk/id/local-authority/38,Oxfordshire County Council,HSF Welfare Support Grant & FSM support,24/05/2023,4939,,3111434254,-525.00,Jack & Jill Playgroup
http://statistics.data.gov.uk/id/local-authority/38,Oxfordshire County Council,HSF Welfare Support Grant & FSM support,24/05/2023,4939,,3111434278,-525.00,Larkrise Primary School
http://statistics.data.gov.uk/id/local-authority/38,Oxfordshire County Council,HSF Welfare Support Grant & FSM support,24/05/2023,4939,,3111434281,-525.00,Little Acorns Pre-school Kingsmere
http://statistics.data.gov.uk/id/local-authority/38,Oxfordshire County Council,HSF Welfare Support Grant & FSM support,24/05/2023,4939,,3111434285,-525.00,Little Dots Daycare Ltd
http://statistics.data.gov.uk/id/local-authority/38,Oxfordshire County Council,HSF Welfare Support Grant & FSM support,24/05/2023,4939,,3111434305,-525.00,Marcham Playgroup
http://statistics.data.gov.uk/id/local-authority/38,Oxfordshire County Council,HSF Welfare Support Grant & FSM support,24/05/2023,4939,,3111434340,-525.00,Rainbow Pre-School
http://statistics.data.gov.uk/id/local-authority/38,Oxfordshire County Council,HSF Welfare Support Grant & FSM support,24/05/2023,4939,,3111434343,-525.00,Rainbows Day Nursery
http://statistics.data.gov.uk/id/local-authority/38,Oxfordshire County Council,HSF Welfare Support Grant & FSM support,24/05/2023,4939,,3111434349,-525.00,Redacted Personal Data 
http://statistics.data.gov.uk/id/local-authority/38,Oxfordshire County Council,HSF Welfare Support Grant & FSM support,24/05/2023,4939,,3111434377,-525.00,St Hugh of Lincoln Nursery School
http://statistics.data.gov.uk/id/local-authority/38,Oxfordshire County Council,HSF Welfare Support Grant & FSM support,24/05/2023,4939,,3111434419,-525.00,The The Old Station Nursery Ltd
http://statistics.data.gov.uk/id/local-authority/38,Oxfordshire County Council,HSF Welfare Support Grant & FSM support,24/05/2023,4939,,3111434433,-525.00,Redacted Personal Data 
http://statistics.data.gov.uk/id/local-authority/38,Oxfordshire County Council,CHC Fast Track - Sup at Homes - Over 65,10/05/2023,5691,,3111422190,-506.00,Sue Ryder
http://statistics.data.gov.uk/id/local-authority/38,Oxfordshire County Council,LEGAL BUDGET,18/05/2023,5251,Legal Costs,2201112993,500.00,Boardman Hawkins and Osborne
http://statistics.data.gov.uk/id/local-authority/38,Oxfordshire County Council,Councillors Priorities Fund,15/05/2023,4940,Other Services,3111427742,500.00,Fencott and Mercott Parish Council
http://statistics.data.gov.uk/id/local-authority/38,Oxfordshire County Council,OCC Discharge Funding Allocation,16/05/2023,5195,Grant Aid and Donations,3111428463,500.00,GET CARE LIMITED
http://statistics.data.gov.uk/id/local-authority/38,Oxfordshire County Council,Alcohol Prevention,25/05/2023,3100,Educational and Vocational Training,2201115383,500.00,Humankind Charity
http://statistics.data.gov.uk/id/local-authority/38,Oxfordshire County Council,LAC PUPIL PREMIUM,16/05/2023,5537,Payments to Other Establishments,3111427953,500.00,John Blandy Primary School
http://statistics.data.gov.uk/id/local-authority/38,Oxfordshire County Council,HIGHWAYS GENERAL,18/05/2023,5055,Insurance Costs,3111429412,500.00,OCC One Time Vendor
http://statistics.data.gov.uk/id/local-authority/38,Oxfordshire County Council,Marketing,19/05/2023,5360,Exhibitions (Purchase/Hire/Production),3111429792,500.00,OCC One Time Vendor
http://statistics.data.gov.uk/id/local-authority/38,Oxfordshire County Council,HIGHWAYS GENERAL,19/05/2023,5055,Insurance Costs,3111429833,500.00,OCC One Time Vendor
http://statistics.data.gov.uk/id/local-authority/38,Oxfordshire County Council,WIDER TOBACCO CONTRL,22/05/2023,4940,Other Services,3111430303,500.00,OCC One Time Vendor
http://statistics.data.gov.uk/id/local-authority/38,Oxfordshire County Council,HIGHWAYS GENERAL,26/05/2023,5055,Insurance Costs,3111435058,500.00,OCC One Time Vendor
http://statistics.data.gov.uk/id/local-authority/38,Oxfordshire County Council,Support at Home U65 Learning Disability,11/05/2023,5227,Other Transport Arrangements,3111427038,500.00,Oxon Transport Services Ltd
http://statistics.data.gov.uk/id/local-authority/38,Oxfordshire County Council,Care Packages & Placements- LD - OCC,15/05/2023,5227,Other Transport Arrangements,3111427544,500.00,Oxon Transport Services Ltd
http://statistics.data.gov.uk/id/local-authority/38,Oxfordshire County Council,L&D CORE PROGRAMME,15/05/2023,3103,Other Training Courses and Qualification,2201110907,500.00,Premier Partnership
http://statistics.data.gov.uk/id/local-authority/38,Oxfordshire County Council,LAC PUPIL PREMIUM,16/05/2023,5537,Payments to Other Establishments,3111427988,500.00,Redbridge Alternative Provision
http://statistics.data.gov.uk/id/local-authority/38,Oxfordshire County Council,Fire Protection,11/05/2023,5251,Legal Costs,2201110083,500.00,Richard Heller
http://statistics.data.gov.uk/id/local-authority/38,Oxfordshire County Council,Voice of Customer,23/05/2023,3103,Other Training Courses and Qualification,2201114272,500.00,The Commission for Local Administra
http://statistics.data.gov.uk/id/local-authority/38,Oxfordshire County Council,POST 16 SEN,16/05/2023,4330,Transport to School Activities,3111427815,500.00,The Oxfordshire Taxi Company Ltd T/
http://statistics.data.gov.uk/id/local-authority/38,Oxfordshire County Council,Councillors Priorities Fund,15/05/2023,4940,Other Services,3111427735,500.00,Wild Oxfordshire
http://statistics.data.gov.uk/id/local-authority/38,Oxfordshire County Council,Councillors Priorities Fund,15/05/2023,4940,Other Services,3111427730,500.00,Windrush Radio Limited
http://statistics.data.gov.uk/id/local-authority/38,Oxfordshire County Council,Family Solutions Plus Non-staff - North,02/05/2023,5365,Non-Staff Subsistence and Expenses,3500095388,500.00,Redacted Personal Data 
http://statistics.data.gov.uk/id/local-authority/38,Oxfordshire County Council,VOIDS/VACANCY COSTS,10/05/2023,3945,Rent,3111424973,500.25,Oxford Citizens Housing Association
http://statistics.data.gov.uk/id/local-authority/38,Oxfordshire County Council,FLEET MAINTENANCE,16/05/2023,4236,Vehicle Equipment and Running Expen,2201111513,500.36,GRUNDON WASTE MANAGEMENT LTD
http://statistics.data.gov.uk/id/local-authority/38,Oxfordshire County Council,CONTRACEPTION,19/05/2023,4933,,3111430422,501.00,28 Beaumont Street
http://statistics.data.gov.uk/id/local-authority/38,Oxfordshire County Council,Support at Home U65 Learning Disability,23/05/2023,5689,,3111432111,501.78,Greigcare Home Service
http://statistics.data.gov.uk/id/local-authority/38,Oxfordshire County Council,FOSTERING MAIN,16/05/2023,5548,B*Fostering - Special Rates & Plus Amou,3111428267,501.98,Redacted Personal Data 
http://statistics.data.gov.uk/id/local-authority/38,Oxfordshire County Council,FOSTERING MAIN,30/05/2023,5548,B*Fostering - Special Rates & Plus Amou,3111435956,501.98,Redacted Personal Data 
http://statistics.data.gov.uk/id/local-authority/38,Oxfordshire County Council,LANDLORD & TENANT,30/05/2023,4001,Uniform Business Rates,3500096136,502.00,West Oxfordshire District Council
http://statistics.data.gov.uk/id/local-authority/38,Oxfordshire County Council,LANDLORD & TENANT,30/05/2023,4001,Uniform Business Rates,3500096140,502.00,West Oxfordshire District Council
http://statistics.data.gov.uk/id/local-authority/38,Oxfordshire County Council,Support at Home U65 MH OBC Contract,10/05/2023,5693,,3111422000,502.30,Henley Care Ltd
http://statistics.data.gov.uk/id/local-authority/38,Oxfordshire County Council,WASTE RECYCLING,31/05/2023,5526,Payments to Private Contractors,2201116392,503.50,Fraser Evans & Sons Ltd
http://statistics.data.gov.uk/id/local-authority/38,Oxfordshire County Council,Support at Home 65+ Physical Support,03/05/2023,5693,,3111418719,503.63,Care with Care Ltd
http://statistics.data.gov.uk/id/local-authority/38,Oxfordshire County Council,POST 16 SEN,16/05/2023,4330,Transport to School Activities,3111427821,504.00,The Oxfordshire Taxi Company Ltd T/
http://statistics.data.gov.uk/id/local-authority/38,Oxfordshire County Council,Continuing Care - Support at Home - U65,12/05/2023,5691,,3111427467,504.05,Helping Hands
http://statistics.data.gov.uk/id/local-authority/38,Oxfordshire County Council,FAM GRP CONFERENCES,05/05/2023,4940,Other Services,2201108484,504.06,Emma Wood
http://statistics.data.gov.uk/id/local-authority/38,Oxfordshire County Council,Support at Home U65 Learning Disability,12/05/2023,5697,,3111427338,504.20,Trinity Carers Services Ltd
http://statistics.data.gov.uk/id/local-authority/38,Oxfordshire County Council,Support at Home U65 MH OBC Contract,09/05/2023,5899,Social Care - Direct Payments,3111420520,504.32,Connection Support (Oxford)
http://statistics.data.gov.uk/id/local-authority/38,Oxfordshire County Council,Support at Home 65+ Physical Support,23/05/2023,5693,,3111432298,504.34,My Carer Ltd
http://statistics.data.gov.uk/id/local-authority/38,Oxfordshire County Council,Support at Home 65+ Mental Health,23/05/2023,5696,,3111431497,504.85,Radis Community Care
http://statistics.data.gov.uk/id/local-authority/38,Oxfordshire County Council,POST 16 SEN,09/05/2023,4330,Transport to School Activities,3111419609,505.00,AMBASSADOR CARS (OXON) LTD
http://statistics.data.gov.uk/id/local-authority/38,Oxfordshire County Council,Support at Home U65 Learning Disability,09/05/2023,5227,Other Transport Arrangements,3111419610,505.00,AMBASSADOR CARS (OXON) LTD
http://statistics.data.gov.uk/id/local-authority/38,Oxfordshire County Council,Support at Home 65+ Mental Health,24/05/2023,5697,,3111433347,505.00,Helping Hands for Hoarders
http://statistics.data.gov.uk/id/local-authority/38,Oxfordshire County Council,Support at Home U65 Mental Health,30/05/2023,5696,,3111435272,505.52,Orders of St John Care Trust
http://statistics.data.gov.uk/id/local-authority/38,Oxfordshire County Council,VACANT PROPERTY,03/05/2023,3950,Non System - Gas,3111418764,505.64,EDF Energy Customers plc
http://statistics.data.gov.uk/id/local-authority/38,Oxfordshire County Council,CHC Fast Track - Sup at Homes - Over 65,05/05/2023,5691,,3111419435,506.00,Sue Ryder
http://statistics.data.gov.uk/id/local-authority/38,Oxfordshire County Council,FOSTERING MAIN,23/05/2023,5227,Other Transport Arrangements,3111431015,506.16,Redacted Personal Data 
http://statistics.data.gov.uk/id/local-authority/38,Oxfordshire County Council,Support at Home U65 Learning Disability,09/05/2023,5899,Social Care - Direct Payments,3111421376,507.24,Purple Conversation Com In Co (DP)
http://statistics.data.gov.uk/id/local-authority/38,Oxfordshire County Council,PMO,19/05/2023,4495,IT Software,2201113414,507.60,Insight Direct (UK) Ltd
http://statistics.data.gov.uk/id/local-authority/38,Oxfordshire County Council,SM DISABILITIES,26/05/2023,5554,Childrens' Social Care - Direct Payments,3111434944,507.60,Purple Conversation Com In Co (DP)
http://statistics.data.gov.uk/id/local-authority/38,Oxfordshire County Council,SM DISABILITIES,26/05/2023,5554,Childrens' Social Care - Direct Payments,3111434920,507.64,Purple Conversation Com In Co (DP)
http://statistics.data.gov.uk/id/local-authority/38,Oxfordshire County Council,Support at Home 65+ Physical Support,23/05/2023,5699,,3111432755,508.20,Mega Resources Ltd
http://statistics.data.gov.uk/id/local-authority/38,Oxfordshire County Council,STI TESTING+TREATMEN,02/05/2023,4940,Other Services,3111417591,508.72,Nottingham University Hospitals
http://statistics.data.gov.uk/id/local-authority/38,Oxfordshire County Council,Support at Home U65 Physical Support,10/05/2023,5690,,3111422284,508.84,The Camden Society
http://statistics.data.gov.uk/id/local-authority/38,Oxfordshire County Council,Support at Home U65 Learning Disability,10/05/2023,5690,,3111422290,508.84,The Camden Society
http://statistics.data.gov.uk/id/local-authority/38,Oxfordshire County Council,Support at Home U65 Learning Disability,10/05/2023,5690,,3111422303,508.84,The Camden Society
http://statistics.data.gov.uk/id/local-authority/38,Oxfordshire County Council,SPECIAL GUARDIANSHIP,30/05/2023,5661,B*Carriageway pre surf. dressing patchin,3111435880,509.31,Redacted Personal Data 
http://statistics.data.gov.uk/id/local-authority/38,Oxfordshire County Council,Oxfordshire Adoption Support Fund,10/05/2023,4861,Hired and Contracted Services,2201109668,510.00,Carol Peachey
http://statistics.data.gov.uk/id/local-authority/38,Oxfordshire County Council,ON ST PARK OXFD P&D,30/05/2023,4861,Hired and Contracted Services,2201116049,510.00,Flowbird Smart City
http://statistics.data.gov.uk/id/local-authority/38,Oxfordshire County Council,SEN TRANSPORT,16/05/2023,4330,Transport to School Activities,3111428981,510.95,001 Alpha Cars Ltd
http://statistics.data.gov.uk/id/local-authority/38,Oxfordshire County Council,LANDLORD & TENANT,30/05/2023,4001,Uniform Business Rates,3500096158,511.00,South Oxfordshire District Council
http://statistics.data.gov.uk/id/local-authority/38,Oxfordshire County Council,Homes for Ukraine - Education,12/05/2023,5537,Payments to Other Establishments,3111427921,511.00,The Manor Preparatory Sc
http://statistics.data.gov.uk/id/local-authority/38,Oxfordshire County Council,Support at Home U65 Physical Support,09/05/2023,5899,Social Care - Direct Payments,3111421048,511.28,Redacted Personal Data 
http://statistics.data.gov.uk/id/local-authority/38,Oxfordshire County Council,SHARED LIVES,10/05/2023,5555,Payments to Carers,3111426783,511.44,Redacted Personal Data 
http://statistics.data.gov.uk/id/local-authority/38,Oxfordshire County Council,Support at Home U65 Learning Disability,09/05/2023,5899,Social Care - Direct Payments,3111421266,511.96,Purple Conversation Com In Co (DP)
http://statistics.data.gov.uk/id/local-authority/38,Oxfordshire County Council,Support at Home 65+ Other /Soc Isolation,10/05/2023,5693,,3111421999,512.00,Redacted Personal Data 
http://statistics.data.gov.uk/id/local-authority/38,Oxfordshire County Council,POST 16 SEN,11/05/2023,4330,Transport to School Activities,3111426950,512.00,R & S Travel Services Ltd T/A A 2 Z
http://statistics.data.gov.uk/id/local-authority/38,Oxfordshire County Council,Community Support Service Banbury,25/05/2023,2040,Agency Staff,2201115260,512.40,Completely Care Ltd
http://statistics.data.gov.uk/id/local-authority/38,Oxfordshire County Council,Supervised Consumption APL,02/05/2023,4934,,3111419661,512.48,Faringdon Pharmacy (Sanbol)
http://statistics.data.gov.uk/id/local-authority/38,Oxfordshire County Council,Support at Home U65 MH OBC Contract,09/05/2023,5899,Social Care - Direct Payments,3111421453,512.60,Purple Conversation Com In Co (DP)
http://statistics.data.gov.uk/id/local-authority/38,Oxfordshire County Council,Support at Home U65 Learning Disability,09/05/2023,5899,Social Care - Direct Payments,3111420892,512.96,Redacted Personal Data 
http://statistics.data.gov.uk/id/local-authority/38,Oxfordshire County Council,SERVICES/SUPPLIES,26/05/2023,4540,"Educational Supplies, Stationery & Mater",2201115687,513.00,Tacpac Ltd
http://statistics.data.gov.uk/id/local-authority/38,Oxfordshire County Council,Support at Home 65+ Physical Support,09/05/2023,5899,Social Care - Direct Payments,3111421721,513.20,Purple Conversation Com In Co (DP)
http://statistics.data.gov.uk/id/local-authority/38,Oxfordshire County Council,Support at Home 65+ Mental Health,09/05/2023,5899,Social Care - Direct Payments,3111421788,513.40,Rosekel Resourcing Ltd
http://statistics.data.gov.uk/id/local-authority/38,Oxfordshire County Council,Planned Maintenance,10/05/2023,4861,Hired and Contracted Services,2201109350,514.50,Barker & Evans Ltd
http://statistics.data.gov.uk/id/local-authority/38,Oxfordshire County Council,Support at Home 65+ Physical Support,18/05/2023,5227,Other Transport Arrangements,3111429747,514.86,The Oxfordshire Taxi Company Ltd T/
http://statistics.data.gov.uk/id/local-authority/38,Oxfordshire County Council,CORONER,18/05/2023,5202,Use of Mortuary Services,2201112954,515.00,ORAMIS DIGITAL AUTOPSY LTD
http://statistics.data.gov.uk/id/local-authority/38,Oxfordshire County Council,Support at Home 65+ Physical Support,23/05/2023,5689,,3111431730,515.03,Care Outlook Ltd
http://statistics.data.gov.uk/id/local-authority/38,Oxfordshire County Council,Support at Home U65 Mental Health,23/05/2023,5699,,3111432594,515.06,Direct Link Care Ltd
http://statistics.data.gov.uk/id/local-authority/38,Oxfordshire County Council,VOIDS/VACANCY COSTS,10/05/2023,3945,Rent,3111424969,515.22,Oxford Citizens Housing Association
http://statistics.data.gov.uk/id/local-authority/38,Oxfordshire County Council,VOIDS/VACANCY COSTS,10/05/2023,3945,Rent,3111424971,515.22,Oxford Citizens Housing Association
http://statistics.data.gov.uk/id/local-authority/38,Oxfordshire County Council,Independent Foster,10/05/2023,5559,,3111422065,516.00,Alliance Foster Care Limited
http://statistics.data.gov.uk/id/local-authority/38,Oxfordshire County Council,Independent Foster,10/05/2023,5559,,3111422066,516.00,Alliance Foster Care Limited
http://statistics.data.gov.uk/id/local-authority/38,Oxfordshire County Council,CHC Fast Track - Sup at Home - Under 65,16/05/2023,5691,,3111428559,516.24,Paterson Recruitment
http://statistics.data.gov.uk/id/local-authority/38,Oxfordshire County Council,CHC Fast Track - Sup at Home - Under 65,16/05/2023,5691,,3111428561,516.24,Paterson Recruitment
http://statistics.data.gov.uk/id/local-authority/38,Oxfordshire County Council,SHARED LIVES,10/05/2023,5555,Payments to Carers,3111426761,516.39,Redacted Personal Data 
http://statistics.data.gov.uk/id/local-authority/38,Oxfordshire County Council,COMM DRAWDOWN FUNDNG,22/05/2023,8103,Payments to sub contractor,2201113581,516.65,Network Rail Infrastructure Ltd
http://statistics.data.gov.uk/id/local-authority/38,Oxfordshire County Council,COMM DRAWDOWN FUNDNG,22/05/2023,8103,Payments to sub contractor,2201113584,516.65,Network Rail Infrastructure Ltd
http://statistics.data.gov.uk/id/local-authority/38,Oxfordshire County Council,LEAVING CARE CITY 2,02/05/2023,5663,B*Birthday Allowance,9300059824,517.20,OCC SS Oxford City Div 1 Cash
http://statistics.data.gov.uk/id/local-authority/38,Oxfordshire County Council,LIBRARY COLLECTIONS,15/05/2023,4539,"Books, DVDs and CDs",3111427685,517.37,ASKEWS & HOLTS LIBRARY SERVICES LTD
http://statistics.data.gov.uk/id/local-authority/38,Oxfordshire County Council,Support at Home U65 Learning Disability,09/05/2023,5899,Social Care - Direct Payments,3111421668,517.48,Purple Conversation Com In Co (DP)
http://statistics.data.gov.uk/id/local-authority/38,Oxfordshire County Council,Support at Home U65 Learning Disability,23/05/2023,5682,,3111431177,517.66,The Brandon Trust
http://statistics.data.gov.uk/id/local-authority/38,Oxfordshire County Council,Support at Home 65+ Physical Support,23/05/2023,5693,,3111432566,517.81,Premier Personal Care
http://statistics.data.gov.uk/id/local-authority/38,Oxfordshire County Council,FOSTERING MAIN,09/05/2023,5227,Other Transport Arrangements,3111420438,517.97,Redacted Personal Data 
http://statistics.data.gov.uk/id/local-authority/38,Oxfordshire County Council,LIABILITY,18/05/2023,3153,,3111429413,518.00,OCC One Time Vendor
http://statistics.data.gov.uk/id/local-authority/38,Oxfordshire County Council,STREET SWEEPINGS,31/05/2023,5526,Payments to Private Contractors,2201116220,519.37,M & M Skip Hire Ltd
http://statistics.data.gov.uk/id/local-authority/38,Oxfordshire County Council,Family Solutions Plus Non-staff - North,11/05/2023,5227,Other Transport Arrangements,9300059893,519.60,OCC SS Banbury Area Off Cash
http://statistics.data.gov.uk/id/local-authority/38,Oxfordshire County Council,Support at Home 65+ Memory & Cognition,09/05/2023,5899,Social Care - Direct Payments,3111421766,519.96,Purple Conversation Com In Co (DP)
http://statistics.data.gov.uk/id/local-authority/38,Oxfordshire County Council,TRANSPORT COSTS,09/05/2023,5227,Other Transport Arrangements,3111419723,520.00,Her Ride Limited
http://statistics.data.gov.uk/id/local-authority/38,Oxfordshire County Council,Support at Home U65 Learning Disability,26/05/2023,5227,Other Transport Arrangements,3111435071,520.00,Oxfordlinks
http://statistics.data.gov.uk/id/local-authority/38,Oxfordshire County Council,Support at Home U65 Learning Disability,10/05/2023,5690,,3111424498,520.80,Style Acre
http://statistics.data.gov.uk/id/local-authority/38,Oxfordshire County Council,Support at Home U65 Learning Disability,10/05/2023,5690,,3111424205,520.80,Turnstyle
http://statistics.data.gov.uk/id/local-authority/38,Oxfordshire County Council,Support at Home U65 HFA,09/05/2023,5899,Social Care - Direct Payments,3111420733,520.84,Redacted Personal Data 
http://statistics.data.gov.uk/id/local-authority/38,Oxfordshire County Council,OPERATIONS,16/05/2023,4685,Clothing and Uniforms,2201111932,520.90,ARCO
http://statistics.data.gov.uk/id/local-authority/38,Oxfordshire County Council,Support at Home U65 Physical Support,09/05/2023,5899,Social Care - Direct Payments,3111421485,521.20,Purple Conversation Com In Co (DP)
http://statistics.data.gov.uk/id/local-authority/38,Oxfordshire County Council,Support at Home 65+ Mental Health,23/05/2023,5699,,3111431461,521.93,Adult Transition Services Ltd (ATrS
http://statistics.data.gov.uk/id/local-authority/38,Oxfordshire County Council,Support at Home 65+ Physical Support,23/05/2023,5699,,3111432523,521.93,Day and Nightcare Assistance
http://statistics.data.gov.uk/id/local-authority/38,Oxfordshire County Council,Support at Home U65 Physical Support,23/05/2023,5693,,3111432032,521.93,Genuine Carers Ltd
http://statistics.data.gov.uk/id/local-authority/38,Oxfordshire County Council,Support at Home 65+ Physical Support,23/05/2023,5699,,3111432958,521.93,Prime Social Care Services Ltd
http://statistics.data.gov.uk/id/local-authority/38,Oxfordshire County Council,PROCUREMENT,19/05/2023,4495,IT Software,2201113192,522.00,C Track UK
http://statistics.data.gov.uk/id/local-authority/38,Oxfordshire County Council,DISABILITIES TEAM-N,05/05/2023,5227,Other Transport Arrangements,3111419337,522.00,Schon Executive Cars Ltd
http://statistics.data.gov.uk/id/local-authority/38,Oxfordshire County Council,Funded Nursing Care  - Over 65,10/05/2023,5692,,3111426120,523.06,St. Lukes Oxford - Free Nursing
http://statistics.data.gov.uk/id/local-authority/38,Oxfordshire County Council,FAM GRP CONFERENCES,31/05/2023,4940,Other Services,2201116324,523.07,Tanya Goodall
http://statistics.data.gov.uk/id/local-authority/38,Oxfordshire County Council,Support at Home U65 Learning Disability,09/05/2023,5899,Social Care - Direct Payments,3111421519,523.56,Purple Conversation Com In Co (DP)
http://statistics.data.gov.uk/id/local-authority/38,Oxfordshire County Council,CONTRACT MANAGEMENT,30/05/2023,4001,Uniform Business Rates,3500096034,524.00,Cherwell District Council
http://statistics.data.gov.uk/id/local-authority/38,Oxfordshire County Council,FAM GRP CONFERENCES,11/05/2023,4940,Other Services,2201110328,524.17,Jessica Howards
http://statistics.data.gov.uk/id/local-authority/38,Oxfordshire County Council,Support at Home 65+ Physical Support,23/05/2023,5689,,3111431659,524.18,Bicester PA and Care LLP
http://statistics.data.gov.uk/id/local-authority/38,Oxfordshire County Council,FLEET COSTS,09/05/2023,4270,HTM / Other Vehicle - Hire Charges,2201108989,524.40,Go Plant Fleet Services
http://statistics.data.gov.uk/id/local-authority/38,Oxfordshire County Council,HSF Welfare Support Grant & FSM support,24/05/2023,4939,,3111433590,525.00,Broadhill Pre-School
http://statistics.data.gov.uk/id/local-authority/38,Oxfordshire County Council,HSF Welfare Support Grant & FSM support,24/05/2023,4939,,3111433598,525.00,Busy Bees Playgroup (Thame)
http://statistics.data.gov.uk/id/local-authority/38,Oxfordshire County Council,HSF Welfare Support Grant & FSM support,24/05/2023,4939,,3111433616,525.00,Childrey Little Ducks Pre-School
http://statistics.data.gov.uk/id/local-authority/38,Oxfordshire County Council,HSF Welfare Support Grant & FSM support,24/05/2023,4939,,3111433625,525.00,Complete Childcare Ltd
http://statistics.data.gov.uk/id/local-authority/38,Oxfordshire County Council,HSF Welfare Support Grant & FSM support,24/05/2023,4939,,3111433839,525.00,Co-Op Carterton Nursery
http://statistics.data.gov.uk/id/local-authority/38,Oxfordshire County Council,HSF Welfare Support Grant & FSM support,25/05/2023,4939,,3111434722,525.00,Co-Op Oxford Nursery
http://statistics.data.gov.uk/id/local-authority/38,Oxfordshire County Council,HSF Welfare Support Grant & FSM support,25/05/2023,4939,,3111434557,525.00,Hagbourne Pre-School
http://statistics.data.gov.uk/id/local-authority/38,Oxfordshire County Council,HSF Welfare Support Grant & FSM support,24/05/2023,4939,,3111433670,525.00,Hardwick Primary School Academy
http://statistics.data.gov.uk/id/local-authority/38,Oxfordshire County Council,HSF Welfare Support Grant & FSM support,25/05/2023,4939,,3111434562,525.00,Hardwick Primary School Academy
http://statistics.data.gov.uk/id/local-authority/38,Oxfordshire County Council,HSF Welfare Support Grant & FSM support,25/05/2023,4939,,3111434568,525.00,Hill View Primary School
http://statistics.data.gov.uk/id/local-authority/38,Oxfordshire County Council,HSF Welfare Support Grant & FSM support,25/05/2023,4939,,3111434570,525.00,Horspath Pre-School Nursery
http://statistics.data.gov.uk/id/local-authority/38,Oxfordshire County Council,HSF Welfare Support Grant & FSM support,24/05/2023,4939,,3111433685,525.00,Jack & Jill Playgroup
http://statistics.data.gov.uk/id/local-authority/38,Oxfordshire County Council,HSF Welfare Support Grant & FSM support,25/05/2023,4939,,3111434581,525.00,Kennington Playgroup
http://statistics.data.gov.uk/id/local-authority/38,Oxfordshire County Council,HSF Welfare Support Grant & FSM support,24/05/2023,4939,,3111433709,525.00,Larkrise Primary School
http://statistics.data.gov.uk/id/local-authority/38,Oxfordshire County Council,HSF Welfare Support Grant & FSM support,25/05/2023,4939,,3111434600,525.00,Larkrise Primary School
http://statistics.data.gov.uk/id/local-authority/38,Oxfordshire County Council,HSF Welfare Support Grant & FSM support,24/05/2023,4939,,3111433712,525.00,Little Acorns Pre-school Kingsmere
http://statistics.data.gov.uk/id/local-authority/38,Oxfordshire County Council,HSF Welfare Support Grant & FSM support,24/05/2023,4939,,3111433716,525.00,Little Dots Daycare Ltd
http://statistics.data.gov.uk/id/local-authority/38,Oxfordshire County Council,HSF Welfare Support Grant & FSM support,25/05/2023,4939,,3111434614,525.00,LITTLE TREASURES ACADEMY
http://statistics.data.gov.uk/id/local-authority/38,Oxfordshire County Council,HSF Welfare Support Grant & FSM support,24/05/2023,4939,,3111433736,525.00,Marcham Playgroup
http://statistics.data.gov.uk/id/local-authority/38,Oxfordshire County Council,HSF Welfare Support Grant & FSM support,25/05/2023,4939,,3111434637,525.00,Redacted Personal Data 
http://statistics.data.gov.uk/id/local-authority/38,Oxfordshire County Council,HSF Welfare Support Grant & FSM support,25/05/2023,4939,,3111434643,525.00,North Hinksey Pre School & Childcar
http://statistics.data.gov.uk/id/local-authority/38,Oxfordshire County Council,HSF Welfare Support Grant & FSM support,25/05/2023,4939,,3111434645,525.00,Northbourne CE(A) Primary School
http://statistics.data.gov.uk/id/local-authority/38,Oxfordshire County Council,HSF Welfare Support Grant & FSM support,24/05/2023,4939,,3111433771,525.00,Rainbow Pre-School
http://statistics.data.gov.uk/id/local-authority/38,Oxfordshire County Council,HSF Welfare Support Grant & FSM support,24/05/2023,4939,,3111433774,525.00,Rainbows Day Nursery
http://statistics.data.gov.uk/id/local-authority/38,Oxfordshire County Council,HSF Welfare Support Grant & FSM support,24/05/2023,4939,,3111433780,525.00,Redacted Personal Data 
http://statistics.data.gov.uk/id/local-authority/38,Oxfordshire County Council,HSF Welfare Support Grant & FSM support,25/05/2023,4939,,3111434671,525.00,Sacred Heart Pre-School
http://statistics.data.gov.uk/id/local-authority/38,Oxfordshire County Council,HSF Welfare Support Grant & FSM support,24/05/2023,4939,,3111433808,525.00,St Hugh of Lincoln Nursery School
http://statistics.data.gov.uk/id/local-authority/38,Oxfordshire County Council,HSF Welfare Support Grant & FSM support,25/05/2023,4939,,3111434730,525.00,The Old Station Nursery Heyford Par
http://statistics.data.gov.uk/id/local-authority/38,Oxfordshire County Council,HSF Welfare Support Grant & FSM support,24/05/2023,4939,,3111433850,525.00,The The Old Station Nursery Ltd
http://statistics.data.gov.uk/id/local-authority/38,Oxfordshire County Council,HSF Welfare Support Grant & FSM support,23/05/2023,4939,,3111433160,525.00,The Warriner Multi Academy Trust
http://statistics.data.gov.uk/id/local-authority/38,Oxfordshire County Council,HSF Welfare Support Grant & FSM support,23/05/2023,4939,,3111433214,525.00,The Warriner Multi Academy Trust
http://statistics.data.gov.uk/id/local-authority/38,Oxfordshire County Council,HSF Welfare Support Grant & FSM support,24/05/2023,4939,,3111433864,525.00,Redacted Personal Data 
http://statistics.data.gov.uk/id/local-authority/38,Oxfordshire County Council,HSF Welfare Support Grant & FSM support,25/05/2023,4939,,3111434752,525.00,Wheatley CE Primary School
http://statistics.data.gov.uk/id/local-authority/38,Oxfordshire County Council,Support at Home U65 Learning Disability,09/05/2023,5899,Social Care - Direct Payments,3111420839,525.40,Redacted Personal Data 
http://statistics.data.gov.uk/id/local-authority/38,Oxfordshire County Council,Support at Home 65+ Physical Support,24/05/2023,5693,,3111433429,525.76,Enable Health Ltd
http://statistics.data.gov.uk/id/local-authority/38,Oxfordshire County Council,Support at Home U65 Physical Support,30/05/2023,5696,,3111435254,526.75,Orders of St John Care Trust
http://statistics.data.gov.uk/id/local-authority/38,Oxfordshire County Council,Support at Home 65+ Physical Support,23/05/2023,5696,,3111431328,526.80,All Care GB Ltd
http://statistics.data.gov.uk/id/local-authority/38,Oxfordshire County Council,Support at Home 65+ Memory & Cognition,23/05/2023,5696,,3111431469,526.80,Radis Community Care
http://statistics.data.gov.uk/id/local-authority/38,Oxfordshire County Council,Support at Home 65+ Physical Support,23/05/2023,5696,,3111431504,526.80,Radis Community Care
http://statistics.data.gov.uk/id/local-authority/38,Oxfordshire County Council,Support at Home U65 Learning Disability,10/05/2023,5690,,3111424107,527.33,MacIntyre Care (Womaston)
http://statistics.data.gov.uk/id/local-authority/38,Oxfordshire County Council,Support at Home 65+ Physical Support,09/05/2023,5899,Social Care - Direct Payments,3111421516,527.56,Purple Conversation Com In Co (DP)
http://statistics.data.gov.uk/id/local-authority/38,Oxfordshire County Council,SEN TRANSPORT,10/05/2023,4330,Transport to School Activities,3111421850,528.00,Daci Chauffeurs
http://statistics.data.gov.uk/id/local-authority/38,Oxfordshire County Council,Support at Home U65 Physical Support,10/05/2023,5690,,3111422217,528.11,ADVANCE HOUSING & SUPPORT LTD
http://statistics.data.gov.uk/id/local-authority/38,Oxfordshire County Council,Support at Home 65+ Learning Disability,10/05/2023,5690,,3111422269,528.11,Style Acre
http://statistics.data.gov.uk/id/local-authority/38,Oxfordshire County Council,Vegetation Mgmt,05/05/2023,5526,Payments to Private Contractors,3111419117,528.39,Watlington Parish Council
http://statistics.data.gov.uk/id/local-authority/38,Oxfordshire County Council,FOSTERING MAIN,23/05/2023,5549,B*Fostering Allowance - Regulation 38,3111431019,528.85,Redacted Personal Data 
http://statistics.data.gov.uk/id/local-authority/38,Oxfordshire County Council,FOSTERING MAIN,02/05/2023,5549,B*Fostering Allowance - Regulation 38,3111418272,529.00,Redacted Personal Data 
http://statistics.data.gov.uk/id/local-authority/38,Oxfordshire County Council,FOSTERING MAIN,09/05/2023,5549,B*Fostering Allowance - Regulation 38,3111420089,529.00,Redacted Personal Data 
http://statistics.data.gov.uk/id/local-authority/38,Oxfordshire County Council,FOSTERING MAIN,16/05/2023,5549,B*Fostering Allowance - Regulation 38,3111428264,529.00,Redacted Personal Data 
http://statistics.data.gov.uk/id/local-authority/38,Oxfordshire County Council,FOSTERING MAIN,23/05/2023,5549,B*Fostering Allowance - Regulation 38,3111430620,529.00,Redacted Personal Data 
http://statistics.data.gov.uk/id/local-authority/38,Oxfordshire County Council,FOSTERING MAIN,30/05/2023,5549,B*Fostering Allowance - Regulation 38,3111435638,529.00,Redacted Personal Data 
http://statistics.data.gov.uk/id/local-authority/38,Oxfordshire County Council,Support at Home U65 Memory & Cognition,09/05/2023,5899,Social Care - Direct Payments,3111421646,529.00,Purple Conversation Com In Co (DP)
http://statistics.data.gov.uk/id/local-authority/38,Oxfordshire County Council,Support at Home U65 Physical Support,26/05/2023,5693,,3111435020,529.20,BETTER LIFE CARE LTD
http://statistics.data.gov.uk/id/local-authority/38,Oxfordshire County Council,FLEET MAINTENANCE,23/05/2023,4210,Vehicles and Plant - Repairs and Main,2201114430,530.00,Maha UK Ltd
http://statistics.data.gov.uk/id/local-authority/38,Oxfordshire County Council,TRAINING MANAGEMENT,15/05/2023,3100,Educational and Vocational Training,2201110912,530.00,Premier Partnership
http://statistics.data.gov.uk/id/local-authority/38,Oxfordshire County Council,Witney Move on Home,25/05/2023,2040,Agency Staff,2201115237,530.10,Completely Care Ltd
http://statistics.data.gov.uk/id/local-authority/38,Oxfordshire County Council,Support at Home U65 Learning Disability,10/05/2023,5690,,3111424045,530.98,The Laurels (Witney)
http://statistics.data.gov.uk/id/local-authority/38,Oxfordshire County Council,Support at Home U65 Learning Disability,24/05/2023,5697,,3111433448,531.24,CaringPlus Healthcare Services Ltd
http://statistics.data.gov.uk/id/local-authority/38,Oxfordshire County Council,Support at Home U65 Other /Soc Isolation,09/05/2023,5899,Social Care - Direct Payments,3111421745,531.28,Purple Conversation Com In Co (DP)
http://statistics.data.gov.uk/id/local-authority/38,Oxfordshire County Council,Virtual School Post 16 PPP,22/05/2023,4270,HTM / Other Vehicle - Hire Charges,2201113711,531.43,OwnLife Residential Ltd
http://statistics.data.gov.uk/id/local-authority/38,Oxfordshire County Council,Support at Home U65 Learning Disability,09/05/2023,5899,Social Care - Direct Payments,3111420568,531.48,Redacted Personal Data 
http://statistics.data.gov.uk/id/local-authority/38,Oxfordshire County Council,Support at Home U65 Learning Disability,10/05/2023,5690,,3111424514,532.31,Style Acre
http://statistics.data.gov.uk/id/local-authority/38,Oxfordshire County Council,Community Support Service Banbury,16/05/2023,2040,Agency Staff,2201111866,532.80,Completely Care Ltd
http://statistics.data.gov.uk/id/local-authority/38,Oxfordshire County Council,UASC 16&17,24/05/2023,5663,B*Birthday Allowance,9300060054,533.40,OCC SS Oxford City Div 1 Cash
http://statistics.data.gov.uk/id/local-authority/38,Oxfordshire County Council,FOSTERING MAIN,09/05/2023,5549,B*Fostering Allowance - Regulation 38,3111419907,534.43,Redacted Personal Data 
http://statistics.data.gov.uk/id/local-authority/38,Oxfordshire County Council,MAINSTREAM-SECONDARY,03/05/2023,4322,"Season Tickets - Bus, Rail & Ferry",3111418804,535.00,Carousel Buses Ltd
http://statistics.data.gov.uk/id/local-authority/38,Oxfordshire County Council,COUNTY PRINT FINSHRS,04/05/2023,4705,Printing,2201107842,535.00,CLIFFE ENTERPRISE
http://statistics.data.gov.uk/id/local-authority/38,Oxfordshire County Council,FOSTERING MAIN,23/05/2023,5541,B*Foster Parents,3111430891,535.00,Redacted Personal Data 
http://statistics.data.gov.uk/id/local-authority/38,Oxfordshire County Council,FOSTERING MAIN,30/05/2023,5541,B*Foster Parents,3111435844,535.00,Redacted Personal Data 
http://statistics.data.gov.uk/id/local-authority/38,Oxfordshire County Council,FOSTERING MAIN,02/05/2023,5541,B*Foster Parents,3111418370,535.00,Redacted Personal Data 
http://statistics.data.gov.uk/id/local-authority/38,Oxfordshire County Council,FOSTERING MAIN,09/05/2023,5541,B*Foster Parents,3111420303,535.00,Redacted Personal Data 
http://statistics.data.gov.uk/id/local-authority/38,Oxfordshire County Council,FOSTERING MAIN,16/05/2023,5541,B*Foster Parents,3111428361,535.00,Redacted Personal Data 
http://statistics.data.gov.uk/id/local-authority/38,Oxfordshire County Council,FOSTERING MAIN,23/05/2023,5541,B*Foster Parents,3111430842,535.00,Redacted Personal Data 
http://statistics.data.gov.uk/id/local-authority/38,Oxfordshire County Council,FOSTERING MAIN,30/05/2023,5541,B*Foster Parents,3111435806,535.00,Redacted Personal Data 
http://statistics.data.gov.uk/id/local-authority/38,Oxfordshire County Council,Support at Home 65+ Memory & Cognition,19/05/2023,5693,,3111429956,535.60,Oxfordshire Crossroads
http://statistics.data.gov.uk/id/local-authority/38,Oxfordshire County Council,Support at Home U65 Learning Disability,23/05/2023,5682,,3111431072,535.61,The Brandon Trust
http://statistics.data.gov.uk/id/local-authority/38,Oxfordshire County Council,Support at Home 65+ Physical Support,23/05/2023,5699,,3111431371,535.67,Abi-Support Ltd
http://statistics.data.gov.uk/id/local-authority/38,Oxfordshire County Council,Support at Home 65+ Physical Support,23/05/2023,5699,,3111431946,535.67,Calvary Care Ltd
http://statistics.data.gov.uk/id/local-authority/38,Oxfordshire County Council,Support at Home 65+ Physical Support,23/05/2023,5699,,3111432713,535.67,Home Helpers Care Ltd
http://statistics.data.gov.uk/id/local-authority/38,Oxfordshire County Council,CHC Fast Track - Sup at Homes - Over 65,02/05/2023,5691,,3111418559,535.80,FiNN Homecare Ltd
http://statistics.data.gov.uk/id/local-authority/38,Oxfordshire County Council,UASC 16&17,16/05/2023,5665,B*Fostering Project Care Fee,9300059956,536.80,OCC SS Oxford City Div 1 Cash
http://statistics.data.gov.uk/id/local-authority/38,Oxfordshire County Council,FOSTERING MAIN,23/05/2023,5549,B*Fostering Allowance - Regulation 38,3111430474,536.90,Redacted Personal Data 
http://statistics.data.gov.uk/id/local-authority/38,Oxfordshire County Council,FOSTERING MAIN,30/05/2023,5549,B*Fostering Allowance - Regulation 38,3111435603,536.90,Redacted Personal Data 
http://statistics.data.gov.uk/id/local-authority/38,Oxfordshire County Council,LIBRARY COLLECTIONS,02/05/2023,4539,"Books, DVDs and CDs",3111417672,537.38,ASKEWS & HOLTS LIBRARY SERVICES LTD
http://statistics.data.gov.uk/id/local-authority/38,Oxfordshire County Council,Support at Home U65 MH OBC Contract,09/05/2023,5899,Social Care - Direct Payments,3111420543,537.56,Redacted Personal Data 
http://statistics.data.gov.uk/id/local-authority/38,Oxfordshire County Council,ECH Central Costs,10/05/2023,5696,,3111424196,537.63,BPHA Limited
http://statistics.data.gov.uk/id/local-authority/38,Oxfordshire County Council,ALTERNATIVES TO CARE,11/05/2023,2040,Agency Staff,2201110308,538.33,THORNBURY NURSING SERVICES
http://statistics.data.gov.uk/id/local-authority/38,Oxfordshire County Council,FOSTERING MAIN,02/05/2023,5549,B*Fostering Allowance - Regulation 38,3111418366,539.00,Redacted Personal Data 
http://statistics.data.gov.uk/id/local-authority/38,Oxfordshire County Council,FOSTERING MAIN,16/05/2023,5549,B*Fostering Allowance - Regulation 38,3111428357,539.00,Redacted Personal Data 
http://statistics.data.gov.uk/id/local-authority/38,Oxfordshire County Council,FOSTERING MAIN,23/05/2023,5549,B*Fostering Allowance - Regulation 38,3111430833,539.00,Redacted Personal Data 
http://statistics.data.gov.uk/id/local-authority/38,Oxfordshire County Council,FOSTERING MAIN,30/05/2023,5549,B*Fostering Allowance - Regulation 38,3111435798,539.00,Redacted Personal Data 
http://statistics.data.gov.uk/id/local-authority/38,Oxfordshire County Council,LAC PUPIL PREMIUM,05/05/2023,5380,"Author, Speaker and Lecturer Fees",2201108536,539.00,Tuition Extra (Kent) Ltd
http://statistics.data.gov.uk/id/local-authority/38,Oxfordshire County Council,FOSTERING MAIN,30/05/2023,5394,Other Expenses,3111435952,539.13,Redacted Personal Data 
http://statistics.data.gov.uk/id/local-authority/38,Oxfordshire County Council,Support at Home U65 Memory & Cognition,09/05/2023,5899,Social Care - Direct Payments,3111421413,539.68,Purple Conversation Com In Co (DP)
http://statistics.data.gov.uk/id/local-authority/38,Oxfordshire County Council,Vegetation Mgmt,02/05/2023,5526,Payments to Private Contractors,3111417634,539.77,Ramsden Parish Council
http://statistics.data.gov.uk/id/local-authority/38,Oxfordshire County Council,Support at Home U65 Learning Disability,03/05/2023,5227,Other Transport Arrangements,3111418801,540.00,24 Seven Cars (Oxford) Ltd
http://statistics.data.gov.uk/id/local-authority/38,Oxfordshire County Council,Support at Home U65 Learning Disability,23/05/2023,5227,Other Transport Arrangements,3111430371,540.00,BC CARS
http://statistics.data.gov.uk/id/local-authority/38,Oxfordshire County Council,MAINSTREAM-PRIMARY,16/05/2023,4330,Transport to School Activities,3111428989,540.00,Cherwell Cars
http://statistics.data.gov.uk/id/local-authority/38,Oxfordshire County Council,Swindon Adoption Support Fund,31/05/2023,4861,Hired and Contracted Services,2201116175,540.00,Dr Vicky Sutton
http://statistics.data.gov.uk/id/local-authority/38,Oxfordshire County Council,SHORT BREAK ACTIVITIES,04/05/2023,4330,Transport to School Activities,3111419004,540.00,My Cabbie LTD t/a J and A Transport
http://statistics.data.gov.uk/id/local-authority/38,Oxfordshire County Council,COMMUNITY & ROAD SAFETY,03/05/2023,3103,Other Training Courses and Qualification,2201107594,540.00,Outspoken Training LLP
http://statistics.data.gov.uk/id/local-authority/38,Oxfordshire County Council,Support at Home U65 Learning Disability,11/05/2023,5227,Other Transport Arrangements,3111427044,540.00,Oxon Transport Services Ltd
http://statistics.data.gov.uk/id/local-authority/38,Oxfordshire County Council,SEN TRANSPORT,16/05/2023,4330,Transport to School Activities,3111428089,540.00,Oxon Transport Services Ltd
http://statistics.data.gov.uk/id/local-authority/38,Oxfordshire County Council,Support at Home U65 Learning Disability,05/05/2023,5227,Other Transport Arrangements,3111419336,540.00,Schon Executive Cars Ltd
http://statistics.data.gov.uk/id/local-authority/38,Oxfordshire County Council,Support at Home U65 Learning Disability,10/05/2023,5690,,3111424361,540.29,Style Acre
http://statistics.data.gov.uk/id/local-authority/38,Oxfordshire County Council,Support at Home 65+ Physical Support,12/05/2023,5693,,3111427314,540.85,A CARING HAND LTD
http://statistics.data.gov.uk/id/local-authority/38,Oxfordshire County Council,SM DISABILITIES,26/05/2023,5554,Childrens' Social Care - Direct Payments,3111434850,540.95,Redacted Personal Data 
http://statistics.data.gov.uk/id/local-authority/38,Oxfordshire County Council,SHARED LIVES,23/05/2023,5555,Payments to Carers,3111431720,541.44,Redacted Personal Data 
http://statistics.data.gov.uk/id/local-authority/38,Oxfordshire County Council,Support at Home U65 HFA,09/05/2023,5899,Social Care - Direct Payments,3111421032,541.52,Redacted Personal Data 
http://statistics.data.gov.uk/id/local-authority/38,Oxfordshire County Council,FOSTERING MAIN,02/05/2023,5545,B*Fostering Enhancements - Level 2,3111418237,542.00,Redacted Personal Data 
http://statistics.data.gov.uk/id/local-authority/38,Oxfordshire County Council,FOSTERING MAIN,09/05/2023,5545,B*Fostering Enhancements - Level 2,3111420022,542.00,Redacted Personal Data 
http://statistics.data.gov.uk/id/local-authority/38,Oxfordshire County Council,FOSTERING MAIN,16/05/2023,5545,B*Fostering Enhancements - Level 2,3111428230,542.00,Redacted Personal Data 
http://statistics.data.gov.uk/id/local-authority/38,Oxfordshire County Council,FOSTERING MAIN,23/05/2023,5545,B*Fostering Enhancements - Level 2,3111430558,542.00,Redacted Personal Data 
http://statistics.data.gov.uk/id/local-authority/38,Oxfordshire County Council,FOSTERING MAIN,30/05/2023,5545,B*Fostering Enhancements - Level 2,3111435575,542.00,Redacted Personal Data 
http://statistics.data.gov.uk/id/local-authority/38,Oxfordshire County Council,LIBRARY COLLECTIONS,15/05/2023,4539,"Books, DVDs and CDs",3111427688,543.54,ASKEWS & HOLTS LIBRARY SERVICES LTD
http://statistics.data.gov.uk/id/local-authority/38,Oxfordshire County Council,SEN TRANSPORT,09/05/2023,4330,Transport to School Activities,3111420247,544.00,Go Green Taxis
http://statistics.data.gov.uk/id/local-authority/38,Oxfordshire County Council,Support at Home 65+ Physical Support,12/05/2023,5227,Other Transport Arrangements,3111427410,544.00,LINK SHIRES LTD
http://statistics.data.gov.uk/id/local-authority/38,Oxfordshire County Council,SM DISABILITIES,26/05/2023,5554,Childrens' Social Care - Direct Payments,3111434829,544.29,Connection Support (Oxford)
http://statistics.data.gov.uk/id/local-authority/38,Oxfordshire County Council,SM DISABILITIES,26/05/2023,5554,Childrens' Social Care - Direct Payments,3111434867,544.29,Redacted Personal Data 
http://statistics.data.gov.uk/id/local-authority/38,Oxfordshire County Council,SM DISABILITIES,26/05/2023,5554,Childrens' Social Care - Direct Payments,3111434876,544.29,Redacted Personal Data 
http://statistics.data.gov.uk/id/local-authority/38,Oxfordshire County Council,Support at Home U65 MH OBC Contract,09/05/2023,5899,Social Care - Direct Payments,3111421596,544.32,Purple Conversation Com In Co (DP)
http://statistics.data.gov.uk/id/local-authority/38,Oxfordshire County Council,Support at Home U65 MH OBC Contract,09/05/2023,5899,Social Care - Direct Payments,3111421608,544.32,Purple Conversation Com In Co (DP)
http://statistics.data.gov.uk/id/local-authority/38,Oxfordshire County Council,Support at Home 65+ Learning Disability,30/05/2023,5696,,3111435201,544.72,Orders of St John Care Trust
http://statistics.data.gov.uk/id/local-authority/38,Oxfordshire County Council,FAM GRP CONFERENCES,05/05/2023,4940,Other Services,2201108487,544.83,Emma Wood
http://statistics.data.gov.uk/id/local-authority/38,Oxfordshire County Council,Support at Home U65 Learning Disability,05/05/2023,5227,Other Transport Arrangements,3111419235,545.10,Oxfordlinks
http://statistics.data.gov.uk/id/local-authority/38,Oxfordshire County Council,FPT NORTH,09/05/2023,5394,Other Expenses,3111420048,545.36,Redacted Personal Data 
http://statistics.data.gov.uk/id/local-authority/38,Oxfordshire County Council,PROCUREMENT,24/05/2023,4232,Vehicle Fuel,2201114784,545.75,Certas Energy UK Ltd
http://statistics.data.gov.uk/id/local-authority/38,Oxfordshire County Council,FOSTERING MAIN,02/05/2023,5541,B*Foster Parents,3111418267,546.00,Redacted Personal Data 
http://statistics.data.gov.uk/id/local-authority/38,Oxfordshire County Council,FOSTERING MAIN,02/05/2023,5541,B*Foster Parents,3111418268,546.00,Redacted Personal Data 
http://statistics.data.gov.uk/id/local-authority/38,Oxfordshire County Council,FOSTERING MAIN,09/05/2023,5541,B*Foster Parents,3111420079,546.00,Redacted Personal Data 
http://statistics.data.gov.uk/id/local-authority/38,Oxfordshire County Council,FOSTERING MAIN,09/05/2023,5541,B*Foster Parents,3111420081,546.00,Redacted Personal Data 
http://statistics.data.gov.uk/id/local-authority/38,Oxfordshire County Council,FOSTERING MAIN,16/05/2023,5541,B*Foster Parents,3111428259,546.00,Redacted Personal Data 
http://statistics.data.gov.uk/id/local-authority/38,Oxfordshire County Council,FOSTERING MAIN,16/05/2023,5541,B*Foster Parents,3111428260,546.00,Redacted Personal Data 
http://statistics.data.gov.uk/id/local-authority/38,Oxfordshire County Council,FOSTERING MAIN,23/05/2023,5541,B*Foster Parents,3111430610,546.00,Redacted Personal Data 
http://statistics.data.gov.uk/id/local-authority/38,Oxfordshire County Council,FOSTERING MAIN,23/05/2023,5541,B*Foster Parents,3111430612,546.00,Redacted Personal Data 
http://statistics.data.gov.uk/id/local-authority/38,Oxfordshire County Council,FOSTERING MAIN,30/05/2023,5541,B*Foster Parents,3111435628,546.00,Redacted Personal Data 
http://statistics.data.gov.uk/id/local-authority/38,Oxfordshire County Council,FOSTERING MAIN,30/05/2023,5541,B*Foster Parents,3111435630,546.00,Redacted Personal Data 
http://statistics.data.gov.uk/id/local-authority/38,Oxfordshire County Council,Delegated Health Tasks  - Over 65,05/05/2023,5691,,3111419410,546.00,Rynes Healthcare Ltd
http://statistics.data.gov.uk/id/local-authority/38,Oxfordshire County Council,POST 16 SEN,16/05/2023,4330,Transport to School Activities,3111427828,546.00,The Oxfordshire Taxi Company Ltd T/
http://statistics.data.gov.uk/id/local-authority/38,Oxfordshire County Council,TRANSPORT COSTS,22/05/2023,4330,Transport to School Activities,3111430180,546.00,The Oxfordshire Taxi Company Ltd T/
http://statistics.data.gov.uk/id/local-authority/38,Oxfordshire County Council,Bus Infrastructure Maintenance,02/05/2023,4407,Equipment,2201107168,546.20,Externiture Ltd
http://statistics.data.gov.uk/id/local-authority/38,Oxfordshire County Council,ATV Adoption Oxford,22/05/2023,4665,Catering,2201113828,546.75,Elegant Cuisine Ltd t/a Lets Do Lun
http://statistics.data.gov.uk/id/local-authority/38,Oxfordshire County Council,Vegetation Mgmt,05/05/2023,5526,Payments to Private Contractors,3111419118,546.80,OCC One Time Vendor
http://statistics.data.gov.uk/id/local-authority/38,Oxfordshire County Council,Support at Home U65 Learning Disability,17/05/2023,5693,,3111429091,547.25,Autism at Kingwood Limited
http://statistics.data.gov.uk/id/local-authority/38,Oxfordshire County Council,Support at Home 65+ Physical Support,30/05/2023,5696,,3111435261,547.98,Orders of St John Care Trust
http://statistics.data.gov.uk/id/local-authority/38,Oxfordshire County Council,NURSERY ED FUND,03/05/2023,5537,Payments to Other Establishments,3111418775,548.16,Expansive Education Ltd
http://statistics.data.gov.uk/id/local-authority/38,Oxfordshire County Council,Support at Home 65+ Learning Disability,23/05/2023,5696,,3111431389,548.75,Radis Community Care
http://statistics.data.gov.uk/id/local-authority/38,Oxfordshire County Council,ICT Operations & Maintenance,16/05/2023,4495,IT Software,2201111895,549.00,Entec Si Limited
http://statistics.data.gov.uk/id/local-authority/38,Oxfordshire County Council,Support at Home U65 Other /Soc Isolation,09/05/2023,5899,Social Care - Direct Payments,3111420783,549.36,Redacted Personal Data 
http://statistics.data.gov.uk/id/local-authority/38,Oxfordshire County Council,Support at Home 65+ Memory & Cognition,09/05/2023,5899,Social Care - Direct Payments,3111421119,549.36,Redacted Personal Data 
http://statistics.data.gov.uk/id/local-authority/38,Oxfordshire County Council,Support at Home U65 MH OBC Contract,23/05/2023,5699,,3111431438,549.40,Adult Transition Services Ltd (ATrS
http://statistics.data.gov.uk/id/local-authority/38,Oxfordshire County Council,Support at Home U65 Physical Support,31/05/2023,5693,,3111436237,549.40,Direct Link Care Ltd
http://statistics.data.gov.uk/id/local-authority/38,Oxfordshire County Council,Support at Home 65+ Physical Support,23/05/2023,5699,,3111432844,549.40,PLL Care Services
http://statistics.data.gov.uk/id/local-authority/38,Oxfordshire County Council,Support at Home U65 HFA,17/05/2023,5697,,3111429194,549.40,Reable Health Ltd
http://statistics.data.gov.uk/id/local-authority/38,Oxfordshire County Council,Continuing Care - Care Homes - 65+,10/05/2023,5687,,3111425258,549.50,Cedar Court Care Home
http://statistics.data.gov.uk/id/local-authority/38,Oxfordshire County Council,Support at Home 65+ Physical Support,24/05/2023,5693,,3111433382,549.60,A CARING HAND LTD
http://statistics.data.gov.uk/id/local-authority/38,Oxfordshire County Council,Homes for Ukraine - Guests,02/05/2023,5896,Adult Social Care - Other Transfer Pay,3500095389,550.00,Redacted Personal Data 
http://statistics.data.gov.uk/id/local-authority/38,Oxfordshire County Council,Homes for Ukraine - Guests,31/05/2023,5896,Adult Social Care - Other Transfer Pay,3500096278,550.00,Redacted Personal Data 
http://statistics.data.gov.uk/id/local-authority/38,Oxfordshire County Council,Homes for Ukraine - Guests,03/05/2023,5896,Adult Social Care - Other Transfer Pay,3500095418,550.00,Redacted Personal Data 
http://statistics.data.gov.uk/id/local-authority/38,Oxfordshire County Council,Homes for Ukraine - Guests,02/05/2023,5896,Adult Social Care - Other Transfer Pay,3500095380,550.00,Redacted Personal Data 
http://statistics.data.gov.uk/id/local-authority/38,Oxfordshire County Council,Homes for Ukraine - Guests,22/05/2023,5896,Adult Social Care - Other Transfer Pay,3500095837,550.00,Redacted Personal Data 
http://statistics.data.gov.uk/id/local-authority/38,Oxfordshire County Council,Homes for Ukraine - Guests,11/05/2023,5896,Adult Social Care - Other Transfer Pay,3500095650,550.00,Redacted Personal Data 
http://statistics.data.gov.uk/id/local-authority/38,Oxfordshire County Council,Homes for Ukraine - Guests,05/05/2023,5896,Adult Social Care - Other Transfer Pay,3500095503,550.00,Redacted Personal Data 
http://statistics.data.gov.uk/id/local-authority/38,Oxfordshire County Council,Homes for Ukraine - Guests,24/05/2023,5896,Adult Social Care - Other Transfer Pay,3500095933,550.00,Redacted Personal Data 
http://statistics.data.gov.uk/id/local-authority/38,Oxfordshire County Council,Homes for Ukraine - Guests,02/05/2023,5896,Adult Social Care - Other Transfer Pay,3500095373,550.00,Redacted Personal Data 
http://statistics.data.gov.uk/id/local-authority/38,Oxfordshire County Council,Homes for Ukraine - Guests,10/05/2023,5896,Adult Social Care - Other Transfer Pay,3500095624,550.00,Redacted Personal Data 
http://statistics.data.gov.uk/id/local-authority/38,Oxfordshire County Council,Homes for Ukraine - Guests,24/05/2023,5896,Adult Social Care - Other Transfer Pay,3500095953,550.00,Redacted Personal Data 
http://statistics.data.gov.uk/id/local-authority/38,Oxfordshire County Council,Homes for Ukraine - Guests,05/05/2023,5896,Adult Social Care - Other Transfer Pay,3500095516,550.00,Redacted Personal Data 
http://statistics.data.gov.uk/id/local-authority/38,Oxfordshire County Council,Homes for Ukraine - Guests,11/05/2023,5896,Adult Social Care - Other Transfer Pay,3500095644,550.00,Redacted Personal Data 
http://statistics.data.gov.uk/id/local-authority/38,Oxfordshire County Council,Homes for Ukraine - Guests,10/05/2023,5896,Adult Social Care - Other Transfer Pay,3500095600,550.00,Redacted Personal Data 
http://statistics.data.gov.uk/id/local-authority/38,Oxfordshire County Council,Homes for Ukraine - Guests,16/05/2023,5896,Adult Social Care - Other Transfer Pay,3500095719,550.00,Redacted Personal Data 
http://statistics.data.gov.uk/id/local-authority/38,Oxfordshire County Council,Homes for Ukraine - Guests,03/05/2023,5896,Adult Social Care - Other Transfer Pay,3500095451,550.00,Redacted Personal Data 
http://statistics.data.gov.uk/id/local-authority/38,Oxfordshire County Council,Homes for Ukraine - Guests,12/05/2023,5896,Adult Social Care - Other Transfer Pay,3500095678,550.00,Redacted Personal Data 
http://statistics.data.gov.uk/id/local-authority/38,Oxfordshire County Council,Homes for Ukraine - Guests,17/05/2023,5896,Adult Social Care - Other Transfer Pay,3500095780,550.00,Redacted Personal Data 
http://statistics.data.gov.uk/id/local-authority/38,Oxfordshire County Council,Homes for Ukraine - Guests,11/05/2023,5896,Adult Social Care - Other Transfer Pay,3500095648,550.00,Redacted Personal Data 
http://statistics.data.gov.uk/id/local-authority/38,Oxfordshire County Council,Homes for Ukraine - Guests,24/05/2023,5896,Adult Social Care - Other Transfer Pay,3500095887,550.00,Redacted Personal Data 
http://statistics.data.gov.uk/id/local-authority/38,Oxfordshire County Council,Homes for Ukraine - Guests,23/05/2023,5896,Adult Social Care - Other Transfer Pay,3500095879,550.00,Redacted Personal Data 
http://statistics.data.gov.uk/id/local-authority/38,Oxfordshire County Council,Homes for Ukraine - Guests,04/05/2023,5896,Adult Social Care - Other Transfer Pay,3500095463,550.00,Redacted Personal Data 
http://statistics.data.gov.uk/id/local-authority/38,Oxfordshire County Council,Homes for Ukraine - Guests,16/05/2023,5896,Adult Social Care - Other Transfer Pay,3500095718,550.00,Redacted Personal Data 
http://statistics.data.gov.uk/id/local-authority/38,Oxfordshire County Council,Homes for Ukraine - Guests,03/05/2023,5896,Adult Social Care - Other Transfer Pay,3500095422,550.00,Redacted Personal Data 
http://statistics.data.gov.uk/id/local-authority/38,Oxfordshire County Council,Homes for Ukraine - Guests,03/05/2023,5896,Adult Social Care - Other Transfer Pay,3500095445,550.00,Redacted Personal Data 
http://statistics.data.gov.uk/id/local-authority/38,Oxfordshire County Council,Homes for Ukraine - Guests,09/05/2023,5896,Adult Social Care - Other Transfer Pay,3500095530,550.00,Redacted Personal Data 
http://statistics.data.gov.uk/id/local-authority/38,Oxfordshire County Council,Homes for Ukraine - Guests,02/05/2023,5896,Adult Social Care - Other Transfer Pay,3500095356,550.00,Redacted Personal Data 
http://statistics.data.gov.uk/id/local-authority/38,Oxfordshire County Council,Homes for Ukraine - Guests,10/05/2023,5896,Adult Social Care - Other Transfer Pay,3500095583,550.00,Redacted Personal Data 
http://statistics.data.gov.uk/id/local-authority/38,Oxfordshire County Council,Homes for Ukraine - Guests,03/05/2023,5896,Adult Social Care - Other Transfer Pay,3500095427,550.00,Redacted Personal Data 
http://statistics.data.gov.uk/id/local-authority/38,Oxfordshire County Council,Homes for Ukraine - Guests,26/05/2023,5896,Adult Social Care - Other Transfer Pay,3500095984,550.00,Redacted Personal Data 
http://statistics.data.gov.uk/id/local-authority/38,Oxfordshire County Council,Homes for Ukraine - Guests,12/05/2023,5896,Adult Social Care - Other Transfer Pay,3500095691,550.00,Redacted Personal Data 
http://statistics.data.gov.uk/id/local-authority/38,Oxfordshire County Council,Homes for Ukraine - Guests,09/05/2023,5896,Adult Social Care - Other Transfer Pay,3500095526,550.00,Redacted Personal Data 
http://statistics.data.gov.uk/id/local-authority/38,Oxfordshire County Council,Homes for Ukraine - Guests,10/05/2023,5896,Adult Social Care - Other Transfer Pay,3500095632,550.00,Redacted Personal Data 
http://statistics.data.gov.uk/id/local-authority/38,Oxfordshire County Council,Homes for Ukraine - Guests,12/05/2023,5896,Adult Social Care - Other Transfer Pay,3500095686,550.00,Redacted Personal Data 
http://statistics.data.gov.uk/id/local-authority/38,Oxfordshire County Council,Homes for Ukraine - Guests,02/05/2023,5896,Adult Social Care - Other Transfer Pay,3500095397,550.00,Redacted Personal Data 
http://statistics.data.gov.uk/id/local-authority/38,Oxfordshire County Council,Homes for Ukraine - Guests,31/05/2023,5896,Adult Social Care - Other Transfer Pay,3500096287,550.00,Redacted Personal Data 
http://statistics.data.gov.uk/id/local-authority/38,Oxfordshire County Council,Homes for Ukraine - Guests,05/05/2023,5896,Adult Social Care - Other Transfer Pay,3500095486,550.00,Redacted Personal Data 
http://statistics.data.gov.uk/id/local-authority/38,Oxfordshire County Council,Homes for Ukraine - Guests,10/05/2023,5896,Adult Social Care - Other Transfer Pay,3500095614,550.00,Redacted Personal Data 
http://statistics.data.gov.uk/id/local-authority/38,Oxfordshire County Council,Homes for Ukraine - Guests,24/05/2023,5896,Adult Social Care - Other Transfer Pay,3500095900,550.00,Redacted Personal Data 
http://statistics.data.gov.uk/id/local-authority/38,Oxfordshire County Council,Homes for Ukraine - Guests,17/05/2023,5896,Adult Social Care - Other Transfer Pay,3500095751,550.00,Redacted Personal Data 
http://statistics.data.gov.uk/id/local-authority/38,Oxfordshire County Council,Homes for Ukraine - Guests,11/05/2023,5896,Adult Social Care - Other Transfer Pay,3500095665,550.00,Redacted Personal Data 
http://statistics.data.gov.uk/id/local-authority/38,Oxfordshire County Council,Homes for Ukraine - Guests,17/05/2023,5896,Adult Social Care - Other Transfer Pay,3500095770,550.00,Redacted Personal Data 
http://statistics.data.gov.uk/id/local-authority/38,Oxfordshire County Council,Homes for Ukraine - Guests,10/05/2023,5896,Adult Social Care - Other Transfer Pay,3500095609,550.00,Redacted Personal Data 
http://statistics.data.gov.uk/id/local-authority/38,Oxfordshire County Council,Homes for Ukraine - Guests,01/05/2023,5896,Adult Social Care - Other Transfer Pay,3500095330,550.00,Redacted Personal Data 
http://statistics.data.gov.uk/id/local-authority/38,Oxfordshire County Council,Homes for Ukraine - Guests,31/05/2023,5896,Adult Social Care - Other Transfer Pay,3500096243,550.00,Redacted Personal Data 
http://statistics.data.gov.uk/id/local-authority/38,Oxfordshire County Council,Homes for Ukraine - Guests,22/05/2023,5896,Adult Social Care - Other Transfer Pay,3500095851,550.00,Redacted Personal Data 
http://statistics.data.gov.uk/id/local-authority/38,Oxfordshire County Council,Homes for Ukraine - Guests,05/05/2023,5896,Adult Social Care - Other Transfer Pay,3500095490,550.00,Redacted Personal Data 
http://statistics.data.gov.uk/id/local-authority/38,Oxfordshire County Council,Homes for Ukraine - Guests,17/05/2023,5896,Adult Social Care - Other Transfer Pay,3500095775,550.00,Redacted Personal Data 
http://statistics.data.gov.uk/id/local-authority/38,Oxfordshire County Council,Homes for Ukraine - Guests,23/05/2023,5896,Adult Social Care - Other Transfer Pay,3500095868,550.00,Redacted Personal Data 
http://statistics.data.gov.uk/id/local-authority/38,Oxfordshire County Council,Homes for Ukraine - Guests,03/05/2023,5896,Adult Social Care - Other Transfer Pay,3500095415,550.00,Redacted Personal Data 
http://statistics.data.gov.uk/id/local-authority/38,Oxfordshire County Council,Homes for Ukraine - Guests,19/05/2023,5896,Adult Social Care - Other Transfer Pay,3500095819,550.00,Redacted Personal Data 
http://statistics.data.gov.uk/id/local-authority/38,Oxfordshire County Council,Homes for Ukraine - Guests,17/05/2023,5896,Adult Social Care - Other Transfer Pay,3500095744,550.00,Redacted Personal Data 
http://statistics.data.gov.uk/id/local-authority/38,Oxfordshire County Council,Homes for Ukraine - Guests,01/05/2023,5896,Adult Social Care - Other Transfer Pay,3500095338,550.00,Redacted Personal Data 
http://statistics.data.gov.uk/id/local-authority/38,Oxfordshire County Council,Homes for Ukraine - Guests,31/05/2023,5896,Adult Social Care - Other Transfer Pay,3500096254,550.00,Redacted Personal Data 
http://statistics.data.gov.uk/id/local-authority/38,Oxfordshire County Council,Homes for Ukraine - Guests,20/05/2023,5896,Adult Social Care - Other Transfer Pay,3500095835,550.00,Redacted Personal Data 
http://statistics.data.gov.uk/id/local-authority/38,Oxfordshire County Council,Homes for Ukraine - Guests,17/05/2023,5896,Adult Social Care - Other Transfer Pay,3500095746,550.00,Redacted Personal Data 
http://statistics.data.gov.uk/id/local-authority/38,Oxfordshire County Council,Homes for Ukraine - Guests,24/05/2023,5896,Adult Social Care - Other Transfer Pay,3500095925,550.00,Redacted Personal Data 
http://statistics.data.gov.uk/id/local-authority/38,Oxfordshire County Council,Homes for Ukraine - Guests,18/05/2023,5896,Adult Social Care - Other Transfer Pay,3500095797,550.00,Redacted Personal Data 
http://statistics.data.gov.uk/id/local-authority/38,Oxfordshire County Council,Homes for Ukraine - Guests,30/05/2023,5896,Adult Social Care - Other Transfer Pay,3500096219,550.00,Redacted Personal Data 
http://statistics.data.gov.uk/id/local-authority/38,Oxfordshire County Council,Homes for Ukraine - Guests,26/05/2023,5896,Adult Social Care - Other Transfer Pay,3500095985,550.00,Redacted Personal Data 
http://statistics.data.gov.uk/id/local-authority/38,Oxfordshire County Council,Homes for Ukraine - Guests,05/05/2023,5896,Adult Social Care - Other Transfer Pay,3500095491,550.00,Redacted Personal Data 
http://statistics.data.gov.uk/id/local-authority/38,Oxfordshire County Council,Homes for Ukraine - Guests,24/05/2023,5896,Adult Social Care - Other Transfer Pay,3500095907,550.00,Redacted Personal Data 
http://statistics.data.gov.uk/id/local-authority/38,Oxfordshire County Council,Homes for Ukraine - Guests,18/05/2023,5896,Adult Social Care - Other Transfer Pay,3500095795,550.00,Redacted Personal Data 
http://statistics.data.gov.uk/id/local-authority/38,Oxfordshire County Council,Homes for Ukraine - Guests,02/05/2023,5896,Adult Social Care - Other Transfer Pay,3500095371,550.00,Redacted Personal Data 
http://statistics.data.gov.uk/id/local-authority/38,Oxfordshire County Council,Homes for Ukraine - Guests,31/05/2023,5896,Adult Social Care - Other Transfer Pay,3500096247,550.00,Redacted Personal Data 
http://statistics.data.gov.uk/id/local-authority/38,Oxfordshire County Council,Homes for Ukraine - Guests,12/05/2023,5896,Adult Social Care - Other Transfer Pay,3500095684,550.00,Redacted Personal Data 
http://statistics.data.gov.uk/id/local-authority/38,Oxfordshire County Council,Homes for Ukraine - Guests,04/05/2023,5896,Adult Social Care - Other Transfer Pay,3500095462,550.00,Redacted Personal Data 
http://statistics.data.gov.uk/id/local-authority/38,Oxfordshire County Council,Homes for Ukraine - Guests,30/05/2023,5896,Adult Social Care - Other Transfer Pay,3500096207,550.00,Redacted Personal Data 
http://statistics.data.gov.uk/id/local-authority/38,Oxfordshire County Council,Homes for Ukraine - Guests,12/05/2023,5896,Adult Social Care - Other Transfer Pay,3500095676,550.00,Redacted Personal Data 
http://statistics.data.gov.uk/id/local-authority/38,Oxfordshire County Council,Homes for Ukraine - Guests,10/05/2023,5896,Adult Social Care - Other Transfer Pay,3500095589,550.00,Redacted Personal Data 
http://statistics.data.gov.uk/id/local-authority/38,Oxfordshire County Council,Homes for Ukraine - Guests,01/05/2023,5896,Adult Social Care - Other Transfer Pay,3500095329,550.00,Redacted Personal Data 
http://statistics.data.gov.uk/id/local-authority/38,Oxfordshire County Council,Homes for Ukraine - Guests,31/05/2023,5896,Adult Social Care - Other Transfer Pay,3500096242,550.00,Redacted Personal Data 
http://statistics.data.gov.uk/id/local-authority/38,Oxfordshire County Council,Homes for Ukraine - Guests,28/05/2023,5896,Adult Social Care - Other Transfer Pay,3500096001,550.00,Redacted Personal Data 
http://statistics.data.gov.uk/id/local-authority/38,Oxfordshire County Council,Homes for Ukraine - Guests,16/05/2023,5896,Adult Social Care - Other Transfer Pay,3500095728,550.00,Redacted Personal Data 
http://statistics.data.gov.uk/id/local-authority/38,Oxfordshire County Council,Homes for Ukraine - Guests,02/05/2023,5896,Adult Social Care - Other Transfer Pay,3500095392,550.00,Redacted Personal Data 
http://statistics.data.gov.uk/id/local-authority/38,Oxfordshire County Council,Homes for Ukraine - Guests,31/05/2023,5896,Adult Social Care - Other Transfer Pay,3500096280,550.00,Redacted Personal Data 
http://statistics.data.gov.uk/id/local-authority/38,Oxfordshire County Council,Homes for Ukraine - Guests,08/05/2023,5896,Adult Social Care - Other Transfer Pay,3500095520,550.00,Redacted Personal Data 
http://statistics.data.gov.uk/id/local-authority/38,Oxfordshire County Council,Homes for Ukraine - Guests,17/05/2023,5896,Adult Social Care - Other Transfer Pay,3500095756,550.00,Redacted Personal Data 
http://statistics.data.gov.uk/id/local-authority/38,Oxfordshire County Council,Homes for Ukraine - Guests,24/05/2023,5896,Adult Social Care - Other Transfer Pay,3500095919,550.00,Redacted Personal Data 
http://statistics.data.gov.uk/id/local-authority/38,Oxfordshire County Council,Homes for Ukraine - Guests,10/05/2023,5896,Adult Social Care - Other Transfer Pay,3500095618,550.00,Redacted Personal Data 
http://statistics.data.gov.uk/id/local-authority/38,Oxfordshire County Council,Homes for Ukraine - Guests,17/05/2023,5896,Adult Social Care - Other Transfer Pay,3500095750,550.00,Redacted Personal Data 
http://statistics.data.gov.uk/id/local-authority/38,Oxfordshire County Council,Homes for Ukraine - Guests,18/05/2023,5896,Adult Social Care - Other Transfer Pay,3500095802,550.00,Redacted Personal Data 
http://statistics.data.gov.uk/id/local-authority/38,Oxfordshire County Council,Homes for Ukraine - Guests,10/05/2023,5896,Adult Social Care - Other Transfer Pay,3500095640,550.00,Redacted Personal Data 
http://statistics.data.gov.uk/id/local-authority/38,Oxfordshire County Council,Homes for Ukraine - Guests,24/05/2023,5896,Adult Social Care - Other Transfer Pay,3500095927,550.00,Redacted Personal Data 
http://statistics.data.gov.uk/id/local-authority/38,Oxfordshire County Council,Homes for Ukraine - Guests,18/05/2023,5896,Adult Social Care - Other Transfer Pay,3500095807,550.00,Redacted Personal Data 
http://statistics.data.gov.uk/id/local-authority/38,Oxfordshire County Council,Homes for Ukraine - Guests,30/05/2023,5896,Adult Social Care - Other Transfer Pay,3500096224,550.00,Redacted Personal Data 
http://statistics.data.gov.uk/id/local-authority/38,Oxfordshire County Council,Homes for Ukraine - Guests,24/05/2023,5896,Adult Social Care - Other Transfer Pay,3500095904,550.00,Redacted Personal Data 
http://statistics.data.gov.uk/id/local-authority/38,Oxfordshire County Council,Homes for Ukraine - Guests,17/05/2023,5896,Adult Social Care - Other Transfer Pay,3500095763,550.00,Redacted Personal Data 
http://statistics.data.gov.uk/id/local-authority/38,Oxfordshire County Council,Homes for Ukraine - Guests,28/05/2023,5896,Adult Social Care - Other Transfer Pay,3500096006,550.00,Redacted Personal Data 
http://statistics.data.gov.uk/id/local-authority/38,Oxfordshire County Council,Homes for Ukraine - Guests,05/05/2023,5896,Adult Social Care - Other Transfer Pay,3500095473,550.00,Redacted Personal Data 
http://statistics.data.gov.uk/id/local-authority/38,Oxfordshire County Council,Homes for Ukraine - Guests,03/05/2023,5896,Adult Social Care - Other Transfer Pay,3500095414,550.00,Redacted Personal Data 
http://statistics.data.gov.uk/id/local-authority/38,Oxfordshire County Council,Homes for Ukraine - Guests,24/05/2023,5896,Adult Social Care - Other Transfer Pay,3500095948,550.00,Redacted Personal Data 
http://statistics.data.gov.uk/id/local-authority/38,Oxfordshire County Council,Homes for Ukraine - Guests,12/05/2023,5896,Adult Social Care - Other Transfer Pay,3500095693,550.00,Redacted Personal Data 
http://statistics.data.gov.uk/id/local-authority/38,Oxfordshire County Council,Homes for Ukraine - Guests,22/05/2023,5896,Adult Social Care - Other Transfer Pay,3500095842,550.00,Redacted Personal Data 
http://statistics.data.gov.uk/id/local-authority/38,Oxfordshire County Council,Homes for Ukraine - Guests,23/05/2023,5896,Adult Social Care - Other Transfer Pay,3500095882,550.00,Redacted Personal Data 
http://statistics.data.gov.uk/id/local-authority/38,Oxfordshire County Council,Homes for Ukraine - Guests,24/05/2023,5896,Adult Social Care - Other Transfer Pay,3500095938,550.00,Redacted Personal Data 
http://statistics.data.gov.uk/id/local-authority/38,Oxfordshire County Council,Homes for Ukraine - Guests,05/05/2023,5896,Adult Social Care - Other Transfer Pay,3500095487,550.00,Redacted Personal Data 
http://statistics.data.gov.uk/id/local-authority/38,Oxfordshire County Council,Homes for Ukraine - Guests,02/05/2023,5896,Adult Social Care - Other Transfer Pay,3500095394,550.00,Redacted Personal Data 
http://statistics.data.gov.uk/id/local-authority/38,Oxfordshire County Council,Homes for Ukraine - Guests,05/05/2023,5896,Adult Social Care - Other Transfer Pay,3500095501,550.00,Redacted Personal Data 
http://statistics.data.gov.uk/id/local-authority/38,Oxfordshire County Council,Homes for Ukraine - Guests,01/05/2023,5896,Adult Social Care - Other Transfer Pay,3500095344,550.00,Redacted Personal Data 
http://statistics.data.gov.uk/id/local-authority/38,Oxfordshire County Council,Homes for Ukraine - Guests,03/05/2023,5896,Adult Social Care - Other Transfer Pay,3500095419,550.00,Redacted Personal Data 
http://statistics.data.gov.uk/id/local-authority/38,Oxfordshire County Council,Homes for Ukraine - Guests,17/05/2023,5896,Adult Social Care - Other Transfer Pay,3500095765,550.00,Redacted Personal Data 
http://statistics.data.gov.uk/id/local-authority/38,Oxfordshire County Council,Homes for Ukraine - Guests,03/05/2023,5896,Adult Social Care - Other Transfer Pay,3500095416,550.00,Redacted Personal Data 
http://statistics.data.gov.uk/id/local-authority/38,Oxfordshire County Council,Homes for Ukraine - Guests,05/05/2023,5896,Adult Social Care - Other Transfer Pay,3500095477,550.00,Redacted Personal Data 
http://statistics.data.gov.uk/id/local-authority/38,Oxfordshire County Council,Homes for Ukraine - Guests,24/05/2023,5896,Adult Social Care - Other Transfer Pay,3500095897,550.00,Redacted Personal Data 
http://statistics.data.gov.uk/id/local-authority/38,Oxfordshire County Council,Homes for Ukraine - Guests,31/05/2023,5896,Adult Social Care - Other Transfer Pay,3500096270,550.00,Redacted Personal Data 
http://statistics.data.gov.uk/id/local-authority/38,Oxfordshire County Council,Homes for Ukraine - Guests,24/05/2023,5896,Adult Social Care - Other Transfer Pay,3500095892,550.00,Redacted Personal Data 
http://statistics.data.gov.uk/id/local-authority/38,Oxfordshire County Council,Homes for Ukraine - Guests,24/05/2023,5896,Adult Social Care - Other Transfer Pay,3500095920,550.00,Redacted Personal Data 
http://statistics.data.gov.uk/id/local-authority/38,Oxfordshire County Council,Homes for Ukraine - Guests,05/05/2023,5896,Adult Social Care - Other Transfer Pay,3500095496,550.00,Redacted Personal Data 
http://statistics.data.gov.uk/id/local-authority/38,Oxfordshire County Council,Homes for Ukraine - Guests,24/05/2023,5896,Adult Social Care - Other Transfer Pay,3500095909,550.00,Redacted Personal Data 
http://statistics.data.gov.uk/id/local-authority/38,Oxfordshire County Council,Homes for Ukraine - Guests,24/05/2023,5896,Adult Social Care - Other Transfer Pay,3500095961,550.00,Redacted Personal Data 
http://statistics.data.gov.uk/id/local-authority/38,Oxfordshire County Council,Homes for Ukraine - Guests,18/05/2023,5896,Adult Social Care - Other Transfer Pay,3500095790,550.00,Redacted Personal Data 
http://statistics.data.gov.uk/id/local-authority/38,Oxfordshire County Council,Homes for Ukraine - Guests,04/05/2023,5896,Adult Social Care - Other Transfer Pay,3500095465,550.00,Redacted Personal Data 
http://statistics.data.gov.uk/id/local-authority/38,Oxfordshire County Council,Homes for Ukraine - Guests,24/05/2023,5896,Adult Social Care - Other Transfer Pay,3500095949,550.00,Redacted Personal Data 
http://statistics.data.gov.uk/id/local-authority/38,Oxfordshire County Council,Homes for Ukraine - Guests,10/05/2023,5896,Adult Social Care - Other Transfer Pay,3500095592,550.00,Redacted Personal Data 
http://statistics.data.gov.uk/id/local-authority/38,Oxfordshire County Council,Homes for Ukraine - Guests,18/05/2023,5896,Adult Social Care - Other Transfer Pay,3500095799,550.00,Redacted Personal Data 
http://statistics.data.gov.uk/id/local-authority/38,Oxfordshire County Council,Homes for Ukraine - Guests,12/05/2023,5896,Adult Social Care - Other Transfer Pay,3500095701,550.00,Redacted Personal Data 
http://statistics.data.gov.uk/id/local-authority/38,Oxfordshire County Council,Homes for Ukraine - Guests,03/05/2023,5896,Adult Social Care - Other Transfer Pay,3500095408,550.00,Redacted Personal Data 
http://statistics.data.gov.uk/id/local-authority/38,Oxfordshire County Council,Homes for Ukraine - Guests,10/05/2023,5896,Adult Social Care - Other Transfer Pay,3500095585,550.00,Redacted Personal Data 
http://statistics.data.gov.uk/id/local-authority/38,Oxfordshire County Council,Homes for Ukraine - Guests,17/05/2023,5896,Adult Social Care - Other Transfer Pay,3500095776,550.00,Redacted Personal Data 
http://statistics.data.gov.uk/id/local-authority/38,Oxfordshire County Council,Homes for Ukraine - Guests,01/05/2023,5896,Adult Social Care - Other Transfer Pay,3500095349,550.00,Redacted Personal Data 
http://statistics.data.gov.uk/id/local-authority/38,Oxfordshire County Council,Homes for Ukraine - Guests,31/05/2023,5896,Adult Social Care - Other Transfer Pay,3500096279,550.00,Redacted Personal Data 
http://statistics.data.gov.uk/id/local-authority/38,Oxfordshire County Council,Homes for Ukraine - Guests,12/05/2023,5896,Adult Social Care - Other Transfer Pay,3500095674,550.00,Redacted Personal Data 
http://statistics.data.gov.uk/id/local-authority/38,Oxfordshire County Council,Homes for Ukraine - Guests,05/05/2023,5896,Adult Social Care - Other Transfer Pay,3500095511,550.00,Redacted Personal Data 
http://statistics.data.gov.uk/id/local-authority/38,Oxfordshire County Council,Homes for Ukraine - Guests,01/05/2023,5896,Adult Social Care - Other Transfer Pay,3500095333,550.00,Redacted Personal Data 
http://statistics.data.gov.uk/id/local-authority/38,Oxfordshire County Council,Homes for Ukraine - Guests,31/05/2023,5896,Adult Social Care - Other Transfer Pay,3500096249,550.00,Redacted Personal Data 
http://statistics.data.gov.uk/id/local-authority/38,Oxfordshire County Council,Homes for Ukraine - Guests,24/05/2023,5896,Adult Social Care - Other Transfer Pay,3500095918,550.00,Redacted Personal Data 
http://statistics.data.gov.uk/id/local-authority/38,Oxfordshire County Council,Homes for Ukraine - Guests,01/05/2023,5896,Adult Social Care - Other Transfer Pay,3500095345,550.00,Redacted Personal Data 
http://statistics.data.gov.uk/id/local-authority/38,Oxfordshire County Council,Homes for Ukraine - Guests,31/05/2023,5896,Adult Social Care - Other Transfer Pay,3500096274,550.00,Redacted Personal Data 
http://statistics.data.gov.uk/id/local-authority/38,Oxfordshire County Council,Homes for Ukraine - Guests,18/05/2023,5896,Adult Social Care - Other Transfer Pay,3500095800,550.00,Redacted Personal Data 
http://statistics.data.gov.uk/id/local-authority/38,Oxfordshire County Council,Homes for Ukraine - Guests,16/05/2023,5896,Adult Social Care - Other Transfer Pay,3500095714,550.00,Redacted Personal Data 
http://statistics.data.gov.uk/id/local-authority/38,Oxfordshire County Council,Homes for Ukraine - Guests,02/05/2023,5896,Adult Social Care - Other Transfer Pay,3500095395,550.00,Redacted Personal Data 
http://statistics.data.gov.uk/id/local-authority/38,Oxfordshire County Council,Homes for Ukraine - Guests,31/05/2023,5896,Adult Social Care - Other Transfer Pay,3500096282,550.00,Redacted Personal Data 
http://statistics.data.gov.uk/id/local-authority/38,Oxfordshire County Council,Homes for Ukraine - Guests,24/05/2023,5896,Adult Social Care - Other Transfer Pay,3500095923,550.00,Redacted Personal Data 
http://statistics.data.gov.uk/id/local-authority/38,Oxfordshire County Council,Homes for Ukraine - Guests,10/05/2023,5896,Adult Social Care - Other Transfer Pay,3500095580,550.00,Redacted Personal Data 
http://statistics.data.gov.uk/id/local-authority/38,Oxfordshire County Council,Homes for Ukraine - Guests,26/05/2023,5896,Adult Social Care - Other Transfer Pay,3500095986,550.00,Redacted Personal Data 
http://statistics.data.gov.uk/id/local-authority/38,Oxfordshire County Council,Homes for Ukraine - Guests,17/05/2023,5896,Adult Social Care - Other Transfer Pay,3500095740,550.00,Redacted Personal Data 
http://statistics.data.gov.uk/id/local-authority/38,Oxfordshire County Council,Homes for Ukraine - Guests,10/05/2023,5896,Adult Social Care - Other Transfer Pay,3500095607,550.00,Redacted Personal Data 
http://statistics.data.gov.uk/id/local-authority/38,Oxfordshire County Council,Homes for Ukraine - Guests,30/05/2023,5896,Adult Social Care - Other Transfer Pay,3500096221,550.00,Redacted Personal Data 
http://statistics.data.gov.uk/id/local-authority/38,Oxfordshire County Council,Homes for Ukraine - Guests,05/05/2023,5896,Adult Social Care - Other Transfer Pay,3500095502,550.00,Redacted Personal Data 
http://statistics.data.gov.uk/id/local-authority/38,Oxfordshire County Council,Homes for Ukraine - Guests,24/05/2023,5896,Adult Social Care - Other Transfer Pay,3500095946,550.00,Redacted Personal Data 
http://statistics.data.gov.uk/id/local-authority/38,Oxfordshire County Council,Homes for Ukraine - Guests,18/05/2023,5896,Adult Social Care - Other Transfer Pay,3500095788,550.00,Redacted Personal Data 
http://statistics.data.gov.uk/id/local-authority/38,Oxfordshire County Council,Homes for Ukraine - Guests,05/05/2023,5896,Adult Social Care - Other Transfer Pay,3500095471,550.00,Redacted Personal Data 
http://statistics.data.gov.uk/id/local-authority/38,Oxfordshire County Council,Homes for Ukraine - Guests,24/05/2023,5896,Adult Social Care - Other Transfer Pay,3500095947,550.00,Redacted Personal Data 
http://statistics.data.gov.uk/id/local-authority/38,Oxfordshire County Council,OCC Discharge Funding Allocation,11/05/2023,5195,Grant Aid and Donations,3111426977,550.00,Day and Nightcare Assistance
http://statistics.data.gov.uk/id/local-authority/38,Oxfordshire County Council,Homes for Ukraine - Guests,24/05/2023,5896,Adult Social Care - Other Transfer Pay,3500095889,550.00,Redacted Personal Data 
http://statistics.data.gov.uk/id/local-authority/38,Oxfordshire County Council,Homes for Ukraine - Guests,09/05/2023,5896,Adult Social Care - Other Transfer Pay,3500095531,550.00,Redacted Personal Data 
http://statistics.data.gov.uk/id/local-authority/38,Oxfordshire County Council,Homes for Ukraine - Guests,24/05/2023,5896,Adult Social Care - Other Transfer Pay,3500095895,550.00,Redacted Personal Data 
http://statistics.data.gov.uk/id/local-authority/38,Oxfordshire County Council,Homes for Ukraine - Guests,24/05/2023,5896,Adult Social Care - Other Transfer Pay,3500095893,550.00,Redacted Personal Data 
http://statistics.data.gov.uk/id/local-authority/38,Oxfordshire County Council,Homes for Ukraine - Guests,12/05/2023,5896,Adult Social Care - Other Transfer Pay,3500095689,550.00,Redacted Personal Data 
http://statistics.data.gov.uk/id/local-authority/38,Oxfordshire County Council,Homes for Ukraine - Guests,02/05/2023,5896,Adult Social Care - Other Transfer Pay,3500095360,550.00,Redacted Personal Data 
http://statistics.data.gov.uk/id/local-authority/38,Oxfordshire County Council,Homes for Ukraine - Guests,31/05/2023,5896,Adult Social Care - Other Transfer Pay,3500096241,550.00,Redacted Personal Data 
http://statistics.data.gov.uk/id/local-authority/38,Oxfordshire County Council,Homes for Ukraine - Guests,18/05/2023,5896,Adult Social Care - Other Transfer Pay,3500095789,550.00,Redacted Personal Data 
http://statistics.data.gov.uk/id/local-authority/38,Oxfordshire County Council,Homes for Ukraine - Guests,17/05/2023,5896,Adult Social Care - Other Transfer Pay,3500095769,550.00,Redacted Personal Data 
http://statistics.data.gov.uk/id/local-authority/38,Oxfordshire County Council,Homes for Ukraine - Guests,12/05/2023,5896,Adult Social Care - Other Transfer Pay,3500095673,550.00,Redacted Personal Data 
http://statistics.data.gov.uk/id/local-authority/38,Oxfordshire County Council,Homes for Ukraine - Guests,03/05/2023,5896,Adult Social Care - Other Transfer Pay,3500095439,550.00,Redacted Personal Data 
http://statistics.data.gov.uk/id/local-authority/38,Oxfordshire County Council,Homes for Ukraine - Guests,16/05/2023,5896,Adult Social Care - Other Transfer Pay,3500095712,550.00,Redacted Personal Data 
http://statistics.data.gov.uk/id/local-authority/38,Oxfordshire County Council,Homes for Ukraine - Guests,11/05/2023,5896,Adult Social Care - Other Transfer Pay,3500095645,550.00,Redacted Personal Data 
http://statistics.data.gov.uk/id/local-authority/38,Oxfordshire County Council,Homes for Ukraine - Guests,31/05/2023,5896,Adult Social Care - Other Transfer Pay,3500096285,550.00,Redacted Personal Data 
http://statistics.data.gov.uk/id/local-authority/38,Oxfordshire County Council,Homes for Ukraine - Guests,30/05/2023,5896,Adult Social Care - Other Transfer Pay,3500096213,550.00,Redacted Personal Data 
http://statistics.data.gov.uk/id/local-authority/38,Oxfordshire County Council,Homes for Ukraine - Guests,16/05/2023,5896,Adult Social Care - Other Transfer Pay,3500095724,550.00,Redacted Personal Data 
http://statistics.data.gov.uk/id/local-authority/38,Oxfordshire County Council,Homes for Ukraine - Guests,16/05/2023,5896,Adult Social Care - Other Transfer Pay,3500095713,550.00,Redacted Personal Data 
http://statistics.data.gov.uk/id/local-authority/38,Oxfordshire County Council,Homes for Ukraine - Guests,01/05/2023,5896,Adult Social Care - Other Transfer Pay,3500095332,550.00,Redacted Personal Data 
http://statistics.data.gov.uk/id/local-authority/38,Oxfordshire County Council,Homes for Ukraine - Guests,31/05/2023,5896,Adult Social Care - Other Transfer Pay,3500096248,550.00,Redacted Personal Data 
http://statistics.data.gov.uk/id/local-authority/38,Oxfordshire County Council,Homes for Ukraine - Guests,11/05/2023,5896,Adult Social Care - Other Transfer Pay,3500095652,550.00,Redacted Personal Data 
http://statistics.data.gov.uk/id/local-authority/38,Oxfordshire County Council,Homes for Ukraine - Guests,24/05/2023,5896,Adult Social Care - Other Transfer Pay,3500095930,550.00,Redacted Personal Data 
http://statistics.data.gov.uk/id/local-authority/38,Oxfordshire County Council,Homes for Ukraine - Guests,02/05/2023,5896,Adult Social Care - Other Transfer Pay,3500095384,550.00,Redacted Personal Data 
http://statistics.data.gov.uk/id/local-authority/38,Oxfordshire County Council,Homes for Ukraine - Guests,31/05/2023,5896,Adult Social Care - Other Transfer Pay,3500096260,550.00,Redacted Personal Data 
http://statistics.data.gov.uk/id/local-authority/38,Oxfordshire County Council,Homes for Ukraine - Guests,10/05/2023,5896,Adult Social Care - Other Transfer Pay,3500095610,550.00,Redacted Personal Data 
http://statistics.data.gov.uk/id/local-authority/38,Oxfordshire County Council,Homes for Ukraine - Guests,19/05/2023,5896,Adult Social Care - Other Transfer Pay,3500095820,550.00,Redacted Personal Data 
http://statistics.data.gov.uk/id/local-authority/38,Oxfordshire County Council,Homes for Ukraine - Guests,31/05/2023,5896,Adult Social Care - Other Transfer Pay,3500096284,550.00,Redacted Personal Data 
http://statistics.data.gov.uk/id/local-authority/38,Oxfordshire County Council,Homes for Ukraine - Guests,15/05/2023,5896,Adult Social Care - Other Transfer Pay,3500095709,550.00,Redacted Personal Data 
http://statistics.data.gov.uk/id/local-authority/38,Oxfordshire County Council,Homes for Ukraine - Guests,20/05/2023,5896,Adult Social Care - Other Transfer Pay,3500095833,550.00,Redacted Personal Data 
http://statistics.data.gov.uk/id/local-authority/38,Oxfordshire County Council,Homes for Ukraine - Guests,31/05/2023,5896,Adult Social Care - Other Transfer Pay,3500096256,550.00,Redacted Personal Data 
http://statistics.data.gov.uk/id/local-authority/38,Oxfordshire County Council,Homes for Ukraine - Guests,05/05/2023,5896,Adult Social Care - Other Transfer Pay,3500095484,550.00,Redacted Personal Data 
http://statistics.data.gov.uk/id/local-authority/38,Oxfordshire County Council,Homes for Ukraine - Guests,01/05/2023,5896,Adult Social Care - Other Transfer Pay,3500095346,550.00,Redacted Personal Data 
http://statistics.data.gov.uk/id/local-authority/38,Oxfordshire County Council,Homes for Ukraine - Guests,03/05/2023,5896,Adult Social Care - Other Transfer Pay,3500095453,550.00,Redacted Personal Data 
http://statistics.data.gov.uk/id/local-authority/38,Oxfordshire County Council,Homes for Ukraine - Guests,23/05/2023,5896,Adult Social Care - Other Transfer Pay,3500095884,550.00,Redacted Personal Data 
http://statistics.data.gov.uk/id/local-authority/38,Oxfordshire County Council,Homes for Ukraine - Guests,01/05/2023,5896,Adult Social Care - Other Transfer Pay,3500095341,550.00,Redacted Personal Data 
http://statistics.data.gov.uk/id/local-authority/38,Oxfordshire County Council,Homes for Ukraine - Guests,31/05/2023,5896,Adult Social Care - Other Transfer Pay,3500096266,550.00,Redacted Personal Data 
http://statistics.data.gov.uk/id/local-authority/38,Oxfordshire County Council,Homes for Ukraine - Guests,10/05/2023,5896,Adult Social Care - Other Transfer Pay,3500095616,550.00,Redacted Personal Data 
http://statistics.data.gov.uk/id/local-authority/38,Oxfordshire County Council,Homes for Ukraine - Guests,22/05/2023,5896,Adult Social Care - Other Transfer Pay,3500095845,550.00,Redacted Personal Data 
http://statistics.data.gov.uk/id/local-authority/38,Oxfordshire County Council,Homes for Ukraine - Guests,25/05/2023,5896,Adult Social Care - Other Transfer Pay,3500095972,550.00,Redacted Personal Data 
http://statistics.data.gov.uk/id/local-authority/38,Oxfordshire County Council,Homes for Ukraine - Guests,16/05/2023,5896,Adult Social Care - Other Transfer Pay,3500095715,550.00,Redacted Personal Data 
http://statistics.data.gov.uk/id/local-authority/38,Oxfordshire County Council,Homes for Ukraine - Guests,03/05/2023,5896,Adult Social Care - Other Transfer Pay,3500095407,550.00,Redacted Personal Data 
http://statistics.data.gov.uk/id/local-authority/38,Oxfordshire County Council,Homes for Ukraine - Guests,11/05/2023,5896,Adult Social Care - Other Transfer Pay,3500095663,550.00,Redacted Personal Data 
http://statistics.data.gov.uk/id/local-authority/38,Oxfordshire County Council,Homes for Ukraine - Guests,24/05/2023,5896,Adult Social Care - Other Transfer Pay,3500095886,550.00,Redacted Personal Data 
http://statistics.data.gov.uk/id/local-authority/38,Oxfordshire County Council,Homes for Ukraine - Guests,10/05/2023,5896,Adult Social Care - Other Transfer Pay,3500095605,550.00,Redacted Personal Data 
http://statistics.data.gov.uk/id/local-authority/38,Oxfordshire County Council,Homes for Ukraine - Guests,03/05/2023,5896,Adult Social Care - Other Transfer Pay,3500095411,550.00,Redacted Personal Data 
http://statistics.data.gov.uk/id/local-authority/38,Oxfordshire County Council,Homes for Ukraine - Guests,24/05/2023,5896,Adult Social Care - Other Transfer Pay,3500095929,550.00,Redacted Personal Data 
http://statistics.data.gov.uk/id/local-authority/38,Oxfordshire County Council,Homes for Ukraine - Guests,17/05/2023,5896,Adult Social Care - Other Transfer Pay,3500095772,550.00,Redacted Personal Data 
http://statistics.data.gov.uk/id/local-authority/38,Oxfordshire County Council,Homes for Ukraine - Guests,24/05/2023,5896,Adult Social Care - Other Transfer Pay,3500095960,550.00,Redacted Personal Data 
http://statistics.data.gov.uk/id/local-authority/38,Oxfordshire County Council,Homes for Ukraine - Guests,02/05/2023,5896,Adult Social Care - Other Transfer Pay,3500095386,550.00,Redacted Personal Data 
http://statistics.data.gov.uk/id/local-authority/38,Oxfordshire County Council,Homes for Ukraine - Guests,31/05/2023,5896,Adult Social Care - Other Transfer Pay,3500096265,550.00,Redacted Personal Data 
http://statistics.data.gov.uk/id/local-authority/38,Oxfordshire County Council,Homes for Ukraine - Guests,01/05/2023,5896,Adult Social Care - Other Transfer Pay,3500095334,550.00,Redacted Personal Data 
http://statistics.data.gov.uk/id/local-authority/38,Oxfordshire County Council,Homes for Ukraine - Guests,31/05/2023,5896,Adult Social Care - Other Transfer Pay,3500096251,550.00,Redacted Personal Data 
http://statistics.data.gov.uk/id/local-authority/38,Oxfordshire County Council,Homes for Ukraine - Guests,11/05/2023,5896,Adult Social Care - Other Transfer Pay,3500095661,550.00,Redacted Personal Data 
http://statistics.data.gov.uk/id/local-authority/38,Oxfordshire County Council,Homes for Ukraine - Guests,02/05/2023,5896,Adult Social Care - Other Transfer Pay,3500095368,550.00,Redacted Personal Data 
http://statistics.data.gov.uk/id/local-authority/38,Oxfordshire County Council,Homes for Ukraine - Guests,31/05/2023,5896,Adult Social Care - Other Transfer Pay,3500096245,550.00,Redacted Personal Data 
http://statistics.data.gov.uk/id/local-authority/38,Oxfordshire County Council,Homes for Ukraine - Guests,05/05/2023,5896,Adult Social Care - Other Transfer Pay,3500095474,550.00,Redacted Personal Data 
http://statistics.data.gov.uk/id/local-authority/38,Oxfordshire County Council,Homes for Ukraine - Guests,02/05/2023,5896,Adult Social Care - Other Transfer Pay,3500095375,550.00,Redacted Personal Data 
http://statistics.data.gov.uk/id/local-authority/38,Oxfordshire County Council,Homes for Ukraine - Guests,16/05/2023,5896,Adult Social Care - Other Transfer Pay,3500095722,550.00,Redacted Personal Data 
http://statistics.data.gov.uk/id/local-authority/38,Oxfordshire County Council,Homes for Ukraine - Guests,03/05/2023,5896,Adult Social Care - Other Transfer Pay,3500095452,550.00,Redacted Personal Data 
http://statistics.data.gov.uk/id/local-authority/38,Oxfordshire County Council,Homes for Ukraine - Guests,11/05/2023,5896,Adult Social Care - Other Transfer Pay,3500095653,550.00,Redacted Personal Data 
http://statistics.data.gov.uk/id/local-authority/38,Oxfordshire County Council,Homes for Ukraine - Guests,05/05/2023,5896,Adult Social Care - Other Transfer Pay,3500095508,550.00,Redacted Personal Data 
http://statistics.data.gov.uk/id/local-authority/38,Oxfordshire County Council,Homes for Ukraine - Guests,03/05/2023,5896,Adult Social Care - Other Transfer Pay,3500095429,550.00,Redacted Personal Data 
http://statistics.data.gov.uk/id/local-authority/38,Oxfordshire County Council,Homes for Ukraine - Guests,20/05/2023,5896,Adult Social Care - Other Transfer Pay,3500095831,550.00,Redacted Personal Data 
http://statistics.data.gov.uk/id/local-authority/38,Oxfordshire County Council,Homes for Ukraine - Guests,11/05/2023,5896,Adult Social Care - Other Transfer Pay,3500095660,550.00,Redacted Personal Data 
http://statistics.data.gov.uk/id/local-authority/38,Oxfordshire County Council,Homes for Ukraine - Guests,24/05/2023,5896,Adult Social Care - Other Transfer Pay,3500095939,550.00,Redacted Personal Data 
http://statistics.data.gov.uk/id/local-authority/38,Oxfordshire County Council,Homes for Ukraine - Guests,02/05/2023,5896,Adult Social Care - Other Transfer Pay,3500095364,550.00,Redacted Personal Data 
http://statistics.data.gov.uk/id/local-authority/38,Oxfordshire County Council,Homes for Ukraine - Guests,30/05/2023,5896,Adult Social Care - Other Transfer Pay,3500096205,550.00,Redacted Personal Data 
http://statistics.data.gov.uk/id/local-authority/38,Oxfordshire County Council,Homes for Ukraine - Guests,23/05/2023,5896,Adult Social Care - Other Transfer Pay,3500095878,550.00,Redacted Personal Data 
http://statistics.data.gov.uk/id/local-authority/38,Oxfordshire County Council,Homes for Ukraine - Guests,17/05/2023,5896,Adult Social Care - Other Transfer Pay,3500095760,550.00,Redacted Personal Data 
http://statistics.data.gov.uk/id/local-authority/38,Oxfordshire County Council,Homes for Ukraine - Guests,24/05/2023,5896,Adult Social Care - Other Transfer Pay,3500095903,550.00,Redacted Personal Data 
http://statistics.data.gov.uk/id/local-authority/38,Oxfordshire County Council,Homes for Ukraine - Guests,19/05/2023,5896,Adult Social Care - Other Transfer Pay,3500095823,550.00,Redacted Personal Data 
http://statistics.data.gov.uk/id/local-authority/38,Oxfordshire County Council,Homes for Ukraine - Guests,11/05/2023,5896,Adult Social Care - Other Transfer Pay,3500095649,550.00,Redacted Personal Data 
http://statistics.data.gov.uk/id/local-authority/38,Oxfordshire County Council,Homes for Ukraine - Guests,11/05/2023,5896,Adult Social Care - Other Transfer Pay,3500095656,550.00,Redacted Personal Data 
http://statistics.data.gov.uk/id/local-authority/38,Oxfordshire County Council,Homes for Ukraine - Guests,22/05/2023,5896,Adult Social Care - Other Transfer Pay,3500095838,550.00,Redacted Personal Data 
http://statistics.data.gov.uk/id/local-authority/38,Oxfordshire County Council,Homes for Ukraine - Guests,01/05/2023,5896,Adult Social Care - Other Transfer Pay,3500095348,550.00,Redacted Personal Data 
http://statistics.data.gov.uk/id/local-authority/38,Oxfordshire County Council,Homes for Ukraine - Guests,31/05/2023,5896,Adult Social Care - Other Transfer Pay,3500096277,550.00,Redacted Personal Data 
http://statistics.data.gov.uk/id/local-authority/38,Oxfordshire County Council,Homes for Ukraine - Guests,05/05/2023,5896,Adult Social Care - Other Transfer Pay,3500095497,550.00,Redacted Personal Data 
http://statistics.data.gov.uk/id/local-authority/38,Oxfordshire County Council,Homes for Ukraine - Guests,02/05/2023,5896,Adult Social Care - Other Transfer Pay,3500095363,550.00,Redacted Personal Data 
http://statistics.data.gov.uk/id/local-authority/38,Oxfordshire County Council,Homes for Ukraine - Guests,11/05/2023,5896,Adult Social Care - Other Transfer Pay,3500095647,550.00,Redacted Personal Data 
http://statistics.data.gov.uk/id/local-authority/38,Oxfordshire County Council,Homes for Ukraine - Guests,24/05/2023,5896,Adult Social Care - Other Transfer Pay,3500095890,550.00,Redacted Personal Data 
http://statistics.data.gov.uk/id/local-authority/38,Oxfordshire County Council,Homes for Ukraine - Guests,10/05/2023,5896,Adult Social Care - Other Transfer Pay,3500095588,550.00,Redacted Personal Data 
http://statistics.data.gov.uk/id/local-authority/38,Oxfordshire County Council,Homes for Ukraine - Guests,12/05/2023,5896,Adult Social Care - Other Transfer Pay,3500095697,550.00,Redacted Personal Data 
http://statistics.data.gov.uk/id/local-authority/38,Oxfordshire County Council,Homes for Ukraine - Guests,24/05/2023,5896,Adult Social Care - Other Transfer Pay,3500095896,550.00,Redacted Personal Data 
http://statistics.data.gov.uk/id/local-authority/38,Oxfordshire County Council,Homes for Ukraine - Guests,24/05/2023,5896,Adult Social Care - Other Transfer Pay,3500095902,550.00,Redacted Personal Data 
http://statistics.data.gov.uk/id/local-authority/38,Oxfordshire County Council,Homes for Ukraine - Guests,22/05/2023,5896,Adult Social Care - Other Transfer Pay,3500095850,550.00,Redacted Personal Data 
http://statistics.data.gov.uk/id/local-authority/38,Oxfordshire County Council,Homes for Ukraine - Guests,25/05/2023,5896,Adult Social Care - Other Transfer Pay,3500095977,550.00,Redacted Personal Data 
http://statistics.data.gov.uk/id/local-authority/38,Oxfordshire County Council,Homes for Ukraine - Guests,03/05/2023,5896,Adult Social Care - Other Transfer Pay,3500095413,550.00,Redacted Personal Data 
http://statistics.data.gov.uk/id/local-authority/38,Oxfordshire County Council,Homes for Ukraine - Guests,31/05/2023,5896,Adult Social Care - Other Transfer Pay,3500096273,550.00,Redacted Personal Data 
http://statistics.data.gov.uk/id/local-authority/38,Oxfordshire County Council,Homes for Ukraine - Guests,24/05/2023,5896,Adult Social Care - Other Transfer Pay,3500095901,550.00,Redacted Personal Data 
http://statistics.data.gov.uk/id/local-authority/38,Oxfordshire County Council,Homes for Ukraine - Guests,22/05/2023,5896,Adult Social Care - Other Transfer Pay,3500095856,550.00,Redacted Personal Data 
http://statistics.data.gov.uk/id/local-authority/38,Oxfordshire County Council,Homes for Ukraine - Guests,01/05/2023,5896,Adult Social Care - Other Transfer Pay,3500095336,550.00,Redacted Personal Data 
http://statistics.data.gov.uk/id/local-authority/38,Oxfordshire County Council,Homes for Ukraine - Guests,31/05/2023,5896,Adult Social Care - Other Transfer Pay,3500096253,550.00,Redacted Personal Data 
http://statistics.data.gov.uk/id/local-authority/38,Oxfordshire County Council,Homes for Ukraine - Guests,30/05/2023,5896,Adult Social Care - Other Transfer Pay,3500096220,550.00,Redacted Personal Data 
http://statistics.data.gov.uk/id/local-authority/38,Oxfordshire County Council,Homes for Ukraine - Guests,03/05/2023,5896,Adult Social Care - Other Transfer Pay,3500095431,550.00,Redacted Personal Data 
http://statistics.data.gov.uk/id/local-authority/38,Oxfordshire County Council,Homes for Ukraine - Guests,02/05/2023,5896,Adult Social Care - Other Transfer Pay,3500095387,550.00,Redacted Personal Data 
http://statistics.data.gov.uk/id/local-authority/38,Oxfordshire County Council,Homes for Ukraine - Guests,31/05/2023,5896,Adult Social Care - Other Transfer Pay,3500096267,550.00,Redacted Personal Data 
http://statistics.data.gov.uk/id/local-authority/38,Oxfordshire County Council,Homes for Ukraine - Guests,19/05/2023,5896,Adult Social Care - Other Transfer Pay,3500095816,550.00,Redacted Personal Data 
http://statistics.data.gov.uk/id/local-authority/38,Oxfordshire County Council,Homes for Ukraine - Guests,10/05/2023,5896,Adult Social Care - Other Transfer Pay,3500095603,550.00,Redacted Personal Data 
http://statistics.data.gov.uk/id/local-authority/38,Oxfordshire County Council,Homes for Ukraine - Guests,17/05/2023,5896,Adult Social Care - Other Transfer Pay,3500095742,550.00,Redacted Personal Data 
http://statistics.data.gov.uk/id/local-authority/38,Oxfordshire County Council,Homes for Ukraine - Guests,03/05/2023,5896,Adult Social Care - Other Transfer Pay,3500095426,550.00,Redacted Personal Data 
http://statistics.data.gov.uk/id/local-authority/38,Oxfordshire County Council,Homes for Ukraine - Guests,24/05/2023,5896,Adult Social Care - Other Transfer Pay,3500095964,550.00,Redacted Personal Data 
http://statistics.data.gov.uk/id/local-authority/38,Oxfordshire County Council,Homes for Ukraine - Guests,05/05/2023,5896,Adult Social Care - Other Transfer Pay,3500095495,550.00,Redacted Personal Data 
http://statistics.data.gov.uk/id/local-authority/38,Oxfordshire County Council,Homes for Ukraine - Guests,24/05/2023,5896,Adult Social Care - Other Transfer Pay,3500095885,550.00,Redacted Personal Data 
http://statistics.data.gov.uk/id/local-authority/38,Oxfordshire County Council,Homes for Ukraine - Guests,24/05/2023,5896,Adult Social Care - Other Transfer Pay,3500095898,550.00,Redacted Personal Data 
http://statistics.data.gov.uk/id/local-authority/38,Oxfordshire County Council,Homes for Ukraine - Guests,04/05/2023,5896,Adult Social Care - Other Transfer Pay,3500095455,550.00,Redacted Personal Data 
http://statistics.data.gov.uk/id/local-authority/38,Oxfordshire County Council,Homes for Ukraine - Guests,24/05/2023,5896,Adult Social Care - Other Transfer Pay,3500095913,550.00,Redacted Personal Data 
http://statistics.data.gov.uk/id/local-authority/38,Oxfordshire County Council,Homes for Ukraine - Guests,10/05/2023,5896,Adult Social Care - Other Transfer Pay,3500095582,550.00,Redacted Personal Data 
http://statistics.data.gov.uk/id/local-authority/38,Oxfordshire County Council,Homes for Ukraine - Guests,02/05/2023,5896,Adult Social Care - Other Transfer Pay,3500095370,550.00,Redacted Personal Data 
http://statistics.data.gov.uk/id/local-authority/38,Oxfordshire County Council,Homes for Ukraine - Guests,10/05/2023,5896,Adult Social Care - Other Transfer Pay,3500095594,550.00,Redacted Personal Data 
http://statistics.data.gov.uk/id/local-authority/38,Oxfordshire County Council,Homes for Ukraine - Guests,10/05/2023,5896,Adult Social Care - Other Transfer Pay,3500095590,550.00,Redacted Personal Data 
http://statistics.data.gov.uk/id/local-authority/38,Oxfordshire County Council,Homes for Ukraine - Guests,25/05/2023,5896,Adult Social Care - Other Transfer Pay,3500095967,550.00,Redacted Personal Data 
http://statistics.data.gov.uk/id/local-authority/38,Oxfordshire County Council,Homes for Ukraine - Guests,12/05/2023,5896,Adult Social Care - Other Transfer Pay,3500095699,550.00,Redacted Personal Data 
http://statistics.data.gov.uk/id/local-authority/38,Oxfordshire County Council,Homes for Ukraine - Guests,01/05/2023,5896,Adult Social Care - Other Transfer Pay,3500095343,550.00,Redacted Personal Data 
http://statistics.data.gov.uk/id/local-authority/38,Oxfordshire County Council,Homes for Ukraine - Guests,31/05/2023,5896,Adult Social Care - Other Transfer Pay,3500096272,550.00,Redacted Personal Data 
http://statistics.data.gov.uk/id/local-authority/38,Oxfordshire County Council,Homes for Ukraine - Guests,02/05/2023,5896,Adult Social Care - Other Transfer Pay,3500095391,550.00,Redacted Personal Data 
http://statistics.data.gov.uk/id/local-authority/38,Oxfordshire County Council,Homes for Ukraine - Guests,29/05/2023,5896,Adult Social Care - Other Transfer Pay,3500096017,550.00,Redacted Personal Data 
http://statistics.data.gov.uk/id/local-authority/38,Oxfordshire County Council,Homes for Ukraine - Guests,24/05/2023,5896,Adult Social Care - Other Transfer Pay,3500095954,550.00,Redacted Personal Data 
http://statistics.data.gov.uk/id/local-authority/38,Oxfordshire County Council,Homes for Ukraine - Guests,05/05/2023,5896,Adult Social Care - Other Transfer Pay,3500095485,550.00,Redacted Personal Data 
http://statistics.data.gov.uk/id/local-authority/38,Oxfordshire County Council,Homes for Ukraine - Guests,04/05/2023,5896,Adult Social Care - Other Transfer Pay,3500095459,550.00,Redacted Personal Data 
http://statistics.data.gov.uk/id/local-authority/38,Oxfordshire County Council,Homes for Ukraine - Guests,12/05/2023,5896,Adult Social Care - Other Transfer Pay,3500095688,550.00,Redacted Personal Data 
http://statistics.data.gov.uk/id/local-authority/38,Oxfordshire County Council,Homes for Ukraine - Guests,23/05/2023,5896,Adult Social Care - Other Transfer Pay,3500095877,550.00,Redacted Personal Data 
http://statistics.data.gov.uk/id/local-authority/38,Oxfordshire County Council,Homes for Ukraine - Guests,10/05/2023,5896,Adult Social Care - Other Transfer Pay,3500095601,550.00,Redacted Personal Data 
http://statistics.data.gov.uk/id/local-authority/38,Oxfordshire County Council,Homes for Ukraine - Guests,17/05/2023,5896,Adult Social Care - Other Transfer Pay,3500095745,550.00,Redacted Personal Data 
http://statistics.data.gov.uk/id/local-authority/38,Oxfordshire County Council,Homes for Ukraine - Guests,25/05/2023,5896,Adult Social Care - Other Transfer Pay,3500095974,550.00,Redacted Personal Data 
http://statistics.data.gov.uk/id/local-authority/38,Oxfordshire County Council,Homes for Ukraine - Guests,03/05/2023,5896,Adult Social Care - Other Transfer Pay,3500095450,550.00,Redacted Personal Data 
http://statistics.data.gov.uk/id/local-authority/38,Oxfordshire County Council,Homes for Ukraine - Guests,02/05/2023,5896,Adult Social Care - Other Transfer Pay,3500095365,550.00,Redacted Personal Data 
http://statistics.data.gov.uk/id/local-authority/38,Oxfordshire County Council,Homes for Ukraine - Guests,05/05/2023,5896,Adult Social Care - Other Transfer Pay,3500095509,550.00,Redacted Personal Data 
http://statistics.data.gov.uk/id/local-authority/38,Oxfordshire County Council,Homes for Ukraine - Guests,24/05/2023,5896,Adult Social Care - Other Transfer Pay,3500095915,550.00,Redacted Personal Data 
http://statistics.data.gov.uk/id/local-authority/38,Oxfordshire County Council,Homes for Ukraine - Guests,24/05/2023,5896,Adult Social Care - Other Transfer Pay,3500095959,550.00,Redacted Personal Data 
http://statistics.data.gov.uk/id/local-authority/38,Oxfordshire County Council,Homes for Ukraine - Guests,28/05/2023,5896,Adult Social Care - Other Transfer Pay,3500096008,550.00,Redacted Personal Data 
http://statistics.data.gov.uk/id/local-authority/38,Oxfordshire County Council,Homes for Ukraine - Guests,24/05/2023,5896,Adult Social Care - Other Transfer Pay,3500095906,550.00,Redacted Personal Data 
http://statistics.data.gov.uk/id/local-authority/38,Oxfordshire County Council,Homes for Ukraine - Guests,24/05/2023,5896,Adult Social Care - Other Transfer Pay,3500095891,550.00,Redacted Personal Data 
http://statistics.data.gov.uk/id/local-authority/38,Oxfordshire County Council,Homes for Ukraine - Guests,03/05/2023,5896,Adult Social Care - Other Transfer Pay,3500095438,550.00,Redacted Personal Data 
http://statistics.data.gov.uk/id/local-authority/38,Oxfordshire County Council,Homes for Ukraine - Guests,12/05/2023,5896,Adult Social Care - Other Transfer Pay,3500095703,550.00,Redacted Personal Data 
http://statistics.data.gov.uk/id/local-authority/38,Oxfordshire County Council,Homes for Ukraine - Guests,17/05/2023,5896,Adult Social Care - Other Transfer Pay,3500095757,550.00,Redacted Personal Data 
http://statistics.data.gov.uk/id/local-authority/38,Oxfordshire County Council,Homes for Ukraine - Guests,05/05/2023,5896,Adult Social Care - Other Transfer Pay,3500095493,550.00,Redacted Personal Data 
http://statistics.data.gov.uk/id/local-authority/38,Oxfordshire County Council,Homes for Ukraine - Guests,16/05/2023,5896,Adult Social Care - Other Transfer Pay,3500095726,550.00,Redacted Personal Data 
http://statistics.data.gov.uk/id/local-authority/38,Oxfordshire County Council,Homes for Ukraine - Guests,17/05/2023,5896,Adult Social Care - Other Transfer Pay,3500095762,550.00,Redacted Personal Data 
http://statistics.data.gov.uk/id/local-authority/38,Oxfordshire County Council,Homes for Ukraine - Guests,03/05/2023,5896,Adult Social Care - Other Transfer Pay,3500095417,550.00,Redacted Personal Data 
http://statistics.data.gov.uk/id/local-authority/38,Oxfordshire County Council,Homes for Ukraine - Guests,23/05/2023,5896,Adult Social Care - Other Transfer Pay,3500095875,550.00,Redacted Personal Data 
http://statistics.data.gov.uk/id/local-authority/38,Oxfordshire County Council,Homes for Ukraine - Guests,25/05/2023,5896,Adult Social Care - Other Transfer Pay,3500095971,550.00,Redacted Personal Data 
http://statistics.data.gov.uk/id/local-authority/38,Oxfordshire County Council,Homes for Ukraine - Guests,10/05/2023,5896,Adult Social Care - Other Transfer Pay,3500095602,550.00,Redacted Personal Data 
http://statistics.data.gov.uk/id/local-authority/38,Oxfordshire County Council,Homes for Ukraine - Guests,12/05/2023,5896,Adult Social Care - Other Transfer Pay,3500095690,550.00,Redacted Personal Data 
http://statistics.data.gov.uk/id/local-authority/38,Oxfordshire County Council,Homes for Ukraine - Guests,10/05/2023,5896,Adult Social Care - Other Transfer Pay,3500095591,550.00,Redacted Personal Data 
http://statistics.data.gov.uk/id/local-authority/38,Oxfordshire County Council,Homes for Ukraine - Guests,25/05/2023,5896,Adult Social Care - Other Transfer Pay,3500095979,550.00,Redacted Personal Data 
http://statistics.data.gov.uk/id/local-authority/38,Oxfordshire County Council,Homes for Ukraine - Guests,24/05/2023,5896,Adult Social Care - Other Transfer Pay,3500095950,550.00,Redacted Personal Data 
http://statistics.data.gov.uk/id/local-authority/38,Oxfordshire County Council,Homes for Ukraine - Guests,30/05/2023,5896,Adult Social Care - Other Transfer Pay,3500096228,550.00,Redacted Personal Data 
http://statistics.data.gov.uk/id/local-authority/38,Oxfordshire County Council,Homes for Ukraine - Guests,16/05/2023,5896,Adult Social Care - Other Transfer Pay,3500095723,550.00,Redacted Personal Data 
http://statistics.data.gov.uk/id/local-authority/38,Oxfordshire County Council,Homes for Ukraine - Guests,10/05/2023,5896,Adult Social Care - Other Transfer Pay,3500095612,550.00,Redacted Personal Data 
http://statistics.data.gov.uk/id/local-authority/38,Oxfordshire County Council,Homes for Ukraine - Guests,05/05/2023,5896,Adult Social Care - Other Transfer Pay,3500095481,550.00,Redacted Personal Data 
http://statistics.data.gov.uk/id/local-authority/38,Oxfordshire County Council,Homes for Ukraine - Guests,17/05/2023,5896,Adult Social Care - Other Transfer Pay,3500095774,550.00,Redacted Personal Data 
http://statistics.data.gov.uk/id/local-authority/38,Oxfordshire County Council,Homes for Ukraine - Guests,25/05/2023,5896,Adult Social Care - Other Transfer Pay,3500095970,550.00,Redacted Personal Data 
http://statistics.data.gov.uk/id/local-authority/38,Oxfordshire County Council,Homes for Ukraine - Guests,19/05/2023,5896,Adult Social Care - Other Transfer Pay,3500095811,550.00,Redacted Personal Data 
http://statistics.data.gov.uk/id/local-authority/38,Oxfordshire County Council,Homes for Ukraine - Guests,17/05/2023,5896,Adult Social Care - Other Transfer Pay,3500095739,550.00,Redacted Personal Data 
http://statistics.data.gov.uk/id/local-authority/38,Oxfordshire County Council,Homes for Ukraine - Guests,01/05/2023,5896,Adult Social Care - Other Transfer Pay,3500095339,550.00,Redacted Personal Data 
http://statistics.data.gov.uk/id/local-authority/38,Oxfordshire County Council,Homes for Ukraine - Guests,10/05/2023,5896,Adult Social Care - Other Transfer Pay,3500095634,550.00,Redacted Personal Data 
http://statistics.data.gov.uk/id/local-authority/38,Oxfordshire County Council,Homes for Ukraine - Guests,12/05/2023,5896,Adult Social Care - Other Transfer Pay,3500095672,550.00,Redacted Personal Data 
http://statistics.data.gov.uk/id/local-authority/38,Oxfordshire County Council,Homes for Ukraine - Guests,24/05/2023,5896,Adult Social Care - Other Transfer Pay,3500095943,550.00,Redacted Personal Data 
http://statistics.data.gov.uk/id/local-authority/38,Oxfordshire County Council,Homes for Ukraine - Guests,05/05/2023,5896,Adult Social Care - Other Transfer Pay,3500095482,550.00,Redacted Personal Data 
http://statistics.data.gov.uk/id/local-authority/38,Oxfordshire County Council,Homes for Ukraine - Guests,18/05/2023,5896,Adult Social Care - Other Transfer Pay,3500095803,550.00,Redacted Personal Data 
http://statistics.data.gov.uk/id/local-authority/38,Oxfordshire County Council,Homes for Ukraine - Guests,24/05/2023,5896,Adult Social Care - Other Transfer Pay,3500095894,550.00,Redacted Personal Data 
http://statistics.data.gov.uk/id/local-authority/38,Oxfordshire County Council,Homes for Ukraine - Guests,24/05/2023,5896,Adult Social Care - Other Transfer Pay,3500095921,550.00,Redacted Personal Data 
http://statistics.data.gov.uk/id/local-authority/38,Oxfordshire County Council,Homes for Ukraine - Guests,05/05/2023,5896,Adult Social Care - Other Transfer Pay,3500095494,550.00,Redacted Personal Data 
http://statistics.data.gov.uk/id/local-authority/38,Oxfordshire County Council,Homes for Ukraine - Guests,20/05/2023,5896,Adult Social Care - Other Transfer Pay,3500095832,550.00,Redacted Personal Data 
http://statistics.data.gov.uk/id/local-authority/38,Oxfordshire County Council,Homes for Ukraine - Guests,02/05/2023,5896,Adult Social Care - Other Transfer Pay,3500095358,550.00,Redacted Personal Data 
http://statistics.data.gov.uk/id/local-authority/38,Oxfordshire County Council,Homes for Ukraine - Guests,16/05/2023,5896,Adult Social Care - Other Transfer Pay,3500095725,550.00,Redacted Personal Data 
http://statistics.data.gov.uk/id/local-authority/38,Oxfordshire County Council,Homes for Ukraine - Guests,30/05/2023,5896,Adult Social Care - Other Transfer Pay,3500096231,550.00,Redacted Personal Data 
http://statistics.data.gov.uk/id/local-authority/38,Oxfordshire County Council,Homes for Ukraine - Guests,19/05/2023,5896,Adult Social Care - Other Transfer Pay,3500095809,550.00,Redacted Personal Data 
http://statistics.data.gov.uk/id/local-authority/38,Oxfordshire County Council,Homes for Ukraine - Guests,09/05/2023,5896,Adult Social Care - Other Transfer Pay,3500095535,550.00,Redacted Personal Data 
http://statistics.data.gov.uk/id/local-authority/38,Oxfordshire County Council,Homes for Ukraine - Guests,24/05/2023,5896,Adult Social Care - Other Transfer Pay,3500095931,550.00,Redacted Personal Data 
http://statistics.data.gov.uk/id/local-authority/38,Oxfordshire County Council,Homes for Ukraine - Guests,10/05/2023,5896,Adult Social Care - Other Transfer Pay,3500095629,550.00,Redacted Personal Data 
http://statistics.data.gov.uk/id/local-authority/38,Oxfordshire County Council,Homes for Ukraine - Guests,22/05/2023,5896,Adult Social Care - Other Transfer Pay,3500095860,550.00,Redacted Personal Data 
http://statistics.data.gov.uk/id/local-authority/38,Oxfordshire County Council,Homes for Ukraine - Guests,26/05/2023,5896,Adult Social Care - Other Transfer Pay,3500095988,550.00,Redacted Personal Data 
http://statistics.data.gov.uk/id/local-authority/38,Oxfordshire County Council,Homes for Ukraine - Guests,30/05/2023,5896,Adult Social Care - Other Transfer Pay,3500096230,550.00,Redacted Personal Data 
http://statistics.data.gov.uk/id/local-authority/38,Oxfordshire County Council,Homes for Ukraine - Guests,04/05/2023,5896,Adult Social Care - Other Transfer Pay,3500095456,550.00,Redacted Personal Data 
http://statistics.data.gov.uk/id/local-authority/38,Oxfordshire County Council,Homes for Ukraine - Guests,17/05/2023,5896,Adult Social Care - Other Transfer Pay,3500095764,550.00,Redacted Personal Data 
http://statistics.data.gov.uk/id/local-authority/38,Oxfordshire County Council,Homes for Ukraine - Guests,12/05/2023,5896,Adult Social Care - Other Transfer Pay,3500095695,550.00,Redacted Personal Data 
http://statistics.data.gov.uk/id/local-authority/38,Oxfordshire County Council,Homes for Ukraine - Guests,10/05/2023,5896,Adult Social Care - Other Transfer Pay,3500095636,550.00,Redacted Personal Data 
http://statistics.data.gov.uk/id/local-authority/38,Oxfordshire County Council,Homes for Ukraine - Guests,30/05/2023,5896,Adult Social Care - Other Transfer Pay,3500096232,550.00,Redacted Personal Data 
http://statistics.data.gov.uk/id/local-authority/38,Oxfordshire County Council,Homes for Ukraine - Guests,26/05/2023,5896,Adult Social Care - Other Transfer Pay,3500095993,550.00,Redacted Personal Data 
http://statistics.data.gov.uk/id/local-authority/38,Oxfordshire County Council,Homes for Ukraine - Guests,24/05/2023,5896,Adult Social Care - Other Transfer Pay,3500095910,550.00,Redacted Personal Data 
http://statistics.data.gov.uk/id/local-authority/38,Oxfordshire County Council,Homes for Ukraine - Guests,25/05/2023,5896,Adult Social Care - Other Transfer Pay,3500095968,550.00,Redacted Personal Data 
http://statistics.data.gov.uk/id/local-authority/38,Oxfordshire County Council,Homes for Ukraine - Guests,22/05/2023,5896,Adult Social Care - Other Transfer Pay,3500095841,550.00,Redacted Personal Data 
http://statistics.data.gov.uk/id/local-authority/38,Oxfordshire County Council,Homes for Ukraine - Guests,18/05/2023,5896,Adult Social Care - Other Transfer Pay,3500095796,550.00,Redacted Personal Data 
http://statistics.data.gov.uk/id/local-authority/38,Oxfordshire County Council,Homes for Ukraine - Guests,02/05/2023,5896,Adult Social Care - Other Transfer Pay,3500095393,550.00,Redacted Personal Data 
http://statistics.data.gov.uk/id/local-authority/38,Oxfordshire County Council,Homes for Ukraine - Guests,31/05/2023,5896,Adult Social Care - Other Transfer Pay,3500096281,550.00,Redacted Personal Data 
http://statistics.data.gov.uk/id/local-authority/38,Oxfordshire County Council,Homes for Ukraine - Guests,03/05/2023,5896,Adult Social Care - Other Transfer Pay,3500095430,550.00,Redacted Personal Data 
http://statistics.data.gov.uk/id/local-authority/38,Oxfordshire County Council,Homes for Ukraine - Guests,03/05/2023,5896,Adult Social Care - Other Transfer Pay,3500095447,550.00,Redacted Personal Data 
http://statistics.data.gov.uk/id/local-authority/38,Oxfordshire County Council,Homes for Ukraine - Guests,05/05/2023,5896,Adult Social Care - Other Transfer Pay,3500095498,550.00,Redacted Personal Data 
http://statistics.data.gov.uk/id/local-authority/38,Oxfordshire County Council,OCC Discharge Funding Allocation,11/05/2023,5195,Grant Aid and Donations,3111426987,550.00,L A CARERS LTD
http://statistics.data.gov.uk/id/local-authority/38,Oxfordshire County Council,Homes for Ukraine - Guests,22/05/2023,5896,Adult Social Care - Other Transfer Pay,3500095854,550.00,Redacted Personal Data 
http://statistics.data.gov.uk/id/local-authority/38,Oxfordshire County Council,Homes for Ukraine - Guests,10/05/2023,5896,Adult Social Care - Other Transfer Pay,3500095628,550.00,Redacted Personal Data 
http://statistics.data.gov.uk/id/local-authority/38,Oxfordshire County Council,Homes for Ukraine - Guests,03/05/2023,5896,Adult Social Care - Other Transfer Pay,3500095434,550.00,Redacted Personal Data 
http://statistics.data.gov.uk/id/local-authority/38,Oxfordshire County Council,Homes for Ukraine - Guests,17/05/2023,5896,Adult Social Care - Other Transfer Pay,3500095773,550.00,Redacted Personal Data 
http://statistics.data.gov.uk/id/local-authority/38,Oxfordshire County Council,Homes for Ukraine - Guests,10/05/2023,5896,Adult Social Care - Other Transfer Pay,3500095625,550.00,Redacted Personal Data 
http://statistics.data.gov.uk/id/local-authority/38,Oxfordshire County Council,Homes for Ukraine - Guests,16/05/2023,5896,Adult Social Care - Other Transfer Pay,3500095729,550.00,Redacted Personal Data 
http://statistics.data.gov.uk/id/local-authority/38,Oxfordshire County Council,Homes for Ukraine - Guests,02/05/2023,5896,Adult Social Care - Other Transfer Pay,3500095385,550.00,Redacted Personal Data 
http://statistics.data.gov.uk/id/local-authority/38,Oxfordshire County Council,Homes for Ukraine - Guests,24/05/2023,5896,Adult Social Care - Other Transfer Pay,3500095945,550.00,Redacted Personal Data 
http://statistics.data.gov.uk/id/local-authority/38,Oxfordshire County Council,Homes for Ukraine - Guests,30/05/2023,5896,Adult Social Care - Other Transfer Pay,3500096208,550.00,Redacted Personal Data 
http://statistics.data.gov.uk/id/local-authority/38,Oxfordshire County Council,Homes for Ukraine - Guests,03/05/2023,5896,Adult Social Care - Other Transfer Pay,3500095420,550.00,Redacted Personal Data 
http://statistics.data.gov.uk/id/local-authority/38,Oxfordshire County Council,Homes for Ukraine - Guests,04/05/2023,5896,Adult Social Care - Other Transfer Pay,3500095464,550.00,Redacted Personal Data 
http://statistics.data.gov.uk/id/local-authority/38,Oxfordshire County Council,Homes for Ukraine - Guests,29/05/2023,5896,Adult Social Care - Other Transfer Pay,3500096016,550.00,Redacted Personal Data 
http://statistics.data.gov.uk/id/local-authority/38,Oxfordshire County Council,Homes for Ukraine - Guests,10/05/2023,5896,Adult Social Care - Other Transfer Pay,3500095613,550.00,Redacted Personal Data 
http://statistics.data.gov.uk/id/local-authority/38,Oxfordshire County Council,Homes for Ukraine - Guests,05/05/2023,5896,Adult Social Care - Other Transfer Pay,3500095510,550.00,Redacted Personal Data 
http://statistics.data.gov.uk/id/local-authority/38,Oxfordshire County Council,Homes for Ukraine - Guests,23/05/2023,5896,Adult Social Care - Other Transfer Pay,3500095872,550.00,Redacted Personal Data 
http://statistics.data.gov.uk/id/local-authority/38,Oxfordshire County Council,Homes for Ukraine - Guests,31/05/2023,5896,Adult Social Care - Other Transfer Pay,3500096263,550.00,Redacted Personal Data 
http://statistics.data.gov.uk/id/local-authority/38,Oxfordshire County Council,Homes for Ukraine - Guests,30/05/2023,5896,Adult Social Care - Other Transfer Pay,3500096217,550.00,Redacted Personal Data 
http://statistics.data.gov.uk/id/local-authority/38,Oxfordshire County Council,Homes for Ukraine - Guests,16/05/2023,5896,Adult Social Care - Other Transfer Pay,3500095731,550.00,Redacted Personal Data 
http://statistics.data.gov.uk/id/local-authority/38,Oxfordshire County Council,Homes for Ukraine - Guests,10/05/2023,5896,Adult Social Care - Other Transfer Pay,3500095587,550.00,Redacted Personal Data 
http://statistics.data.gov.uk/id/local-authority/38,Oxfordshire County Council,Homes for Ukraine - Guests,03/05/2023,5896,Adult Social Care - Other Transfer Pay,3500095425,550.00,Redacted Personal Data 
http://statistics.data.gov.uk/id/local-authority/38,Oxfordshire County Council,Homes for Ukraine - Guests,31/05/2023,5896,Adult Social Care - Other Transfer Pay,3500096268,550.00,Redacted Personal Data 
http://statistics.data.gov.uk/id/local-authority/38,Oxfordshire County Council,Homes for Ukraine - Guests,24/05/2023,5896,Adult Social Care - Other Transfer Pay,3500095899,550.00,Redacted Personal Data 
http://statistics.data.gov.uk/id/local-authority/38,Oxfordshire County Council,Homes for Ukraine - Guests,17/05/2023,5896,Adult Social Care - Other Transfer Pay,3500095767,550.00,Redacted Personal Data 
http://statistics.data.gov.uk/id/local-authority/38,Oxfordshire County Council,Homes for Ukraine - Guests,24/05/2023,5896,Adult Social Care - Other Transfer Pay,3500095916,550.00,Redacted Personal Data 
http://statistics.data.gov.uk/id/local-authority/38,Oxfordshire County Council,Homes for Ukraine - Guests,24/05/2023,5896,Adult Social Care - Other Transfer Pay,3500095956,550.00,Redacted Personal Data 
http://statistics.data.gov.uk/id/local-authority/38,Oxfordshire County Council,Homes for Ukraine - Guests,03/05/2023,5896,Adult Social Care - Other Transfer Pay,3500095423,550.00,Redacted Personal Data 
http://statistics.data.gov.uk/id/local-authority/38,Oxfordshire County Council,Homes for Ukraine - Guests,02/05/2023,5896,Adult Social Care - Other Transfer Pay,3500095381,550.00,Redacted Personal Data 
http://statistics.data.gov.uk/id/local-authority/38,Oxfordshire County Council,Homes for Ukraine - Guests,31/05/2023,5896,Adult Social Care - Other Transfer Pay,3500096255,550.00,Redacted Personal Data 
http://statistics.data.gov.uk/id/local-authority/38,Oxfordshire County Council,Homes for Ukraine - Guests,22/05/2023,5896,Adult Social Care - Other Transfer Pay,3500095863,550.00,Redacted Personal Data 
http://statistics.data.gov.uk/id/local-authority/38,Oxfordshire County Council,Homes for Ukraine - Guests,10/05/2023,5896,Adult Social Care - Other Transfer Pay,3500095623,550.00,Redacted Personal Data 
http://statistics.data.gov.uk/id/local-authority/38,Oxfordshire County Council,Homes for Ukraine - Guests,10/05/2023,5896,Adult Social Care - Other Transfer Pay,3500095626,550.00,Redacted Personal Data 
http://statistics.data.gov.uk/id/local-authority/38,Oxfordshire County Council,Homes for Ukraine - Guests,23/05/2023,5896,Adult Social Care - Other Transfer Pay,3500095871,550.00,Redacted Personal Data 
http://statistics.data.gov.uk/id/local-authority/38,Oxfordshire County Council,Homes for Ukraine - Guests,11/05/2023,5896,Adult Social Care - Other Transfer Pay,3500095654,550.00,Redacted Personal Data 
http://statistics.data.gov.uk/id/local-authority/38,Oxfordshire County Council,Homes for Ukraine - Guests,24/05/2023,5896,Adult Social Care - Other Transfer Pay,3500095957,550.00,Redacted Personal Data 
http://statistics.data.gov.uk/id/local-authority/38,Oxfordshire County Council,Homes for Ukraine - Guests,10/05/2023,5896,Adult Social Care - Other Transfer Pay,3500095595,550.00,Redacted Personal Data 
http://statistics.data.gov.uk/id/local-authority/38,Oxfordshire County Council,Homes for Ukraine - Guests,24/05/2023,5896,Adult Social Care - Other Transfer Pay,3500095944,550.00,Redacted Personal Data 
http://statistics.data.gov.uk/id/local-authority/38,Oxfordshire County Council,Homes for Ukraine - Guests,12/05/2023,5896,Adult Social Care - Other Transfer Pay,3500095692,550.00,Redacted Personal Data 
http://statistics.data.gov.uk/id/local-authority/38,Oxfordshire County Council,Homes for Ukraine - Guests,17/05/2023,5896,Adult Social Care - Other Transfer Pay,3500095758,550.00,Redacted Personal Data 
http://statistics.data.gov.uk/id/local-authority/38,Oxfordshire County Council,Homes for Ukraine - Guests,19/05/2023,5896,Adult Social Care - Other Transfer Pay,3500095821,550.00,Redacted Personal Data 
http://statistics.data.gov.uk/id/local-authority/38,Oxfordshire County Council,Homes for Ukraine - Guests,02/05/2023,5896,Adult Social Care - Other Transfer Pay,3500095377,550.00,Redacted Personal Data 
http://statistics.data.gov.uk/id/local-authority/38,Oxfordshire County Council,Homes for Ukraine - Guests,22/05/2023,5896,Adult Social Care - Other Transfer Pay,3500095849,550.00,Redacted Personal Data 
http://statistics.data.gov.uk/id/local-authority/38,Oxfordshire County Council,Homes for Ukraine - Guests,24/05/2023,5896,Adult Social Care - Other Transfer Pay,3500095952,550.00,Redacted Personal Data 
http://statistics.data.gov.uk/id/local-authority/38,Oxfordshire County Council,Homes for Ukraine - Guests,22/05/2023,5896,Adult Social Care - Other Transfer Pay,3500095862,550.00,Redacted Personal Data 
http://statistics.data.gov.uk/id/local-authority/38,Oxfordshire County Council,Homes for Ukraine - Guests,03/05/2023,5896,Adult Social Care - Other Transfer Pay,3500095446,550.00,Redacted Personal Data 
http://statistics.data.gov.uk/id/local-authority/38,Oxfordshire County Council,Homes for Ukraine - Guests,31/05/2023,5896,Adult Social Care - Other Transfer Pay,3500096261,550.00,Redacted Personal Data 
http://statistics.data.gov.uk/id/local-authority/38,Oxfordshire County Council,Homes for Ukraine - Guests,01/05/2023,5896,Adult Social Care - Other Transfer Pay,3500095347,550.00,Redacted Personal Data 
http://statistics.data.gov.uk/id/local-authority/38,Oxfordshire County Council,Homes for Ukraine - Guests,31/05/2023,5896,Adult Social Care - Other Transfer Pay,3500096275,550.00,Redacted Personal Data 
http://statistics.data.gov.uk/id/local-authority/38,Oxfordshire County Council,Homes for Ukraine - Guests,02/05/2023,5896,Adult Social Care - Other Transfer Pay,3500095378,550.00,Redacted Personal Data 
http://statistics.data.gov.uk/id/local-authority/38,Oxfordshire County Council,Homes for Ukraine - Guests,17/05/2023,5896,Adult Social Care - Other Transfer Pay,3500095768,550.00,Redacted Personal Data 
http://statistics.data.gov.uk/id/local-authority/38,Oxfordshire County Council,Homes for Ukraine - Guests,18/05/2023,5896,Adult Social Care - Other Transfer Pay,3500095798,550.00,Redacted Personal Data 
http://statistics.data.gov.uk/id/local-authority/38,Oxfordshire County Council,Homes for Ukraine - Guests,24/05/2023,5896,Adult Social Care - Other Transfer Pay,3500095914,550.00,Redacted Personal Data 
http://statistics.data.gov.uk/id/local-authority/38,Oxfordshire County Council,Homes for Ukraine - Guests,22/05/2023,5896,Adult Social Care - Other Transfer Pay,3500095839,550.00,Redacted Personal Data 
http://statistics.data.gov.uk/id/local-authority/38,Oxfordshire County Council,Homes for Ukraine - Guests,03/05/2023,5896,Adult Social Care - Other Transfer Pay,3500095412,550.00,Redacted Personal Data 
http://statistics.data.gov.uk/id/local-authority/38,Oxfordshire County Council,Homes for Ukraine - Guests,11/05/2023,5896,Adult Social Care - Other Transfer Pay,3500095655,550.00,Redacted Personal Data 
http://statistics.data.gov.uk/id/local-authority/38,Oxfordshire County Council,Homes for Ukraine - Guests,29/05/2023,5896,Adult Social Care - Other Transfer Pay,3500096011,550.00,Redacted Personal Data 
http://statistics.data.gov.uk/id/local-authority/38,Oxfordshire County Council,Homes for Ukraine - Guests,24/05/2023,5896,Adult Social Care - Other Transfer Pay,3500095958,550.00,Redacted Personal Data 
http://statistics.data.gov.uk/id/local-authority/38,Oxfordshire County Council,Homes for Ukraine - Guests,02/05/2023,5896,Adult Social Care - Other Transfer Pay,3500095362,550.00,Redacted Personal Data 
http://statistics.data.gov.uk/id/local-authority/38,Oxfordshire County Council,Homes for Ukraine - Guests,09/05/2023,5896,Adult Social Care - Other Transfer Pay,3500095528,550.00,Redacted Personal Data 
http://statistics.data.gov.uk/id/local-authority/38,Oxfordshire County Council,Homes for Ukraine - Guests,02/05/2023,5896,Adult Social Care - Other Transfer Pay,3500095396,550.00,Redacted Personal Data 
http://statistics.data.gov.uk/id/local-authority/38,Oxfordshire County Council,Homes for Ukraine - Guests,05/05/2023,5896,Adult Social Care - Other Transfer Pay,3500095478,550.00,Redacted Personal Data 
http://statistics.data.gov.uk/id/local-authority/38,Oxfordshire County Council,Homes for Ukraine - Guests,24/05/2023,5896,Adult Social Care - Other Transfer Pay,3500095951,550.00,Redacted Personal Data 
http://statistics.data.gov.uk/id/local-authority/38,Oxfordshire County Council,Homes for Ukraine - Guests,12/05/2023,5896,Adult Social Care - Other Transfer Pay,3500095700,550.00,Redacted Personal Data 
http://statistics.data.gov.uk/id/local-authority/38,Oxfordshire County Council,Homes for Ukraine - Guests,18/05/2023,5896,Adult Social Care - Other Transfer Pay,3500095786,550.00,Redacted Personal Data 
http://statistics.data.gov.uk/id/local-authority/38,Oxfordshire County Council,Homes for Ukraine - Guests,18/05/2023,5896,Adult Social Care - Other Transfer Pay,3500095783,550.00,Redacted Personal Data 
http://statistics.data.gov.uk/id/local-authority/38,Oxfordshire County Council,Homes for Ukraine - Guests,18/05/2023,5896,Adult Social Care - Other Transfer Pay,3500095801,550.00,Redacted Personal Data 
http://statistics.data.gov.uk/id/local-authority/38,Oxfordshire County Council,Homes for Ukraine - Guests,30/05/2023,5896,Adult Social Care - Other Transfer Pay,3500096211,550.00,Redacted Personal Data 
http://statistics.data.gov.uk/id/local-authority/38,Oxfordshire County Council,Homes for Ukraine - Guests,19/05/2023,5896,Adult Social Care - Other Transfer Pay,3500095813,550.00,Redacted Personal Data 
http://statistics.data.gov.uk/id/local-authority/38,Oxfordshire County Council,Homes for Ukraine - Guests,17/05/2023,5896,Adult Social Care - Other Transfer Pay,3500095779,550.00,Redacted Personal Data 
http://statistics.data.gov.uk/id/local-authority/38,Oxfordshire County Council,Homes for Ukraine - Guests,12/05/2023,5896,Adult Social Care - Other Transfer Pay,3500095682,550.00,Redacted Personal Data 
http://statistics.data.gov.uk/id/local-authority/38,Oxfordshire County Council,Homes for Ukraine - Guests,05/05/2023,5896,Adult Social Care - Other Transfer Pay,3500095500,550.00,Redacted Personal Data 
http://statistics.data.gov.uk/id/local-authority/38,Oxfordshire County Council,Homes for Ukraine - Guests,05/05/2023,5896,Adult Social Care - Other Transfer Pay,3500095489,550.00,Redacted Personal Data 
http://statistics.data.gov.uk/id/local-authority/38,Oxfordshire County Council,Homes for Ukraine - Guests,16/05/2023,5896,Adult Social Care - Other Transfer Pay,3500095716,550.00,Redacted Personal Data 
http://statistics.data.gov.uk/id/local-authority/38,Oxfordshire County Council,Homes for Ukraine - Guests,18/05/2023,5896,Adult Social Care - Other Transfer Pay,3500095787,550.00,Redacted Personal Data 
http://statistics.data.gov.uk/id/local-authority/38,Oxfordshire County Council,Homes for Ukraine - Guests,11/05/2023,5896,Adult Social Care - Other Transfer Pay,3500095667,550.00,Redacted Personal Data 
http://statistics.data.gov.uk/id/local-authority/38,Oxfordshire County Council,Homes for Ukraine - Guests,29/05/2023,5896,Adult Social Care - Other Transfer Pay,3500096015,550.00,Redacted Personal Data 
http://statistics.data.gov.uk/id/local-authority/38,Oxfordshire County Council,Homes for Ukraine - Guests,01/05/2023,5896,Adult Social Care - Other Transfer Pay,3500095342,550.00,Redacted Personal Data 
http://statistics.data.gov.uk/id/local-authority/38,Oxfordshire County Council,Homes for Ukraine - Guests,31/05/2023,5896,Adult Social Care - Other Transfer Pay,3500096269,550.00,Redacted Personal Data 
http://statistics.data.gov.uk/id/local-authority/38,Oxfordshire County Council,Homes for Ukraine - Guests,10/05/2023,5896,Adult Social Care - Other Transfer Pay,3500095599,550.00,Redacted Personal Data 
http://statistics.data.gov.uk/id/local-authority/38,Oxfordshire County Council,Homes for Ukraine - Guests,03/05/2023,5896,Adult Social Care - Other Transfer Pay,3500095433,550.00,Redacted Personal Data 
http://statistics.data.gov.uk/id/local-authority/38,Oxfordshire County Council,Homes for Ukraine - Guests,24/05/2023,5896,Adult Social Care - Other Transfer Pay,3500095955,550.00,Redacted Personal Data 
http://statistics.data.gov.uk/id/local-authority/38,Oxfordshire County Council,Homes for Ukraine - Guests,25/05/2023,5896,Adult Social Care - Other Transfer Pay,3500095969,550.00,Redacted Personal Data 
http://statistics.data.gov.uk/id/local-authority/38,Oxfordshire County Council,Homes for Ukraine - Guests,10/05/2023,5896,Adult Social Care - Other Transfer Pay,3500095615,550.00,Redacted Personal Data 
http://statistics.data.gov.uk/id/local-authority/38,Oxfordshire County Council,Homes for Ukraine - Guests,02/05/2023,5896,Adult Social Care - Other Transfer Pay,3500095361,550.00,Redacted Personal Data 
http://statistics.data.gov.uk/id/local-authority/38,Oxfordshire County Council,Homes for Ukraine - Guests,02/05/2023,5896,Adult Social Care - Other Transfer Pay,3500095382,550.00,Redacted Personal Data 
http://statistics.data.gov.uk/id/local-authority/38,Oxfordshire County Council,Homes for Ukraine - Guests,31/05/2023,5896,Adult Social Care - Other Transfer Pay,3500096257,550.00,Redacted Personal Data 
http://statistics.data.gov.uk/id/local-authority/38,Oxfordshire County Council,Homes for Ukraine - Guests,09/05/2023,5896,Adult Social Care - Other Transfer Pay,3500095532,550.00,Redacted Personal Data 
http://statistics.data.gov.uk/id/local-authority/38,Oxfordshire County Council,Homes for Ukraine - Guests,03/05/2023,5896,Adult Social Care - Other Transfer Pay,3500095442,550.00,Redacted Personal Data 
http://statistics.data.gov.uk/id/local-authority/38,Oxfordshire County Council,Homes for Ukraine - Guests,16/05/2023,5896,Adult Social Care - Other Transfer Pay,3500095734,550.00,Redacted Personal Data 
http://statistics.data.gov.uk/id/local-authority/38,Oxfordshire County Council,Homes for Ukraine - Guests,30/05/2023,5896,Adult Social Care - Other Transfer Pay,3500096214,550.00,Redacted Personal Data 
http://statistics.data.gov.uk/id/local-authority/38,Oxfordshire County Council,Homes for Ukraine - Guests,09/05/2023,5896,Adult Social Care - Other Transfer Pay,3500095534,550.00,Redacted Personal Data 
http://statistics.data.gov.uk/id/local-authority/38,Oxfordshire County Council,Homes for Ukraine - Guests,10/05/2023,5896,Adult Social Care - Other Transfer Pay,3500095627,550.00,Redacted Personal Data 
http://statistics.data.gov.uk/id/local-authority/38,Oxfordshire County Council,Homes for Ukraine - Guests,22/05/2023,5896,Adult Social Care - Other Transfer Pay,3500095859,550.00,Redacted Personal Data 
http://statistics.data.gov.uk/id/local-authority/38,Oxfordshire County Council,Homes for Ukraine - Guests,03/05/2023,5896,Adult Social Care - Other Transfer Pay,3500095449,550.00,Redacted Personal Data 
http://statistics.data.gov.uk/id/local-authority/38,Oxfordshire County Council,Homes for Ukraine - Guests,16/05/2023,5896,Adult Social Care - Other Transfer Pay,3500095730,550.00,Redacted Personal Data 
http://statistics.data.gov.uk/id/local-authority/38,Oxfordshire County Council,Homes for Ukraine - Guests,05/05/2023,5896,Adult Social Care - Other Transfer Pay,3500095507,550.00,Redacted Personal Data 
http://statistics.data.gov.uk/id/local-authority/38,Oxfordshire County Council,Support at Home U65 Learning Disability,15/05/2023,5227,Other Transport Arrangements,3111427545,550.00,Oxon Transport Services Ltd
http://statistics.data.gov.uk/id/local-authority/38,Oxfordshire County Council,Homes for Ukraine - Guests,18/05/2023,5896,Adult Social Care - Other Transfer Pay,3500095784,550.00,Redacted Personal Data 
http://statistics.data.gov.uk/id/local-authority/38,Oxfordshire County Council,Homes for Ukraine - Guests,01/05/2023,5896,Adult Social Care - Other Transfer Pay,3500095331,550.00,Redacted Personal Data 
http://statistics.data.gov.uk/id/local-authority/38,Oxfordshire County Council,Homes for Ukraine - Guests,31/05/2023,5896,Adult Social Care - Other Transfer Pay,3500096246,550.00,Redacted Personal Data 
http://statistics.data.gov.uk/id/local-authority/38,Oxfordshire County Council,Homes for Ukraine - Guests,10/05/2023,5896,Adult Social Care - Other Transfer Pay,3500095620,550.00,Redacted Personal Data 
http://statistics.data.gov.uk/id/local-authority/38,Oxfordshire County Council,Homes for Ukraine - Guests,17/05/2023,5896,Adult Social Care - Other Transfer Pay,3500095754,550.00,Redacted Personal Data 
http://statistics.data.gov.uk/id/local-authority/38,Oxfordshire County Council,Homes for Ukraine - Guests,30/05/2023,5896,Adult Social Care - Other Transfer Pay,3500096212,550.00,Redacted Personal Data 
http://statistics.data.gov.uk/id/local-authority/38,Oxfordshire County Council,Homes for Ukraine - Guests,23/05/2023,5896,Adult Social Care - Other Transfer Pay,3500095866,550.00,Redacted Personal Data 
http://statistics.data.gov.uk/id/local-authority/38,Oxfordshire County Council,Homes for Ukraine - Guests,30/05/2023,5896,Adult Social Care - Other Transfer Pay,3500096226,550.00,Redacted Personal Data 
http://statistics.data.gov.uk/id/local-authority/38,Oxfordshire County Council,Homes for Ukraine - Guests,18/05/2023,5896,Adult Social Care - Other Transfer Pay,3500095792,550.00,Redacted Personal Data 
http://statistics.data.gov.uk/id/local-authority/38,Oxfordshire County Council,Homes for Ukraine - Guests,11/05/2023,5896,Adult Social Care - Other Transfer Pay,3500095657,550.00,Redacted Personal Data 
http://statistics.data.gov.uk/id/local-authority/38,Oxfordshire County Council,Homes for Ukraine - Guests,11/05/2023,5896,Adult Social Care - Other Transfer Pay,3500095666,550.00,Redacted Personal Data 
http://statistics.data.gov.uk/id/local-authority/38,Oxfordshire County Council,Homes for Ukraine - Guests,04/05/2023,5896,Adult Social Care - Other Transfer Pay,3500095460,550.00,Redacted Personal Data 
